Workbook

Sheet coeff
A2: h2h | E2: EU Basketball Calc | F2: Version 1.21
A3: Bank Balance | B3: 1000
A4: Kelly | B4: 10
A5: Min. Overlay | B5: 0.05
A7: line
A8: Bank Balance | B8: 1000
A9: Kelly | B9: 10
A10: Min. Overlay | B10: 0.05
A12: totals
A13: Bank Balance | B13: 1000
A14: Kelly | B14: 10
A15: Min. Overlay | B15: 0.05

Sheet h2h
A3: League | B3: Start Time | C3: Team1 | D3: Team2 | E3: Expected | F3: Prob1 | G3: Odds1 | H3: Odds2 | I3: $Bet1 | J3: $Bet2
A4: Greece - Basket League | B4: 2016-02-22T16:00:00 | C4: GS Lavrio | D4: Kolossos | E4: 0.6 | F4: 0.515 | G4: 1.69 | H4: 2.3 | I4: =IF(OR(F4="",G4=""),"",IF((G4*F4-1)>=coeff!$B$5,coeff!$B$3/coeff!$B$4*(G4*F4-1)/(G4-1),"")) ->  | J4: =IF(OR(F4="",H4=""),"",IF((H4*(1-F4)-1)>=coeff!$B$5,coeff!$B$3/coeff!$B$4*(H4*(1-F4)-1)/(H4-1),"")) -> 8.884615385
A5: Greece - Basket League | B5: 2016-02-22T16:00:00 | C5: AO Aiolos Trikallon | D5: A.G.O Rethymno | E5: 2.8 | F5: 0.565 | G5: 1.6 | H5: 2.52 | I5: =IF(OR(F5="",G5=""),"",IF((G5*F5-1)>=coeff!$B$5,coeff!$B$3/coeff!$B$4*(G5*F5-1)/(G5-1),"")) ->  | J5: =IF(OR(F5="",H5=""),"",IF((H5*(1-F5)-1)>=coeff!$B$5,coeff!$B$3/coeff!$B$4*(H5*(1-F5)-1)/(H5-1),"")) -> 6.328947368
A6: Greece - Basket League | B6: 2016-02-22T16:00:00 | C6: AS Koroivos Amaliadas | D6: Olympiakos Piraeus | E6: -20.8 | F6: 0.108 | I6: =IF(OR(F6="",G6=""),"",IF((G6*F6-1)>=coeff!$B$5,coeff!$B$3/coeff!$B$4*(G6*F6-1)/(G6-1),"")) ->  | J6: =IF(OR(F6="",H6=""),"",IF((H6*(1-F6)-1)>=coeff!$B$5,coeff!$B$3/coeff!$B$4*(H6*(1-F6)-1)/(H6-1),"")) -> 
A7: Greece - Basket League | B7: 2016-02-22T16:00:00 | C7: SEFA Arkadikos | D7: Apollon Patras | E7: -2.8 | F7: 0.434 | G7: 1.77 | H7: 2.18 | I7: =IF(OR(F7="",G7=""),"",IF((G7*F7-1)>=coeff!$B$5,coeff!$B$3/coeff!$B$4*(G7*F7-1)/(G7-1),"")) ->  | J7: =IF(OR(F7="",H7=""),"",IF((H7*(1-F7)-1)>=coeff!$B$5,coeff!$B$3/coeff!$B$4*(H7*(1-F7)-1)/(H7-1),"")) -> 19.82033898
A8: Argentina - Liga Nacional de Bá | B8: 2016-02-23T01:00:00 | C8: San Lorenzo | D8: Ciclista Olímpico | E8: 8.2 | F8: 0.712 | I8: =IF(OR(F8="",G8=""),"",IF((G8*F8-1)>=coeff!$B$5,coeff!$B$3/coeff!$B$4*(G8*F8-1)/(G8-1),"")) ->  | J8: =IF(OR(F8="",H8=""),"",IF((H8*(1-F8)-1)>=coeff!$B$5,coeff!$B$3/coeff!$B$4*(H8*(1-F8)-1)/(H8-1),"")) -> 
A9: Argentina - Liga Nacional de Bá | B9: 2016-02-23T01:30:00 | C9: Atenas | D9: Argentino Junín | E9: 5.5 | F9: 0.647 | I9: =IF(OR(F9="",G9=""),"",IF((G9*F9-1)>=coeff!$B$5,coeff!$B$3/coeff!$B$4*(G9*F9-1)/(G9-1),"")) ->  | J9: =IF(OR(F9="",H9=""),"",IF((H9*(1-F9)-1)>=coeff!$B$5,coeff!$B$3/coeff!$B$4*(H9*(1-F9)-1)/(H9-1),"")) -> 
A10: Argentina - Liga Nacional de Bá | B10: 2016-02-23T01:30:00 | C10: San Martín Corrientes | D10: Regatas | E10: 4.5 | F10: 0.62 | I10: =IF(OR(F10="",G10=""),"",IF((G10*F10-1)>=coeff!$B$5,coeff!$B$3/coeff!$B$4*(G10*F10-1)/(G10-1),"")) ->  | J10: =IF(OR(F10="",H10=""),"",IF((H10*(1-F10)-1)>=coeff!$B$5,coeff!$B$3/coeff!$B$4*(H10*(1-F10)-1)/(H10-1),"")) -> 
A11: Argentina - Liga Nacional de Bá | B11: 2016-02-23T01:30:00 | C11: Quilmes | D11: Lanús | E11: 6.2 | F11: 0.665 | I11: =IF(OR(F11="",G11=""),"",IF((G11*F11-1)>=coeff!$B$5,coeff!$B$3/coeff!$B$4*(G11*F11-1)/(G11-1),"")) ->  | J11: =IF(OR(F11="",H11=""),"",IF((H11*(1-F11)-1)>=coeff!$B$5,coeff!$B$3/coeff!$B$4*(H11*(1-F11)-1)/(H11-1),"")) -> 
A12: Austria - Bundesliga | B12: 2016-02-22T19:00:00 | C12: Swans Gmunden | D12: WBC Wels | E12: -4.1 | F12: 0.392 | G12: 1.91 | H12: 2 | I12: =IF(OR(F12="",G12=""),"",IF((G12*F12-1)>=coeff!$B$5,coeff!$B$3/coeff!$B$4*(G12*F12-1)/(G12-1),"")) ->  | J12: =IF(OR(F12="",H12=""),"",IF((H12*(1-F12)-1)>=coeff!$B$5,coeff!$B$3/coeff!$B$4*(H12*(1-F12)-1)/(H12-1),"")) -> 21.6
A13: Europe - VTB League | B13: 2016-02-22T17:30:00 | C13: Kalev/Cramo Tallinn | D13: CSKA Moskva | I13: =IF(OR(F13="",G13=""),"",IF((G13*F13-1)>=coeff!$B$5,coeff!$B$3/coeff!$B$4*(G13*F13-1)/(G13-1),"")) ->  | J13: =IF(OR(F13="",H13=""),"",IF((H13*(1-F13)-1)>=coeff!$B$5,coeff!$B$3/coeff!$B$4*(H13*(1-F13)-1)/(H13-1),"")) -> 
A14: Europe - VTB League | B14: 2016-02-22T18:30:00 | C14: VEF Riga | D14: ČEZ Nymburk | G14: 2.27 | H14: 1.71 | I14: =IF(OR(F14="",G14=""),"",IF((G14*F14-1)>=coeff!$B$5,coeff!$B$3/coeff!$B$4*(G14*F14-1)/(G14-1),"")) ->  | J14: =IF(OR(F14="",H14=""),"",IF((H14*(1-F14)-1)>=coeff!$B$5,coeff!$B$3/coeff!$B$4*(H14*(1-F14)-1)/(H14-1),"")) -> 
A15: Israel - Ligat Haal | B15: 2016-02-22T18:55:00 | C15: Ironi Nes Ziona | D15: Maccabi Haifa | E15: -3.4 | F15: 0.408 | G15: 2.17 | H15: 1.78 | I15: =IF(OR(F15="",G15=""),"",IF((G15*F15-1)>=coeff!$B$5,coeff!$B$3/coeff!$B$4*(G15*F15-1)/(G15-1),"")) ->  | J15: =IF(OR(F15="",H15=""),"",IF((H15*(1-F15)-1)>=coeff!$B$5,coeff!$B$3/coeff!$B$4*(H15*(1-F15)-1)/(H15-1),"")) -> 6.892307692
A16: Israel - Ligat Haal | B16: 2016-02-22T19:05:00 | C16: Bnei HaSharon | D16: Maccabi Kiryat Gat | E16: 4.8 | F16: 0.629 | G16: 1.28 | H16: 4.07 | I16: =IF(OR(F16="",G16=""),"",IF((G16*F16-1)>=coeff!$B$5,coeff!$B$3/coeff!$B$4*(G16*F16-1)/(G16-1),"")) ->  | J16: =IF(OR(F16="",H16=""),"",IF((H16*(1-F16)-1)>=coeff!$B$5,coeff!$B$3/coeff!$B$4*(H16*(1-F16)-1)/(H16-1),"")) -> 16.61140065
A17: Sweden - Ligan | B17: 2016-02-22T19:04:00 | C17: BC Luleå | D17: Sundsvall | E17: 16.8 | F17: 0.867 | G17: 1.2 | H17: 5.3 | I17: =IF(OR(F17="",G17=""),"",IF((G17*F17-1)>=coeff!$B$5,coeff!$B$3/coeff!$B$4*(G17*F17-1)/(G17-1),"")) ->  | J17: =IF(OR(F17="",H17=""),"",IF((H17*(1-F17)-1)>=coeff!$B$5,coeff!$B$3/coeff!$B$4*(H17*(1-F17)-1)/(H17-1),"")) -> 
A18: Ukraine - Superleague | B18: 2016-02-22T17:00:00 | C18: BC Odesa | D18: Dnipro Dnepropetrovsk | E18: -22.4 | F18: 0.067 | I18: =IF(OR(F18="",G18=""),"",IF((G18*F18-1)>=coeff!$B$5,coeff!$B$3/coeff!$B$4*(G18*F18-1)/(G18-1),"")) ->  | J18: =IF(OR(F18="",H18=""),"",IF((H18*(1-F18)-1)>=coeff!$B$5,coeff!$B$3/coeff!$B$4*(H18*(1-F18)-1)/(H18-1),"")) -> 
A19: Czech Republic - NBL | B19: 2016-02-22T16:57:00 | C19: ČEZ Nymburk | D19: BC Kolín | E19: 32.3 | F19: 0.94 | I19: =IF(OR(F19="",G19=""),"",IF((G19*F19-1)>=coeff!$B$5,coeff!$B$3/coeff!$B$4*(G19*F19-1)/(G19-1),"")) ->  | J19: =IF(OR(F19="",H19=""),"",IF((H19*(1-F19)-1)>=coeff!$B$5,coeff!$B$3/coeff!$B$4*(H19*(1-F19)-1)/(H19-1),"")) -> 
I20: =IF(OR(F20="",G20=""),"",IF((G20*F20-1)>=coeff!$B$5,coeff!$B$3/coeff!$B$4*(G20*F20-1)/(G20-1),"")) ->  | J20: =IF(OR(F20="",H20=""),"",IF((H20*(1-F20)-1)>=coeff!$B$5,coeff!$B$3/coeff!$B$4*(H20*(1-F20)-1)/(H20-1),"")) -> 
I21: =IF(OR(F21="",G21=""),"",IF((G21*F21-1)>=coeff!$B$5,coeff!$B$3/coeff!$B$4*(G21*F21-1)/(G21-1),"")) ->  | J21: =IF(OR(F21="",H21=""),"",IF((H21*(1-F21)-1)>=coeff!$B$5,coeff!$B$3/coeff!$B$4*(H21*(1-F21)-1)/(H21-1),"")) -> 
I22: =IF(OR(F22="",G22=""),"",IF((G22*F22-1)>=coeff!$B$5,coeff!$B$3/coeff!$B$4*(G22*F22-1)/(G22-1),"")) ->  | J22: =IF(OR(F22="",H22=""),"",IF((H22*(1-F22)-1)>=coeff!$B$5,coeff!$B$3/coeff!$B$4*(H22*(1-F22)-1)/(H22-1),"")) -> 
I23: =IF(OR(F23="",G23=""),"",IF((G23*F23-1)>=coeff!$B$5,coeff!$B$3/coeff!$B$4*(G23*F23-1)/(G23-1),"")) ->  | J23: =IF(OR(F23="",H23=""),"",IF((H23*(1-F23)-1)>=coeff!$B$5,coeff!$B$3/coeff!$B$4*(H23*(1-F23)-1)/(H23-1),"")) -> 
I24: =IF(OR(F24="",G24=""),"",IF((G24*F24-1)>=coeff!$B$5,coeff!$B$3/coeff!$B$4*(G24*F24-1)/(G24-1),"")) ->  | J24: =IF(OR(F24="",H24=""),"",IF((H24*(1-F24)-1)>=coeff!$B$5,coeff!$B$3/coeff!$B$4*(H24*(1-F24)-1)/(H24-1),"")) -> 
I25: =IF(OR(F25="",G25=""),"",IF((G25*F25-1)>=coeff!$B$5,coeff!$B$3/coeff!$B$4*(G25*F25-1)/(G25-1),"")) ->  | J25: =IF(OR(F25="",H25=""),"",IF((H25*(1-F25)-1)>=coeff!$B$5,coeff!$B$3/coeff!$B$4*(H25*(1-F25)-1)/(H25-1),"")) -> 
I26: =IF(OR(F26="",G26=""),"",IF((G26*F26-1)>=coeff!$B$5,coeff!$B$3/coeff!$B$4*(G26*F26-1)/(G26-1),"")) ->  | J26: =IF(OR(F26="",H26=""),"",IF((H26*(1-F26)-1)>=coeff!$B$5,coeff!$B$3/coeff!$B$4*(H26*(1-F26)-1)/(H26-1),"")) -> 
I27: =IF(OR(F27="",G27=""),"",IF((G27*F27-1)>=coeff!$B$5,coeff!$B$3/coeff!$B$4*(G27*F27-1)/(G27-1),"")) ->  | J27: =IF(OR(F27="",H27=""),"",IF((H27*(1-F27)-1)>=coeff!$B$5,coeff!$B$3/coeff!$B$4*(H27*(1-F27)-1)/(H27-1),"")) -> 
I28: =IF(OR(F28="",G28=""),"",IF((G28*F28-1)>=coeff!$B$5,coeff!$B$3/coeff!$B$4*(G28*F28-1)/(G28-1),"")) ->  | J28: =IF(OR(F28="",H28=""),"",IF((H28*(1-F28)-1)>=coeff!$B$5,coeff!$B$3/coeff!$B$4*(H28*(1-F28)-1)/(H28-1),"")) -> 
I29: =IF(OR(F29="",G29=""),"",IF((G29*F29-1)>=coeff!$B$5,coeff!$B$3/coeff!$B$4*(G29*F29-1)/(G29-1),"")) ->  | J29: =IF(OR(F29="",H29=""),"",IF((H29*(1-F29)-1)>=coeff!$B$5,coeff!$B$3/coeff!$B$4*(H29*(1-F29)-1)/(H29-1),"")) -> 
I30: =IF(OR(F30="",G30=""),"",IF((G30*F30-1)>=coeff!$B$5,coeff!$B$3/coeff!$B$4*(G30*F30-1)/(G30-1),"")) ->  | J30: =IF(OR(F30="",H30=""),"",IF((H30*(1-F30)-1)>=coeff!$B$5,coeff!$B$3/coeff!$B$4*(H30*(1-F30)-1)/(H30-1),"")) -> 
I31: =IF(OR(F31="",G31=""),"",IF((G31*F31-1)>=coeff!$B$5,coeff!$B$3/coeff!$B$4*(G31*F31-1)/(G31-1),"")) ->  | J31: =IF(OR(F31="",H31=""),"",IF((H31*(1-F31)-1)>=coeff!$B$5,coeff!$B$3/coeff!$B$4*(H31*(1-F31)-1)/(H31-1),"")) -> 
I32: =IF(OR(F32="",G32=""),"",IF((G32*F32-1)>=coeff!$B$5,coeff!$B$3/coeff!$B$4*(G32*F32-1)/(G32-1),"")) ->  | J32: =IF(OR(F32="",H32=""),"",IF((H32*(1-F32)-1)>=coeff!$B$5,coeff!$B$3/coeff!$B$4*(H32*(1-F32)-1)/(H32-1),"")) -> 
I33: =IF(OR(F33="",G33=""),"",IF((G33*F33-1)>=coeff!$B$5,coeff!$B$3/coeff!$B$4*(G33*F33-1)/(G33-1),"")) ->  | J33: =IF(OR(F33="",H33=""),"",IF((H33*(1-F33)-1)>=coeff!$B$5,coeff!$B$3/coeff!$B$4*(H33*(1-F33)-1)/(H33-1),"")) -> 
I34: =IF(OR(F34="",G34=""),"",IF((G34*F34-1)>=coeff!$B$5,coeff!$B$3/coeff!$B$4*(G34*F34-1)/(G34-1),"")) ->  | J34: =IF(OR(F34="",H34=""),"",IF((H34*(1-F34)-1)>=coeff!$B$5,coeff!$B$3/coeff!$B$4*(H34*(1-F34)-1)/(H34-1),"")) -> 
I35: =IF(OR(F35="",G35=""),"",IF((G35*F35-1)>=coeff!$B$5,coeff!$B$3/coeff!$B$4*(G35*F35-1)/(G35-1),"")) ->  | J35: =IF(OR(F35="",H35=""),"",IF((H35*(1-F35)-1)>=coeff!$B$5,coeff!$B$3/coeff!$B$4*(H35*(1-F35)-1)/(H35-1),"")) -> 
I36: =IF(OR(F36="",G36=""),"",IF((G36*F36-1)>=coeff!$B$5,coeff!$B$3/coeff!$B$4*(G36*F36-1)/(G36-1),"")) ->  | J36: =IF(OR(F36="",H36=""),"",IF((H36*(1-F36)-1)>=coeff!$B$5,coeff!$B$3/coeff!$B$4*(H36*(1-F36)-1)/(H36-1),"")) -> 
I37: =IF(OR(F37="",G37=""),"",IF((G37*F37-1)>=coeff!$B$5,coeff!$B$3/coeff!$B$4*(G37*F37-1)/(G37-1),"")) ->  | J37: =IF(OR(F37="",H37=""),"",IF((H37*(1-F37)-1)>=coeff!$B$5,coeff!$B$3/coeff!$B$4*(H37*(1-F37)-1)/(H37-1),"")) -> 
I38: =IF(OR(F38="",G38=""),"",IF((G38*F38-1)>=coeff!$B$5,coeff!$B$3/coeff!$B$4*(G38*F38-1)/(G38-1),"")) ->  | J38: =IF(OR(F38="",H38=""),"",IF((H38*(1-F38)-1)>=coeff!$B$5,coeff!$B$3/coeff!$B$4*(H38*(1-F38)-1)/(H38-1),"")) -> 
I39: =IF(OR(F39="",G39=""),"",IF((G39*F39-1)>=coeff!$B$5,coeff!$B$3/coeff!$B$4*(G39*F39-1)/(G39-1),"")) ->  | J39: =IF(OR(F39="",H39=""),"",IF((H39*(1-F39)-1)>=coeff!$B$5,coeff!$B$3/coeff!$B$4*(H39*(1-F39)-1)/(H39-1),"")) -> 
I40: =IF(OR(F40="",G40=""),"",IF((G40*F40-1)>=coeff!$B$5,coeff!$B$3/coeff!$B$4*(G40*F40-1)/(G40-1),"")) ->  | J40: =IF(OR(F40="",H40=""),"",IF((H40*(1-F40)-1)>=coeff!$B$5,coeff!$B$3/coeff!$B$4*(H40*(1-F40)-1)/(H40-1),"")) -> 
I41: =IF(OR(F41="",G41=""),"",IF((G41*F41-1)>=coeff!$B$5,coeff!$B$3/coeff!$B$4*(G41*F41-1)/(G41-1),"")) ->  | J41: =IF(OR(F41="",H41=""),"",IF((H41*(1-F41)-1)>=coeff!$B$5,coeff!$B$3/coeff!$B$4*(H41*(1-F41)-1)/(H41-1),"")) -> 
I42: =IF(OR(F42="",G42=""),"",IF((G42*F42-1)>=coeff!$B$5,coeff!$B$3/coeff!$B$4*(G42*F42-1)/(G42-1),"")) ->  | J42: =IF(OR(F42="",H42=""),"",IF((H42*(1-F42)-1)>=coeff!$B$5,coeff!$B$3/coeff!$B$4*(H42*(1-F42)-1)/(H42-1),"")) -> 
I43: =IF(OR(F43="",G43=""),"",IF((G43*F43-1)>=coeff!$B$5,coeff!$B$3/coeff!$B$4*(G43*F43-1)/(G43-1),"")) ->  | J43: =IF(OR(F43="",H43=""),"",IF((H43*(1-F43)-1)>=coeff!$B$5,coeff!$B$3/coeff!$B$4*(H43*(1-F43)-1)/(H43-1),"")) -> 
I44: =IF(OR(F44="",G44=""),"",IF((G44*F44-1)>=coeff!$B$5,coeff!$B$3/coeff!$B$4*(G44*F44-1)/(G44-1),"")) ->  | J44: =IF(OR(F44="",H44=""),"",IF((H44*(1-F44)-1)>=coeff!$B$5,coeff!$B$3/coeff!$B$4*(H44*(1-F44)-1)/(H44-1),"")) -> 
I45: =IF(OR(F45="",G45=""),"",IF((G45*F45-1)>=coeff!$B$5,coeff!$B$3/coeff!$B$4*(G45*F45-1)/(G45-1),"")) ->  | J45: =IF(OR(F45="",H45=""),"",IF((H45*(1-F45)-1)>=coeff!$B$5,coeff!$B$3/coeff!$B$4*(H45*(1-F45)-1)/(H45-1),"")) -> 
I46: =IF(OR(F46="",G46=""),"",IF((G46*F46-1)>=coeff!$B$5,coeff!$B$3/coeff!$B$4*(G46*F46-1)/(G46-1),"")) ->  | J46: =IF(OR(F46="",H46=""),"",IF((H46*(1-F46)-1)>=coeff!$B$5,coeff!$B$3/coeff!$B$4*(H46*(1-F46)-1)/(H46-1),"")) -> 
I47: =IF(OR(F47="",G47=""),"",IF((G47*F47-1)>=coeff!$B$5,coeff!$B$3/coeff!$B$4*(G47*F47-1)/(G47-1),"")) ->  | J47: =IF(OR(F47="",H47=""),"",IF((H47*(1-F47)-1)>=coeff!$B$5,coeff!$B$3/coeff!$B$4*(H47*(1-F47)-1)/(H47-1),"")) -> 
I48: =IF(OR(F48="",G48=""),"",IF((G48*F48-1)>=coeff!$B$5,coeff!$B$3/coeff!$B$4*(G48*F48-1)/(G48-1),"")) ->  | J48: =IF(OR(F48="",H48=""),"",IF((H48*(1-F48)-1)>=coeff!$B$5,coeff!$B$3/coeff!$B$4*(H48*(1-F48)-1)/(H48-1),"")) -> 
I49: =IF(OR(F49="",G49=""),"",IF((G49*F49-1)>=coeff!$B$5,coeff!$B$3/coeff!$B$4*(G49*F49-1)/(G49-1),"")) ->  | J49: =IF(OR(F49="",H49=""),"",IF((H49*(1-F49)-1)>=coeff!$B$5,coeff!$B$3/coeff!$B$4*(H49*(1-F49)-1)/(H49-1),"")) -> 
I50: =IF(OR(F50="",G50=""),"",IF((G50*F50-1)>=coeff!$B$5,coeff!$B$3/coeff!$B$4*(G50*F50-1)/(G50-1),"")) ->  | J50: =IF(OR(F50="",H50=""),"",IF((H50*(1-F50)-1)>=coeff!$B$5,coeff!$B$3/coeff!$B$4*(H50*(1-F50)-1)/(H50-1),"")) -> 
I51: =IF(OR(F51="",G51=""),"",IF((G51*F51-1)>=coeff!$B$5,coeff!$B$3/coeff!$B$4*(G51*F51-1)/(G51-1),"")) ->  | J51: =IF(OR(F51="",H51=""),"",IF((H51*(1-F51)-1)>=coeff!$B$5,coeff!$B$3/coeff!$B$4*(H51*(1-F51)-1)/(H51-1),"")) -> 
I52: =IF(OR(F52="",G52=""),"",IF((G52*F52-1)>=coeff!$B$5,coeff!$B$3/coeff!$B$4*(G52*F52-1)/(G52-1),"")) ->  | J52: =IF(OR(F52="",H52=""),"",IF((H52*(1-F52)-1)>=coeff!$B$5,coeff!$B$3/coeff!$B$4*(H52*(1-F52)-1)/(H52-1),"")) -> 
I53: =IF(OR(F53="",G53=""),"",IF((G53*F53-1)>=coeff!$B$5,coeff!$B$3/coeff!$B$4*(G53*F53-1)/(G53-1),"")) ->  | J53: =IF(OR(F53="",H53=""),"",IF((H53*(1-F53)-1)>=coeff!$B$5,coeff!$B$3/coeff!$B$4*(H53*(1-F53)-1)/(H53-1),"")) -> 
I54: =IF(OR(F54="",G54=""),"",IF((G54*F54-1)>=coeff!$B$5,coeff!$B$3/coeff!$B$4*(G54*F54-1)/(G54-1),"")) ->  | J54: =IF(OR(F54="",H54=""),"",IF((H54*(1-F54)-1)>=coeff!$B$5,coeff!$B$3/coeff!$B$4*(H54*(1-F54)-1)/(H54-1),"")) -> 
I55: =IF(OR(F55="",G55=""),"",IF((G55*F55-1)>=coeff!$B$5,coeff!$B$3/coeff!$B$4*(G55*F55-1)/(G55-1),"")) ->  | J55: =IF(OR(F55="",H55=""),"",IF((H55*(1-F55)-1)>=coeff!$B$5,coeff!$B$3/coeff!$B$4*(H55*(1-F55)-1)/(H55-1),"")) -> 
I56: =IF(OR(F56="",G56=""),"",IF((G56*F56-1)>=coeff!$B$5,coeff!$B$3/coeff!$B$4*(G56*F56-1)/(G56-1),"")) ->  | J56: =IF(OR(F56="",H56=""),"",IF((H56*(1-F56)-1)>=coeff!$B$5,coeff!$B$3/coeff!$B$4*(H56*(1-F56)-1)/(H56-1),"")) -> 
I57: =IF(OR(F57="",G57=""),"",IF((G57*F57-1)>=coeff!$B$5,coeff!$B$3/coeff!$B$4*(G57*F57-1)/(G57-1),"")) ->  | J57: =IF(OR(F57="",H57=""),"",IF((H57*(1-F57)-1)>=coeff!$B$5,coeff!$B$3/coeff!$B$4*(H57*(1-F57)-1)/(H57-1),"")) -> 
I58: =IF(OR(F58="",G58=""),"",IF((G58*F58-1)>=coeff!$B$5,coeff!$B$3/coeff!$B$4*(G58*F58-1)/(G58-1),"")) ->  | J58: =IF(OR(F58="",H58=""),"",IF((H58*(1-F58)-1)>=coeff!$B$5,coeff!$B$3/coeff!$B$4*(H58*(1-F58)-1)/(H58-1),"")) -> 
I59: =IF(OR(F59="",G59=""),"",IF((G59*F59-1)>=coeff!$B$5,coeff!$B$3/coeff!$B$4*(G59*F59-1)/(G59-1),"")) ->  | J59: =IF(OR(F59="",H59=""),"",IF((H59*(1-F59)-1)>=coeff!$B$5,coeff!$B$3/coeff!$B$4*(H59*(1-F59)-1)/(H59-1),"")) -> 
I60: =IF(OR(F60="",G60=""),"",IF((G60*F60-1)>=coeff!$B$5,coeff!$B$3/coeff!$B$4*(G60*F60-1)/(G60-1),"")) ->  | J60: =IF(OR(F60="",H60=""),"",IF((H60*(1-F60)-1)>=coeff!$B$5,coeff!$B$3/coeff!$B$4*(H60*(1-F60)-1)/(H60-1),"")) -> 
I61: =IF(OR(F61="",G61=""),"",IF((G61*F61-1)>=coeff!$B$5,coeff!$B$3/coeff!$B$4*(G61*F61-1)/(G61-1),"")) ->  | J61: =IF(OR(F61="",H61=""),"",IF((H61*(1-F61)-1)>=coeff!$B$5,coeff!$B$3/coeff!$B$4*(H61*(1-F61)-1)/(H61-1),"")) -> 
I62: =IF(OR(F62="",G62=""),"",IF((G62*F62-1)>=coeff!$B$5,coeff!$B$3/coeff!$B$4*(G62*F62-1)/(G62-1),"")) ->  | J62: =IF(OR(F62="",H62=""),"",IF((H62*(1-F62)-1)>=coeff!$B$5,coeff!$B$3/coeff!$B$4*(H62*(1-F62)-1)/(H62-1),"")) -> 
I63: =IF(OR(F63="",G63=""),"",IF((G63*F63-1)>=coeff!$B$5,coeff!$B$3/coeff!$B$4*(G63*F63-1)/(G63-1),"")) ->  | J63: =IF(OR(F63="",H63=""),"",IF((H63*(1-F63)-1)>=coeff!$B$5,coeff!$B$3/coeff!$B$4*(H63*(1-F63)-1)/(H63-1),"")) -> 
I64: =IF(OR(F64="",G64=""),"",IF((G64*F64-1)>=coeff!$B$5,coeff!$B$3/coeff!$B$4*(G64*F64-1)/(G64-1),"")) ->  | J64: =IF(OR(F64="",H64=""),"",IF((H64*(1-F64)-1)>=coeff!$B$5,coeff!$B$3/coeff!$B$4*(H64*(1-F64)-1)/(H64-1),"")) -> 
I65: =IF(OR(F65="",G65=""),"",IF((G65*F65-1)>=coeff!$B$5,coeff!$B$3/coeff!$B$4*(G65*F65-1)/(G65-1),"")) ->  | J65: =IF(OR(F65="",H65=""),"",IF((H65*(1-F65)-1)>=coeff!$B$5,coeff!$B$3/coeff!$B$4*(H65*(1-F65)-1)/(H65-1),"")) -> 
I66: =IF(OR(F66="",G66=""),"",IF((G66*F66-1)>=coeff!$B$5,coeff!$B$3/coeff!$B$4*(G66*F66-1)/(G66-1),"")) ->  | J66: =IF(OR(F66="",H66=""),"",IF((H66*(1-F66)-1)>=coeff!$B$5,coeff!$B$3/coeff!$B$4*(H66*(1-F66)-1)/(H66-1),"")) -> 
I67: =IF(OR(F67="",G67=""),"",IF((G67*F67-1)>=coeff!$B$5,coeff!$B$3/coeff!$B$4*(G67*F67-1)/(G67-1),"")) ->  | J67: =IF(OR(F67="",H67=""),"",IF((H67*(1-F67)-1)>=coeff!$B$5,coeff!$B$3/coeff!$B$4*(H67*(1-F67)-1)/(H67-1),"")) -> 
I68: =IF(OR(F68="",G68=""),"",IF((G68*F68-1)>=coeff!$B$5,coeff!$B$3/coeff!$B$4*(G68*F68-1)/(G68-1),"")) ->  | J68: =IF(OR(F68="",H68=""),"",IF((H68*(1-F68)-1)>=coeff!$B$5,coeff!$B$3/coeff!$B$4*(H68*(1-F68)-1)/(H68-1),"")) -> 
I69: =IF(OR(F69="",G69=""),"",IF((G69*F69-1)>=coeff!$B$5,coeff!$B$3/coeff!$B$4*(G69*F69-1)/(G69-1),"")) ->  | J69: =IF(OR(F69="",H69=""),"",IF((H69*(1-F69)-1)>=coeff!$B$5,coeff!$B$3/coeff!$B$4*(H69*(1-F69)-1)/(H69-1),"")) -> 
I70: =IF(OR(F70="",G70=""),"",IF((G70*F70-1)>=coeff!$B$5,coeff!$B$3/coeff!$B$4*(G70*F70-1)/(G70-1),"")) ->  | J70: =IF(OR(F70="",H70=""),"",IF((H70*(1-F70)-1)>=coeff!$B$5,coeff!$B$3/coeff!$B$4*(H70*(1-F70)-1)/(H70-1),"")) -> 
I71: =IF(OR(F71="",G71=""),"",IF((G71*F71-1)>=coeff!$B$5,coeff!$B$3/coeff!$B$4*(G71*F71-1)/(G71-1),"")) ->  | J71: =IF(OR(F71="",H71=""),"",IF((H71*(1-F71)-1)>=coeff!$B$5,coeff!$B$3/coeff!$B$4*(H71*(1-F71)-1)/(H71-1),"")) -> 
I72: =IF(OR(F72="",G72=""),"",IF((G72*F72-1)>=coeff!$B$5,coeff!$B$3/coeff!$B$4*(G72*F72-1)/(G72-1),"")) ->  | J72: =IF(OR(F72="",H72=""),"",IF((H72*(1-F72)-1)>=coeff!$B$5,coeff!$B$3/coeff!$B$4*(H72*(1-F72)-1)/(H72-1),"")) -> 
I73: =IF(OR(F73="",G73=""),"",IF((G73*F73-1)>=coeff!$B$5,coeff!$B$3/coeff!$B$4*(G73*F73-1)/(G73-1),"")) ->  | J73: =IF(OR(F73="",H73=""),"",IF((H73*(1-F73)-1)>=coeff!$B$5,coeff!$B$3/coeff!$B$4*(H73*(1-F73)-1)/(H73-1),"")) -> 
I74: =IF(OR(F74="",G74=""),"",IF((G74*F74-1)>=coeff!$B$5,coeff!$B$3/coeff!$B$4*(G74*F74-1)/(G74-1),"")) ->  | J74: =IF(OR(F74="",H74=""),"",IF((H74*(1-F74)-1)>=coeff!$B$5,coeff!$B$3/coeff!$B$4*(H74*(1-F74)-1)/(H74-1),"")) -> 
I75: =IF(OR(F75="",G75=""),"",IF((G75*F75-1)>=coeff!$B$5,coeff!$B$3/coeff!$B$4*(G75*F75-1)/(G75-1),"")) ->  | J75: =IF(OR(F75="",H75=""),"",IF((H75*(1-F75)-1)>=coeff!$B$5,coeff!$B$3/coeff!$B$4*(H75*(1-F75)-1)/(H75-1),"")) -> 
I76: =IF(OR(F76="",G76=""),"",IF((G76*F76-1)>=coeff!$B$5,coeff!$B$3/coeff!$B$4*(G76*F76-1)/(G76-1),"")) ->  | J76: =IF(OR(F76="",H76=""),"",IF((H76*(1-F76)-1)>=coeff!$B$5,coeff!$B$3/coeff!$B$4*(H76*(1-F76)-1)/(H76-1),"")) -> 
I77: =IF(OR(F77="",G77=""),"",IF((G77*F77-1)>=coeff!$B$5,coeff!$B$3/coeff!$B$4*(G77*F77-1)/(G77-1),"")) ->  | J77: =IF(OR(F77="",H77=""),"",IF((H77*(1-F77)-1)>=coeff!$B$5,coeff!$B$3/coeff!$B$4*(H77*(1-F77)-1)/(H77-1),"")) -> 
I78: =IF(OR(F78="",G78=""),"",IF((G78*F78-1)>=coeff!$B$5,coeff!$B$3/coeff!$B$4*(G78*F78-1)/(G78-1),"")) ->  | J78: =IF(OR(F78="",H78=""),"",IF((H78*(1-F78)-1)>=coeff!$B$5,coeff!$B$3/coeff!$B$4*(H78*(1-F78)-1)/(H78-1),"")) -> 
I79: =IF(OR(F79="",G79=""),"",IF((G79*F79-1)>=coeff!$B$5,coeff!$B$3/coeff!$B$4*(G79*F79-1)/(G79-1),"")) ->  | J79: =IF(OR(F79="",H79=""),"",IF((H79*(1-F79)-1)>=coeff!$B$5,coeff!$B$3/coeff!$B$4*(H79*(1-F79)-1)/(H79-1),"")) -> 
I80: =IF(OR(F80="",G80=""),"",IF((G80*F80-1)>=coeff!$B$5,coeff!$B$3/coeff!$B$4*(G80*F80-1)/(G80-1),"")) ->  | J80: =IF(OR(F80="",H80=""),"",IF((H80*(1-F80)-1)>=coeff!$B$5,coeff!$B$3/coeff!$B$4*(H80*(1-F80)-1)/(H80-1),"")) -> 
I81: =IF(OR(F81="",G81=""),"",IF((G81*F81-1)>=coeff!$B$5,coeff!$B$3/coeff!$B$4*(G81*F81-1)/(G81-1),"")) ->  | J81: =IF(OR(F81="",H81=""),"",IF((H81*(1-F81)-1)>=coeff!$B$5,coeff!$B$3/coeff!$B$4*(H81*(1-F81)-1)/(H81-1),"")) -> 
I82: =IF(OR(F82="",G82=""),"",IF((G82*F82-1)>=coeff!$B$5,coeff!$B$3/coeff!$B$4*(G82*F82-1)/(G82-1),"")) ->  | J82: =IF(OR(F82="",H82=""),"",IF((H82*(1-F82)-1)>=coeff!$B$5,coeff!$B$3/coeff!$B$4*(H82*(1-F82)-1)/(H82-1),"")) -> 
I83: =IF(OR(F83="",G83=""),"",IF((G83*F83-1)>=coeff!$B$5,coeff!$B$3/coeff!$B$4*(G83*F83-1)/(G83-1),"")) ->  | J83: =IF(OR(F83="",H83=""),"",IF((H83*(1-F83)-1)>=coeff!$B$5,coeff!$B$3/coeff!$B$4*(H83*(1-F83)-1)/(H83-1),"")) -> 
I84: =IF(OR(F84="",G84=""),"",IF((G84*F84-1)>=coeff!$B$5,coeff!$B$3/coeff!$B$4*(G84*F84-1)/(G84-1),"")) ->  | J84: =IF(OR(F84="",H84=""),"",IF((H84*(1-F84)-1)>=coeff!$B$5,coeff!$B$3/coeff!$B$4*(H84*(1-F84)-1)/(H84-1),"")) -> 
I85: =IF(OR(F85="",G85=""),"",IF((G85*F85-1)>=coeff!$B$5,coeff!$B$3/coeff!$B$4*(G85*F85-1)/(G85-1),"")) ->  | J85: =IF(OR(F85="",H85=""),"",IF((H85*(1-F85)-1)>=coeff!$B$5,coeff!$B$3/coeff!$B$4*(H85*(1-F85)-1)/(H85-1),"")) -> 
I86: =IF(OR(F86="",G86=""),"",IF((G86*F86-1)>=coeff!$B$5,coeff!$B$3/coeff!$B$4*(G86*F86-1)/(G86-1),"")) ->  | J86: =IF(OR(F86="",H86=""),"",IF((H86*(1-F86)-1)>=coeff!$B$5,coeff!$B$3/coeff!$B$4*(H86*(1-F86)-1)/(H86-1),"")) -> 
I87: =IF(OR(F87="",G87=""),"",IF((G87*F87-1)>=coeff!$B$5,coeff!$B$3/coeff!$B$4*(G87*F87-1)/(G87-1),"")) ->  | J87: =IF(OR(F87="",H87=""),"",IF((H87*(1-F87)-1)>=coeff!$B$5,coeff!$B$3/coeff!$B$4*(H87*(1-F87)-1)/(H87-1),"")) -> 
I88: =IF(OR(F88="",G88=""),"",IF((G88*F88-1)>=coeff!$B$5,coeff!$B$3/coeff!$B$4*(G88*F88-1)/(G88-1),"")) ->  | J88: =IF(OR(F88="",H88=""),"",IF((H88*(1-F88)-1)>=coeff!$B$5,coeff!$B$3/coeff!$B$4*(H88*(1-F88)-1)/(H88-1),"")) -> 
I89: =IF(OR(F89="",G89=""),"",IF((G89*F89-1)>=coeff!$B$5,coeff!$B$3/coeff!$B$4*(G89*F89-1)/(G89-1),"")) ->  | J89: =IF(OR(F89="",H89=""),"",IF((H89*(1-F89)-1)>=coeff!$B$5,coeff!$B$3/coeff!$B$4*(H89*(1-F89)-1)/(H89-1),"")) -> 
I90: =IF(OR(F90="",G90=""),"",IF((G90*F90-1)>=coeff!$B$5,coeff!$B$3/coeff!$B$4*(G90*F90-1)/(G90-1),"")) ->  | J90: =IF(OR(F90="",H90=""),"",IF((H90*(1-F90)-1)>=coeff!$B$5,coeff!$B$3/coeff!$B$4*(H90*(1-F90)-1)/(H90-1),"")) -> 
I91: =IF(OR(F91="",G91=""),"",IF((G91*F91-1)>=coeff!$B$5,coeff!$B$3/coeff!$B$4*(G91*F91-1)/(G91-1),"")) ->  | J91: =IF(OR(F91="",H91=""),"",IF((H91*(1-F91)-1)>=coeff!$B$5,coeff!$B$3/coeff!$B$4*(H91*(1-F91)-1)/(H91-1),"")) -> 
I92: =IF(OR(F92="",G92=""),"",IF((G92*F92-1)>=coeff!$B$5,coeff!$B$3/coeff!$B$4*(G92*F92-1)/(G92-1),"")) ->  | J92: =IF(OR(F92="",H92=""),"",IF((H92*(1-F92)-1)>=coeff!$B$5,coeff!$B$3/coeff!$B$4*(H92*(1-F92)-1)/(H92-1),"")) -> 
I93: =IF(OR(F93="",G93=""),"",IF((G93*F93-1)>=coeff!$B$5,coeff!$B$3/coeff!$B$4*(G93*F93-1)/(G93-1),"")) ->  | J93: =IF(OR(F93="",H93=""),"",IF((H93*(1-F93)-1)>=coeff!$B$5,coeff!$B$3/coeff!$B$4*(H93*(1-F93)-1)/(H93-1),"")) -> 
I94: =IF(OR(F94="",G94=""),"",IF((G94*F94-1)>=coeff!$B$5,coeff!$B$3/coeff!$B$4*(G94*F94-1)/(G94-1),"")) ->  | J94: =IF(OR(F94="",H94=""),"",IF((H94*(1-F94)-1)>=coeff!$B$5,coeff!$B$3/coeff!$B$4*(H94*(1-F94)-1)/(H94-1),"")) -> 
I95: =IF(OR(F95="",G95=""),"",IF((G95*F95-1)>=coeff!$B$5,coeff!$B$3/coeff!$B$4*(G95*F95-1)/(G95-1),"")) ->  | J95: =IF(OR(F95="",H95=""),"",IF((H95*(1-F95)-1)>=coeff!$B$5,coeff!$B$3/coeff!$B$4*(H95*(1-F95)-1)/(H95-1),"")) -> 
I96: =IF(OR(F96="",G96=""),"",IF((G96*F96-1)>=coeff!$B$5,coeff!$B$3/coeff!$B$4*(G96*F96-1)/(G96-1),"")) ->  | J96: =IF(OR(F96="",H96=""),"",IF((H96*(1-F96)-1)>=coeff!$B$5,coeff!$B$3/coeff!$B$4*(H96*(1-F96)-1)/(H96-1),"")) -> 
I97: =IF(OR(F97="",G97=""),"",IF((G97*F97-1)>=coeff!$B$5,coeff!$B$3/coeff!$B$4*(G97*F97-1)/(G97-1),"")) ->  | J97: =IF(OR(F97="",H97=""),"",IF((H97*(1-F97)-1)>=coeff!$B$5,coeff!$B$3/coeff!$B$4*(H97*(1-F97)-1)/(H97-1),"")) -> 
I98: =IF(OR(F98="",G98=""),"",IF((G98*F98-1)>=coeff!$B$5,coeff!$B$3/coeff!$B$4*(G98*F98-1)/(G98-1),"")) ->  | J98: =IF(OR(F98="",H98=""),"",IF((H98*(1-F98)-1)>=coeff!$B$5,coeff!$B$3/coeff!$B$4*(H98*(1-F98)-1)/(H98-1),"")) -> 
I99: =IF(OR(F99="",G99=""),"",IF((G99*F99-1)>=coeff!$B$5,coeff!$B$3/coeff!$B$4*(G99*F99-1)/(G99-1),"")) ->  | J99: =IF(OR(F99="",H99=""),"",IF((H99*(1-F99)-1)>=coeff!$B$5,coeff!$B$3/coeff!$B$4*(H99*(1-F99)-1)/(H99-1),"")) -> 
I100: =IF(OR(F100="",G100=""),"",IF((G100*F100-1)>=coeff!$B$5,coeff!$B$3/coeff!$B$4*(G100*F100-1)/(G100-1),"")) ->  | J100: =IF(OR(F100="",H100=""),"",IF((H100*(1-F100)-1)>=coeff!$B$5,coeff!$B$3/coeff!$B$4*(H100*(1-F100)-1)/(H100-1),"")) -> 
I101: =IF(OR(F101="",G101=""),"",IF((G101*F101-1)>=coeff!$B$5,coeff!$B$3/coeff!$B$4*(G101*F101-1)/(G101-1),"")) ->  | J101: =IF(OR(F101="",H101=""),"",IF((H101*(1-F101)-1)>=coeff!$B$5,coeff!$B$3/coeff!$B$4*(H101*(1-F101)-1)/(H101-1),"")) -> 
I102: =IF(OR(F102="",G102=""),"",IF((G102*F102-1)>=coeff!$B$5,coeff!$B$3/coeff!$B$4*(G102*F102-1)/(G102-1),"")) ->  | J102: =IF(OR(F102="",H102=""),"",IF((H102*(1-F102)-1)>=coeff!$B$5,coeff!$B$3/coeff!$B$4*(H102*(1-F102)-1)/(H102-1),"")) -> 
I103: =IF(OR(F103="",G103=""),"",IF((G103*F103-1)>=coeff!$B$5,coeff!$B$3/coeff!$B$4*(G103*F103-1)/(G103-1),"")) ->  | J103: =IF(OR(F103="",H103=""),"",IF((H103*(1-F103)-1)>=coeff!$B$5,coeff!$B$3/coeff!$B$4*(H103*(1-F103)-1)/(H103-1),"")) -> 
I104: =IF(OR(F104="",G104=""),"",IF((G104*F104-1)>=coeff!$B$5,coeff!$B$3/coeff!$B$4*(G104*F104-1)/(G104-1),"")) ->  | J104: =IF(OR(F104="",H104=""),"",IF((H104*(1-F104)-1)>=coeff!$B$5,coeff!$B$3/coeff!$B$4*(H104*(1-F104)-1)/(H104-1),"")) -> 
I105: =IF(OR(F105="",G105=""),"",IF((G105*F105-1)>=coeff!$B$5,coeff!$B$3/coeff!$B$4*(G105*F105-1)/(G105-1),"")) ->  | J105: =IF(OR(F105="",H105=""),"",IF((H105*(1-F105)-1)>=coeff!$B$5,coeff!$B$3/coeff!$B$4*(H105*(1-F105)-1)/(H105-1),"")) -> 
I106: =IF(OR(F106="",G106=""),"",IF((G106*F106-1)>=coeff!$B$5,coeff!$B$3/coeff!$B$4*(G106*F106-1)/(G106-1),"")) ->  | J106: =IF(OR(F106="",H106=""),"",IF((H106*(1-F106)-1)>=coeff!$B$5,coeff!$B$3/coeff!$B$4*(H106*(1-F106)-1)/(H106-1),"")) -> 
I107: =IF(OR(F107="",G107=""),"",IF((G107*F107-1)>=coeff!$B$5,coeff!$B$3/coeff!$B$4*(G107*F107-1)/(G107-1),"")) ->  | J107: =IF(OR(F107="",H107=""),"",IF((H107*(1-F107)-1)>=coeff!$B$5,coeff!$B$3/coeff!$B$4*(H107*(1-F107)-1)/(H107-1),"")) -> 
I108: =IF(OR(F108="",G108=""),"",IF((G108*F108-1)>=coeff!$B$5,coeff!$B$3/coeff!$B$4*(G108*F108-1)/(G108-1),"")) ->  | J108: =IF(OR(F108="",H108=""),"",IF((H108*(1-F108)-1)>=coeff!$B$5,coeff!$B$3/coeff!$B$4*(H108*(1-F108)-1)/(H108-1),"")) -> 
I109: =IF(OR(F109="",G109=""),"",IF((G109*F109-1)>=coeff!$B$5,coeff!$B$3/coeff!$B$4*(G109*F109-1)/(G109-1),"")) ->  | J109: =IF(OR(F109="",H109=""),"",IF((H109*(1-F109)-1)>=coeff!$B$5,coeff!$B$3/coeff!$B$4*(H109*(1-F109)-1)/(H109-1),"")) -> 
I110: =IF(OR(F110="",G110=""),"",IF((G110*F110-1)>=coeff!$B$5,coeff!$B$3/coeff!$B$4*(G110*F110-1)/(G110-1),"")) ->  | J110: =IF(OR(F110="",H110=""),"",IF((H110*(1-F110)-1)>=coeff!$B$5,coeff!$B$3/coeff!$B$4*(H110*(1-F110)-1)/(H110-1),"")) -> 
I111: =IF(OR(F111="",G111=""),"",IF((G111*F111-1)>=coeff!$B$5,coeff!$B$3/coeff!$B$4*(G111*F111-1)/(G111-1),"")) ->  | J111: =IF(OR(F111="",H111=""),"",IF((H111*(1-F111)-1)>=coeff!$B$5,coeff!$B$3/coeff!$B$4*(H111*(1-F111)-1)/(H111-1),"")) -> 
I112: =IF(OR(F112="",G112=""),"",IF((G112*F112-1)>=coeff!$B$5,coeff!$B$3/coeff!$B$4*(G112*F112-1)/(G112-1),"")) ->  | J112: =IF(OR(F112="",H112=""),"",IF((H112*(1-F112)-1)>=coeff!$B$5,coeff!$B$3/coeff!$B$4*(H112*(1-F112)-1)/(H112-1),"")) -> 
I113: =IF(OR(F113="",G113=""),"",IF((G113*F113-1)>=coeff!$B$5,coeff!$B$3/coeff!$B$4*(G113*F113-1)/(G113-1),"")) ->  | J113: =IF(OR(F113="",H113=""),"",IF((H113*(1-F113)-1)>=coeff!$B$5,coeff!$B$3/coeff!$B$4*(H113*(1-F113)-1)/(H113-1),"")) -> 
I114: =IF(OR(F114="",G114=""),"",IF((G114*F114-1)>=coeff!$B$5,coeff!$B$3/coeff!$B$4*(G114*F114-1)/(G114-1),"")) ->  | J114: =IF(OR(F114="",H114=""),"",IF((H114*(1-F114)-1)>=coeff!$B$5,coeff!$B$3/coeff!$B$4*(H114*(1-F114)-1)/(H114-1),"")) -> 
I115: =IF(OR(F115="",G115=""),"",IF((G115*F115-1)>=coeff!$B$5,coeff!$B$3/coeff!$B$4*(G115*F115-1)/(G115-1),"")) ->  | J115: =IF(OR(F115="",H115=""),"",IF((H115*(1-F115)-1)>=coeff!$B$5,coeff!$B$3/coeff!$B$4*(H115*(1-F115)-1)/(H115-1),"")) -> 
I116: =IF(OR(F116="",G116=""),"",IF((G116*F116-1)>=coeff!$B$5,coeff!$B$3/coeff!$B$4*(G116*F116-1)/(G116-1),"")) ->  | J116: =IF(OR(F116="",H116=""),"",IF((H116*(1-F116)-1)>=coeff!$B$5,coeff!$B$3/coeff!$B$4*(H116*(1-F116)-1)/(H116-1),"")) -> 
I117: =IF(OR(F117="",G117=""),"",IF((G117*F117-1)>=coeff!$B$5,coeff!$B$3/coeff!$B$4*(G117*F117-1)/(G117-1),"")) ->  | J117: =IF(OR(F117="",H117=""),"",IF((H117*(1-F117)-1)>=coeff!$B$5,coeff!$B$3/coeff!$B$4*(H117*(1-F117)-1)/(H117-1),"")) -> 
I118: =IF(OR(F118="",G118=""),"",IF((G118*F118-1)>=coeff!$B$5,coeff!$B$3/coeff!$B$4*(G118*F118-1)/(G118-1),"")) ->  | J118: =IF(OR(F118="",H118=""),"",IF((H118*(1-F118)-1)>=coeff!$B$5,coeff!$B$3/coeff!$B$4*(H118*(1-F118)-1)/(H118-1),"")) -> 
I119: =IF(OR(F119="",G119=""),"",IF((G119*F119-1)>=coeff!$B$5,coeff!$B$3/coeff!$B$4*(G119*F119-1)/(G119-1),"")) ->  | J119: =IF(OR(F119="",H119=""),"",IF((H119*(1-F119)-1)>=coeff!$B$5,coeff!$B$3/coeff!$B$4*(H119*(1-F119)-1)/(H119-1),"")) -> 
I120: =IF(OR(F120="",G120=""),"",IF((G120*F120-1)>=coeff!$B$5,coeff!$B$3/coeff!$B$4*(G120*F120-1)/(G120-1),"")) ->  | J120: =IF(OR(F120="",H120=""),"",IF((H120*(1-F120)-1)>=coeff!$B$5,coeff!$B$3/coeff!$B$4*(H120*(1-F120)-1)/(H120-1),"")) -> 
I121: =IF(OR(F121="",G121=""),"",IF((G121*F121-1)>=coeff!$B$5,coeff!$B$3/coeff!$B$4*(G121*F121-1)/(G121-1),"")) ->  | J121: =IF(OR(F121="",H121=""),"",IF((H121*(1-F121)-1)>=coeff!$B$5,coeff!$B$3/coeff!$B$4*(H121*(1-F121)-1)/(H121-1),"")) -> 
I122: =IF(OR(F122="",G122=""),"",IF((G122*F122-1)>=coeff!$B$5,coeff!$B$3/coeff!$B$4*(G122*F122-1)/(G122-1),"")) ->  | J122: =IF(OR(F122="",H122=""),"",IF((H122*(1-F122)-1)>=coeff!$B$5,coeff!$B$3/coeff!$B$4*(H122*(1-F122)-1)/(H122-1),"")) -> 
I123: =IF(OR(F123="",G123=""),"",IF((G123*F123-1)>=coeff!$B$5,coeff!$B$3/coeff!$B$4*(G123*F123-1)/(G123-1),"")) ->  | J123: =IF(OR(F123="",H123=""),"",IF((H123*(1-F123)-1)>=coeff!$B$5,coeff!$B$3/coeff!$B$4*(H123*(1-F123)-1)/(H123-1),"")) -> 
I124: =IF(OR(F124="",G124=""),"",IF((G124*F124-1)>=coeff!$B$5,coeff!$B$3/coeff!$B$4*(G124*F124-1)/(G124-1),"")) ->  | J124: =IF(OR(F124="",H124=""),"",IF((H124*(1-F124)-1)>=coeff!$B$5,coeff!$B$3/coeff!$B$4*(H124*(1-F124)-1)/(H124-1),"")) -> 
I125: =IF(OR(F125="",G125=""),"",IF((G125*F125-1)>=coeff!$B$5,coeff!$B$3/coeff!$B$4*(G125*F125-1)/(G125-1),"")) ->  | J125: =IF(OR(F125="",H125=""),"",IF((H125*(1-F125)-1)>=coeff!$B$5,coeff!$B$3/coeff!$B$4*(H125*(1-F125)-1)/(H125-1),"")) -> 
I126: =IF(OR(F126="",G126=""),"",IF((G126*F126-1)>=coeff!$B$5,coeff!$B$3/coeff!$B$4*(G126*F126-1)/(G126-1),"")) ->  | J126: =IF(OR(F126="",H126=""),"",IF((H126*(1-F126)-1)>=coeff!$B$5,coeff!$B$3/coeff!$B$4*(H126*(1-F126)-1)/(H126-1),"")) -> 
I127: =IF(OR(F127="",G127=""),"",IF((G127*F127-1)>=coeff!$B$5,coeff!$B$3/coeff!$B$4*(G127*F127-1)/(G127-1),"")) ->  | J127: =IF(OR(F127="",H127=""),"",IF((H127*(1-F127)-1)>=coeff!$B$5,coeff!$B$3/coeff!$B$4*(H127*(1-F127)-1)/(H127-1),"")) -> 
I128: =IF(OR(F128="",G128=""),"",IF((G128*F128-1)>=coeff!$B$5,coeff!$B$3/coeff!$B$4*(G128*F128-1)/(G128-1),"")) ->  | J128: =IF(OR(F128="",H128=""),"",IF((H128*(1-F128)-1)>=coeff!$B$5,coeff!$B$3/coeff!$B$4*(H128*(1-F128)-1)/(H128-1),"")) -> 
I129: =IF(OR(F129="",G129=""),"",IF((G129*F129-1)>=coeff!$B$5,coeff!$B$3/coeff!$B$4*(G129*F129-1)/(G129-1),"")) ->  | J129: =IF(OR(F129="",H129=""),"",IF((H129*(1-F129)-1)>=coeff!$B$5,coeff!$B$3/coeff!$B$4*(H129*(1-F129)-1)/(H129-1),"")) -> 
I130: =IF(OR(F130="",G130=""),"",IF((G130*F130-1)>=coeff!$B$5,coeff!$B$3/coeff!$B$4*(G130*F130-1)/(G130-1),"")) ->  | J130: =IF(OR(F130="",H130=""),"",IF((H130*(1-F130)-1)>=coeff!$B$5,coeff!$B$3/coeff!$B$4*(H130*(1-F130)-1)/(H130-1),"")) -> 
I131: =IF(OR(F131="",G131=""),"",IF((G131*F131-1)>=coeff!$B$5,coeff!$B$3/coeff!$B$4*(G131*F131-1)/(G131-1),"")) ->  | J131: =IF(OR(F131="",H131=""),"",IF((H131*(1-F131)-1)>=coeff!$B$5,coeff!$B$3/coeff!$B$4*(H131*(1-F131)-1)/(H131-1),"")) -> 
I132: =IF(OR(F132="",G132=""),"",IF((G132*F132-1)>=coeff!$B$5,coeff!$B$3/coeff!$B$4*(G132*F132-1)/(G132-1),"")) ->  | J132: =IF(OR(F132="",H132=""),"",IF((H132*(1-F132)-1)>=coeff!$B$5,coeff!$B$3/coeff!$B$4*(H132*(1-F132)-1)/(H132-1),"")) -> 
I133: =IF(OR(F133="",G133=""),"",IF((G133*F133-1)>=coeff!$B$5,coeff!$B$3/coeff!$B$4*(G133*F133-1)/(G133-1),"")) ->  | J133: =IF(OR(F133="",H133=""),"",IF((H133*(1-F133)-1)>=coeff!$B$5,coeff!$B$3/coeff!$B$4*(H133*(1-F133)-1)/(H133-1),"")) -> 
I134: =IF(OR(F134="",G134=""),"",IF((G134*F134-1)>=coeff!$B$5,coeff!$B$3/coeff!$B$4*(G134*F134-1)/(G134-1),"")) ->  | J134: =IF(OR(F134="",H134=""),"",IF((H134*(1-F134)-1)>=coeff!$B$5,coeff!$B$3/coeff!$B$4*(H134*(1-F134)-1)/(H134-1),"")) -> 
I135: =IF(OR(F135="",G135=""),"",IF((G135*F135-1)>=coeff!$B$5,coeff!$B$3/coeff!$B$4*(G135*F135-1)/(G135-1),"")) ->  | J135: =IF(OR(F135="",H135=""),"",IF((H135*(1-F135)-1)>=coeff!$B$5,coeff!$B$3/coeff!$B$4*(H135*(1-F135)-1)/(H135-1),"")) -> 
I136: =IF(OR(F136="",G136=""),"",IF((G136*F136-1)>=coeff!$B$5,coeff!$B$3/coeff!$B$4*(G136*F136-1)/(G136-1),"")) ->  | J136: =IF(OR(F136="",H136=""),"",IF((H136*(1-F136)-1)>=coeff!$B$5,coeff!$B$3/coeff!$B$4*(H136*(1-F136)-1)/(H136-1),"")) -> 
I137: =IF(OR(F137="",G137=""),"",IF((G137*F137-1)>=coeff!$B$5,coeff!$B$3/coeff!$B$4*(G137*F137-1)/(G137-1),"")) ->  | J137: =IF(OR(F137="",H137=""),"",IF((H137*(1-F137)-1)>=coeff!$B$5,coeff!$B$3/coeff!$B$4*(H137*(1-F137)-1)/(H137-1),"")) -> 
I138: =IF(OR(F138="",G138=""),"",IF((G138*F138-1)>=coeff!$B$5,coeff!$B$3/coeff!$B$4*(G138*F138-1)/(G138-1),"")) ->  | J138: =IF(OR(F138="",H138=""),"",IF((H138*(1-F138)-1)>=coeff!$B$5,coeff!$B$3/coeff!$B$4*(H138*(1-F138)-1)/(H138-1),"")) -> 
I139: =IF(OR(F139="",G139=""),"",IF((G139*F139-1)>=coeff!$B$5,coeff!$B$3/coeff!$B$4*(G139*F139-1)/(G139-1),"")) ->  | J139: =IF(OR(F139="",H139=""),"",IF((H139*(1-F139)-1)>=coeff!$B$5,coeff!$B$3/coeff!$B$4*(H139*(1-F139)-1)/(H139-1),"")) -> 
I140: =IF(OR(F140="",G140=""),"",IF((G140*F140-1)>=coeff!$B$5,coeff!$B$3/coeff!$B$4*(G140*F140-1)/(G140-1),"")) ->  | J140: =IF(OR(F140="",H140=""),"",IF((H140*(1-F140)-1)>=coeff!$B$5,coeff!$B$3/coeff!$B$4*(H140*(1-F140)-1)/(H140-1),"")) -> 
I141: =IF(OR(F141="",G141=""),"",IF((G141*F141-1)>=coeff!$B$5,coeff!$B$3/coeff!$B$4*(G141*F141-1)/(G141-1),"")) ->  | J141: =IF(OR(F141="",H141=""),"",IF((H141*(1-F141)-1)>=coeff!$B$5,coeff!$B$3/coeff!$B$4*(H141*(1-F141)-1)/(H141-1),"")) -> 
I142: =IF(OR(F142="",G142=""),"",IF((G142*F142-1)>=coeff!$B$5,coeff!$B$3/coeff!$B$4*(G142*F142-1)/(G142-1),"")) ->  | J142: =IF(OR(F142="",H142=""),"",IF((H142*(1-F142)-1)>=coeff!$B$5,coeff!$B$3/coeff!$B$4*(H142*(1-F142)-1)/(H142-1),"")) -> 
I143: =IF(OR(F143="",G143=""),"",IF((G143*F143-1)>=coeff!$B$5,coeff!$B$3/coeff!$B$4*(G143*F143-1)/(G143-1),"")) ->  | J143: =IF(OR(F143="",H143=""),"",IF((H143*(1-F143)-1)>=coeff!$B$5,coeff!$B$3/coeff!$B$4*(H143*(1-F143)-1)/(H143-1),"")) -> 
I144: =IF(OR(F144="",G144=""),"",IF((G144*F144-1)>=coeff!$B$5,coeff!$B$3/coeff!$B$4*(G144*F144-1)/(G144-1),"")) ->  | J144: =IF(OR(F144="",H144=""),"",IF((H144*(1-F144)-1)>=coeff!$B$5,coeff!$B$3/coeff!$B$4*(H144*(1-F144)-1)/(H144-1),"")) -> 
I145: =IF(OR(F145="",G145=""),"",IF((G145*F145-1)>=coeff!$B$5,coeff!$B$3/coeff!$B$4*(G145*F145-1)/(G145-1),"")) ->  | J145: =IF(OR(F145="",H145=""),"",IF((H145*(1-F145)-1)>=coeff!$B$5,coeff!$B$3/coeff!$B$4*(H145*(1-F145)-1)/(H145-1),"")) -> 
I146: =IF(OR(F146="",G146=""),"",IF((G146*F146-1)>=coeff!$B$5,coeff!$B$3/coeff!$B$4*(G146*F146-1)/(G146-1),"")) ->  | J146: =IF(OR(F146="",H146=""),"",IF((H146*(1-F146)-1)>=coeff!$B$5,coeff!$B$3/coeff!$B$4*(H146*(1-F146)-1)/(H146-1),"")) -> 
I147: =IF(OR(F147="",G147=""),"",IF((G147*F147-1)>=coeff!$B$5,coeff!$B$3/coeff!$B$4*(G147*F147-1)/(G147-1),"")) ->  | J147: =IF(OR(F147="",H147=""),"",IF((H147*(1-F147)-1)>=coeff!$B$5,coeff!$B$3/coeff!$B$4*(H147*(1-F147)-1)/(H147-1),"")) -> 
I148: =IF(OR(F148="",G148=""),"",IF((G148*F148-1)>=coeff!$B$5,coeff!$B$3/coeff!$B$4*(G148*F148-1)/(G148-1),"")) ->  | J148: =IF(OR(F148="",H148=""),"",IF((H148*(1-F148)-1)>=coeff!$B$5,coeff!$B$3/coeff!$B$4*(H148*(1-F148)-1)/(H148-1),"")) -> 
I149: =IF(OR(F149="",G149=""),"",IF((G149*F149-1)>=coeff!$B$5,coeff!$B$3/coeff!$B$4*(G149*F149-1)/(G149-1),"")) ->  | J149: =IF(OR(F149="",H149=""),"",IF((H149*(1-F149)-1)>=coeff!$B$5,coeff!$B$3/coeff!$B$4*(H149*(1-F149)-1)/(H149-1),"")) -> 
I150: =IF(OR(F150="",G150=""),"",IF((G150*F150-1)>=coeff!$B$5,coeff!$B$3/coeff!$B$4*(G150*F150-1)/(G150-1),"")) ->  | J150: =IF(OR(F150="",H150=""),"",IF((H150*(1-F150)-1)>=coeff!$B$5,coeff!$B$3/coeff!$B$4*(H150*(1-F150)-1)/(H150-1),"")) -> 
I151: =IF(OR(F151="",G151=""),"",IF((G151*F151-1)>=coeff!$B$5,coeff!$B$3/coeff!$B$4*(G151*F151-1)/(G151-1),"")) ->  | J151: =IF(OR(F151="",H151=""),"",IF((H151*(1-F151)-1)>=coeff!$B$5,coeff!$B$3/coeff!$B$4*(H151*(1-F151)-1)/(H151-1),"")) -> 
I152: =IF(OR(F152="",G152=""),"",IF((G152*F152-1)>=coeff!$B$5,coeff!$B$3/coeff!$B$4*(G152*F152-1)/(G152-1),"")) ->  | J152: =IF(OR(F152="",H152=""),"",IF((H152*(1-F152)-1)>=coeff!$B$5,coeff!$B$3/coeff!$B$4*(H152*(1-F152)-1)/(H152-1),"")) -> 
I153: =IF(OR(F153="",G153=""),"",IF((G153*F153-1)>=coeff!$B$5,coeff!$B$3/coeff!$B$4*(G153*F153-1)/(G153-1),"")) ->  | J153: =IF(OR(F153="",H153=""),"",IF((H153*(1-F153)-1)>=coeff!$B$5,coeff!$B$3/coeff!$B$4*(H153*(1-F153)-1)/(H153-1),"")) -> 
I154: =IF(OR(F154="",G154=""),"",IF((G154*F154-1)>=coeff!$B$5,coeff!$B$3/coeff!$B$4*(G154*F154-1)/(G154-1),"")) ->  | J154: =IF(OR(F154="",H154=""),"",IF((H154*(1-F154)-1)>=coeff!$B$5,coeff!$B$3/coeff!$B$4*(H154*(1-F154)-1)/(H154-1),"")) -> 
I155: =IF(OR(F155="",G155=""),"",IF((G155*F155-1)>=coeff!$B$5,coeff!$B$3/coeff!$B$4*(G155*F155-1)/(G155-1),"")) ->  | J155: =IF(OR(F155="",H155=""),"",IF((H155*(1-F155)-1)>=coeff!$B$5,coeff!$B$3/coeff!$B$4*(H155*(1-F155)-1)/(H155-1),"")) -> 
I156: =IF(OR(F156="",G156=""),"",IF((G156*F156-1)>=coeff!$B$5,coeff!$B$3/coeff!$B$4*(G156*F156-1)/(G156-1),"")) ->  | J156: =IF(OR(F156="",H156=""),"",IF((H156*(1-F156)-1)>=coeff!$B$5,coeff!$B$3/coeff!$B$4*(H156*(1-F156)-1)/(H156-1),"")) -> 
I157: =IF(OR(F157="",G157=""),"",IF((G157*F157-1)>=coeff!$B$5,coeff!$B$3/coeff!$B$4*(G157*F157-1)/(G157-1),"")) ->  | J157: =IF(OR(F157="",H157=""),"",IF((H157*(1-F157)-1)>=coeff!$B$5,coeff!$B$3/coeff!$B$4*(H157*(1-F157)-1)/(H157-1),"")) -> 
I158: =IF(OR(F158="",G158=""),"",IF((G158*F158-1)>=coeff!$B$5,coeff!$B$3/coeff!$B$4*(G158*F158-1)/(G158-1),"")) ->  | J158: =IF(OR(F158="",H158=""),"",IF((H158*(1-F158)-1)>=coeff!$B$5,coeff!$B$3/coeff!$B$4*(H158*(1-F158)-1)/(H158-1),"")) -> 
I159: =IF(OR(F159="",G159=""),"",IF((G159*F159-1)>=coeff!$B$5,coeff!$B$3/coeff!$B$4*(G159*F159-1)/(G159-1),"")) ->  | J159: =IF(OR(F159="",H159=""),"",IF((H159*(1-F159)-1)>=coeff!$B$5,coeff!$B$3/coeff!$B$4*(H159*(1-F159)-1)/(H159-1),"")) -> 
I160: =IF(OR(F160="",G160=""),"",IF((G160*F160-1)>=coeff!$B$5,coeff!$B$3/coeff!$B$4*(G160*F160-1)/(G160-1),"")) ->  | J160: =IF(OR(F160="",H160=""),"",IF((H160*(1-F160)-1)>=coeff!$B$5,coeff!$B$3/coeff!$B$4*(H160*(1-F160)-1)/(H160-1),"")) -> 
I161: =IF(OR(F161="",G161=""),"",IF((G161*F161-1)>=coeff!$B$5,coeff!$B$3/coeff!$B$4*(G161*F161-1)/(G161-1),"")) ->  | J161: =IF(OR(F161="",H161=""),"",IF((H161*(1-F161)-1)>=coeff!$B$5,coeff!$B$3/coeff!$B$4*(H161*(1-F161)-1)/(H161-1),"")) -> 
I162: =IF(OR(F162="",G162=""),"",IF((G162*F162-1)>=coeff!$B$5,coeff!$B$3/coeff!$B$4*(G162*F162-1)/(G162-1),"")) ->  | J162: =IF(OR(F162="",H162=""),"",IF((H162*(1-F162)-1)>=coeff!$B$5,coeff!$B$3/coeff!$B$4*(H162*(1-F162)-1)/(H162-1),"")) -> 
I163: =IF(OR(F163="",G163=""),"",IF((G163*F163-1)>=coeff!$B$5,coeff!$B$3/coeff!$B$4*(G163*F163-1)/(G163-1),"")) ->  | J163: =IF(OR(F163="",H163=""),"",IF((H163*(1-F163)-1)>=coeff!$B$5,coeff!$B$3/coeff!$B$4*(H163*(1-F163)-1)/(H163-1),"")) -> 
I164: =IF(OR(F164="",G164=""),"",IF((G164*F164-1)>=coeff!$B$5,coeff!$B$3/coeff!$B$4*(G164*F164-1)/(G164-1),"")) ->  | J164: =IF(OR(F164="",H164=""),"",IF((H164*(1-F164)-1)>=coeff!$B$5,coeff!$B$3/coeff!$B$4*(H164*(1-F164)-1)/(H164-1),"")) -> 
I165: =IF(OR(F165="",G165=""),"",IF((G165*F165-1)>=coeff!$B$5,coeff!$B$3/coeff!$B$4*(G165*F165-1)/(G165-1),"")) ->  | J165: =IF(OR(F165="",H165=""),"",IF((H165*(1-F165)-1)>=coeff!$B$5,coeff!$B$3/coeff!$B$4*(H165*(1-F165)-1)/(H165-1),"")) -> 
I166: =IF(OR(F166="",G166=""),"",IF((G166*F166-1)>=coeff!$B$5,coeff!$B$3/coeff!$B$4*(G166*F166-1)/(G166-1),"")) ->  | J166: =IF(OR(F166="",H166=""),"",IF((H166*(1-F166)-1)>=coeff!$B$5,coeff!$B$3/coeff!$B$4*(H166*(1-F166)-1)/(H166-1),"")) -> 
I167: =IF(OR(F167="",G167=""),"",IF((G167*F167-1)>=coeff!$B$5,coeff!$B$3/coeff!$B$4*(G167*F167-1)/(G167-1),"")) ->  | J167: =IF(OR(F167="",H167=""),"",IF((H167*(1-F167)-1)>=coeff!$B$5,coeff!$B$3/coeff!$B$4*(H167*(1-F167)-1)/(H167-1),"")) -> 
I168: =IF(OR(F168="",G168=""),"",IF((G168*F168-1)>=coeff!$B$5,coeff!$B$3/coeff!$B$4*(G168*F168-1)/(G168-1),"")) ->  | J168: =IF(OR(F168="",H168=""),"",IF((H168*(1-F168)-1)>=coeff!$B$5,coeff!$B$3/coeff!$B$4*(H168*(1-F168)-1)/(H168-1),"")) -> 
I169: =IF(OR(F169="",G169=""),"",IF((G169*F169-1)>=coeff!$B$5,coeff!$B$3/coeff!$B$4*(G169*F169-1)/(G169-1),"")) ->  | J169: =IF(OR(F169="",H169=""),"",IF((H169*(1-F169)-1)>=coeff!$B$5,coeff!$B$3/coeff!$B$4*(H169*(1-F169)-1)/(H169-1),"")) -> 
I170: =IF(OR(F170="",G170=""),"",IF((G170*F170-1)>=coeff!$B$5,coeff!$B$3/coeff!$B$4*(G170*F170-1)/(G170-1),"")) ->  | J170: =IF(OR(F170="",H170=""),"",IF((H170*(1-F170)-1)>=coeff!$B$5,coeff!$B$3/coeff!$B$4*(H170*(1-F170)-1)/(H170-1),"")) -> 
I171: =IF(OR(F171="",G171=""),"",IF((G171*F171-1)>=coeff!$B$5,coeff!$B$3/coeff!$B$4*(G171*F171-1)/(G171-1),"")) ->  | J171: =IF(OR(F171="",H171=""),"",IF((H171*(1-F171)-1)>=coeff!$B$5,coeff!$B$3/coeff!$B$4*(H171*(1-F171)-1)/(H171-1),"")) -> 
I172: =IF(OR(F172="",G172=""),"",IF((G172*F172-1)>=coeff!$B$5,coeff!$B$3/coeff!$B$4*(G172*F172-1)/(G172-1),"")) ->  | J172: =IF(OR(F172="",H172=""),"",IF((H172*(1-F172)-1)>=coeff!$B$5,coeff!$B$3/coeff!$B$4*(H172*(1-F172)-1)/(H172-1),"")) -> 
I173: =IF(OR(F173="",G173=""),"",IF((G173*F173-1)>=coeff!$B$5,coeff!$B$3/coeff!$B$4*(G173*F173-1)/(G173-1),"")) ->  | J173: =IF(OR(F173="",H173=""),"",IF((H173*(1-F173)-1)>=coeff!$B$5,coeff!$B$3/coeff!$B$4*(H173*(1-F173)-1)/(H173-1),"")) -> 
I174: =IF(OR(F174="",G174=""),"",IF((G174*F174-1)>=coeff!$B$5,coeff!$B$3/coeff!$B$4*(G174*F174-1)/(G174-1),"")) ->  | J174: =IF(OR(F174="",H174=""),"",IF((H174*(1-F174)-1)>=coeff!$B$5,coeff!$B$3/coeff!$B$4*(H174*(1-F174)-1)/(H174-1),"")) -> 
I175: =IF(OR(F175="",G175=""),"",IF((G175*F175-1)>=coeff!$B$5,coeff!$B$3/coeff!$B$4*(G175*F175-1)/(G175-1),"")) ->  | J175: =IF(OR(F175="",H175=""),"",IF((H175*(1-F175)-1)>=coeff!$B$5,coeff!$B$3/coeff!$B$4*(H175*(1-F175)-1)/(H175-1),"")) -> 
I176: =IF(OR(F176="",G176=""),"",IF((G176*F176-1)>=coeff!$B$5,coeff!$B$3/coeff!$B$4*(G176*F176-1)/(G176-1),"")) ->  | J176: =IF(OR(F176="",H176=""),"",IF((H176*(1-F176)-1)>=coeff!$B$5,coeff!$B$3/coeff!$B$4*(H176*(1-F176)-1)/(H176-1),"")) -> 
I177: =IF(OR(F177="",G177=""),"",IF((G177*F177-1)>=coeff!$B$5,coeff!$B$3/coeff!$B$4*(G177*F177-1)/(G177-1),"")) ->  | J177: =IF(OR(F177="",H177=""),"",IF((H177*(1-F177)-1)>=coeff!$B$5,coeff!$B$3/coeff!$B$4*(H177*(1-F177)-1)/(H177-1),"")) -> 
I178: =IF(OR(F178="",G178=""),"",IF((G178*F178-1)>=coeff!$B$5,coeff!$B$3/coeff!$B$4*(G178*F178-1)/(G178-1),"")) ->  | J178: =IF(OR(F178="",H178=""),"",IF((H178*(1-F178)-1)>=coeff!$B$5,coeff!$B$3/coeff!$B$4*(H178*(1-F178)-1)/(H178-1),"")) -> 
I179: =IF(OR(F179="",G179=""),"",IF((G179*F179-1)>=coeff!$B$5,coeff!$B$3/coeff!$B$4*(G179*F179-1)/(G179-1),"")) ->  | J179: =IF(OR(F179="",H179=""),"",IF((H179*(1-F179)-1)>=coeff!$B$5,coeff!$B$3/coeff!$B$4*(H179*(1-F179)-1)/(H179-1),"")) -> 
I180: =IF(OR(F180="",G180=""),"",IF((G180*F180-1)>=coeff!$B$5,coeff!$B$3/coeff!$B$4*(G180*F180-1)/(G180-1),"")) ->  | J180: =IF(OR(F180="",H180=""),"",IF((H180*(1-F180)-1)>=coeff!$B$5,coeff!$B$3/coeff!$B$4*(H180*(1-F180)-1)/(H180-1),"")) -> 
I181: =IF(OR(F181="",G181=""),"",IF((G181*F181-1)>=coeff!$B$5,coeff!$B$3/coeff!$B$4*(G181*F181-1)/(G181-1),"")) ->  | J181: =IF(OR(F181="",H181=""),"",IF((H181*(1-F181)-1)>=coeff!$B$5,coeff!$B$3/coeff!$B$4*(H181*(1-F181)-1)/(H181-1),"")) -> 

Sheet line
M1: Sportpunter's EURO basketball STDs as of 22/02/2016 5:00:30 PM AEST
A3: League | B3: Start Time | C3: Team1 | D3: Team2 | E3: Line | F3: ProbLine1 | G3: Odds1 | H3: Odds2 | I3: $Bet1 | J3: $Bet2 | M3: c | N3: StddevTotal
A4: Greece - Basket League | B4: 2016-02-22 | C4: GS Lavrio | D4: Kolossos | E4: -3 | F4: =IF(h2h!E4="","",NORMDIST(h2h!E4+E4,0,M4,TRUE)) -> 0.4431477082 | G4: 1.93 | H4: 1.93 | I4: =IF(OR(F4="",G4=""),"",IF((G4*F4-1)>=coeff!$B$10,coeff!$B$8/coeff!$B$9*(G4*F4-1)/(G4-1),"")) ->  | J4: =IF(OR(F4="",H4=""),"",IF((H4*(1-F4)-1)>=coeff!$B$10,coeff!$B$8/coeff!$B$9*(H4*(1-F4)-1)/(H4-1),"")) -> 8.034937974 | M4: 16.78399481 | N4: 16.6074805
A5: Greece - Basket League | B5: 2016-02-22 | C5: AO Aiolos Trikallon | D5: A.G.O Rethymno | E5: -4 | F5: =IF(h2h!E5="","",NORMDIST(h2h!E5+E5,0,M5,TRUE)) -> 0.4715012312 | G5: 1.99 | H5: 1.92 | I5: =IF(OR(F5="",G5=""),"",IF((G5*F5-1)>=coeff!$B$10,coeff!$B$8/coeff!$B$9*(G5*F5-1)/(G5-1),"")) ->  | J5: =IF(OR(F5="",H5=""),"",IF((H5*(1-F5)-1)>=coeff!$B$10,coeff!$B$8/coeff!$B$9*(H5*(1-F5)-1)/(H5-1),"")) ->  | M5: 16.78399481 | N5: 16.6074805
A6: Greece - Basket League | B6: 2016-02-22 | C6: AS Koroivos Amaliadas | D6: Olympiakos Piraeus | E6: 21.5 | F6: =IF(h2h!E6="","",NORMDIST(h2h!E6+E6,0,M6,TRUE)) -> 0.516633624 | G6: 1.89 | H6: 1.91 | I6: =IF(OR(F6="",G6=""),"",IF((G6*F6-1)>=coeff!$B$10,coeff!$B$8/coeff!$B$9*(G6*F6-1)/(G6-1),"")) ->  | J6: =IF(OR(F6="",H6=""),"",IF((H6*(1-F6)-1)>=coeff!$B$10,coeff!$B$8/coeff!$B$9*(H6*(1-F6)-1)/(H6-1),"")) ->  | M6: 16.78399481 | N6: 16.6074805
A7: Greece - Basket League | B7: 2016-02-22 | C7: SEFA Arkadikos | D7: Apollon Patras | E7: -1.5 | F7: =IF(h2h!E7="","",NORMDIST(h2h!E7+E7,0,M7,TRUE)) -> 0.3988995722 | G7: 1.93 | H7: 1.93 | I7: =IF(OR(F7="",G7=""),"",IF((G7*F7-1)>=coeff!$B$10,coeff!$B$8/coeff!$B$9*(G7*F7-1)/(G7-1),"")) ->  | J7: =IF(OR(F7="",H7=""),"",IF((H7*(1-F7)-1)>=coeff!$B$10,coeff!$B$8/coeff!$B$9*(H7*(1-F7)-1)/(H7-1),"")) -> 17.21761565 | M7: 16.78399481 | N7: 16.6074805
A8: Argentina - Liga Nacional de Bá | B8: 2016-02-23 | C8: San Lorenzo | D8: Ciclista Olímpico | E8: -6.5 | F8: =IF(h2h!E8="","",NORMDIST(h2h!E8+E8,0,M8,TRUE)) -> 0.5462045095 | G8: 1.93 | H8: 1.93 | I8: =IF(OR(F8="",G8=""),"",IF((G8*F8-1)>=coeff!$B$10,coeff!$B$8/coeff!$B$9*(G8*F8-1)/(G8-1),"")) -> 5.825236909 | J8: =IF(OR(F8="",H8=""),"",IF((H8*(1-F8)-1)>=coeff!$B$10,coeff!$B$8/coeff!$B$9*(H8*(1-F8)-1)/(H8-1),"")) ->  | M8: 14.64536556 | N8: 19.02689405
A9: Argentina - Liga Nacional de Bá | B9: 2016-02-23 | C9: Atenas | D9: Argentino Junín | E9: -6 | F9: =IF(h2h!E9="","",NORMDIST(h2h!E9+E9,0,M9,TRUE)) -> 0.4863825593 | G9: 1.93 | H9: 1.93 | I9: =IF(OR(F9="",G9=""),"",IF((G9*F9-1)>=coeff!$B$10,coeff!$B$8/coeff!$B$9*(G9*F9-1)/(G9-1),"")) ->  | J9: =IF(OR(F9="",H9=""),"",IF((H9*(1-F9)-1)>=coeff!$B$10,coeff!$B$8/coeff!$B$9*(H9*(1-F9)-1)/(H9-1),"")) ->  | M9: 14.64536556 | N9: 19.02689405
A10: Argentina - Liga Nacional de Bá | B10: 2016-02-23 | C10: San Martín Corrientes | D10: Regatas | E10: -6.5 | F10: =IF(h2h!E10="","",NORMDIST(h2h!E10+E10,0,M10,TRUE)) -> 0.4456885184 | G10: 1.93 | H10: 1.93 | I10: =IF(OR(F10="",G10=""),"",IF((G10*F10-1)>=coeff!$B$10,coeff!$B$8/coeff!$B$9*(G10*F10-1)/(G10-1),"")) ->  | J10: =IF(OR(F10="",H10=""),"",IF((H10*(1-F10)-1)>=coeff!$B$10,coeff!$B$8/coeff!$B$9*(H10*(1-F10)-1)/(H10-1),"")) -> 7.507651553 | M10: 14.64536556 | N10: 19.02689405
A11: Argentina - Liga Nacional de Bá | B11: 2016-02-23 | C11: Quilmes | D11: Lanús | E11: -6.5 | F11: =IF(h2h!E11="","",NORMDIST(h2h!E11+E11,0,M11,TRUE)) -> 0.4918285198 | G11: 1.93 | H11: 1.93 | I11: =IF(OR(F11="",G11=""),"",IF((G11*F11-1)>=coeff!$B$10,coeff!$B$8/coeff!$B$9*(G11*F11-1)/(G11-1),"")) ->  | J11: =IF(OR(F11="",H11=""),"",IF((H11*(1-F11)-1)>=coeff!$B$10,coeff!$B$8/coeff!$B$9*(H11*(1-F11)-1)/(H11-1),"")) ->  | M11: 14.64536556 | N11: 19.02689405
A12: Austria - Bundesliga | B12: 2016-02-22 | C12: Swans Gmunden | D12: WBC Wels | E12: -1 | F12: =IF(h2h!E12="","",NORMDIST(h2h!E12+E12,0,M12,TRUE)) -> 0.3674542068 | G12: 1.96 | H12: 1.94 | I12: =IF(OR(F12="",G12=""),"",IF((G12*F12-1)>=coeff!$B$10,coeff!$B$8/coeff!$B$9*(G12*F12-1)/(G12-1),"")) ->  | J12: =IF(OR(F12="",H12=""),"",IF((H12*(1-F12)-1)>=coeff!$B$10,coeff!$B$8/coeff!$B$9*(H12*(1-F12)-1)/(H12-1),"")) -> 24.16370626 | M12: 15.0618625 | N12: 19.18306714
A13: Europe - VTB League | B13: 2016-02-22 | C13: Kalev/Cramo Tallinn | D13: CSKA Moskva | E13: 27.5 | F13: =IF(h2h!E13="","",NORMDIST(h2h!E13+E13,0,M13,TRUE)) ->  | G13: 1.96 | H13: 1.94 | I13: =IF(OR(F13="",G13=""),"",IF((G13*F13-1)>=coeff!$B$10,coeff!$B$8/coeff!$B$9*(G13*F13-1)/(G13-1),"")) ->  | J13: =IF(OR(F13="",H13=""),"",IF((H13*(1-F13)-1)>=coeff!$B$10,coeff!$B$8/coeff!$B$9*(H13*(1-F13)-1)/(H13-1),"")) ->  | M13: 15.46021286 | N13: 16.05457863
A14: Europe - VTB League | B14: 2016-02-22 | C14: VEF Riga | D14: ČEZ Nymburk | E14: 3 | F14: =IF(h2h!E14="","",NORMDIST(h2h!E14+E14,0,M14,TRUE)) ->  | G14: 1.93 | H14: 1.98 | I14: =IF(OR(F14="",G14=""),"",IF((G14*F14-1)>=coeff!$B$10,coeff!$B$8/coeff!$B$9*(G14*F14-1)/(G14-1),"")) ->  | J14: =IF(OR(F14="",H14=""),"",IF((H14*(1-F14)-1)>=coeff!$B$10,coeff!$B$8/coeff!$B$9*(H14*(1-F14)-1)/(H14-1),"")) ->  | M14: 15.46021286 | N14: 16.05457863
A15: Israel - Ligat Haal | B15: 2016-02-22 | C15: Ironi Nes Ziona | D15: Maccabi Haifa | E15: 2.5 | F15: =IF(h2h!E15="","",NORMDIST(h2h!E15+E15,0,M15,TRUE)) -> 0.4754040047 | G15: 1.96 | H15: 1.92 | I15: =IF(OR(F15="",G15=""),"",IF((G15*F15-1)>=coeff!$B$10,coeff!$B$8/coeff!$B$9*(G15*F15-1)/(G15-1),"")) ->  | J15: =IF(OR(F15="",H15=""),"",IF((H15*(1-F15)-1)>=coeff!$B$10,coeff!$B$8/coeff!$B$9*(H15*(1-F15)-1)/(H15-1),"")) ->  | M15: 14.5885713 | N15: 17.4246294
A16: Israel - Ligat Haal | B16: 2016-02-22 | C16: Bnei HaSharon | D16: Maccabi Kiryat Gat | E16: -7.5 | F16: =IF(h2h!E16="","",NORMDIST(h2h!E16+E16,0,M16,TRUE)) -> 0.4265845629 | G16: 1.95 | H16: 1.95 | I16: =IF(OR(F16="",G16=""),"",IF((G16*F16-1)>=coeff!$B$10,coeff!$B$8/coeff!$B$9*(G16*F16-1)/(G16-1),"")) ->  | J16: =IF(OR(F16="",H16=""),"",IF((H16*(1-F16)-1)>=coeff!$B$10,coeff!$B$8/coeff!$B$9*(H16*(1-F16)-1)/(H16-1),"")) -> 12.43790552 | M16: 14.5885713 | N16: 17.4246294
A17: Sweden - Ligan | B17: 2016-02-22 | C17: BC Luleå | D17: Sundsvall | E17: -9.5 | F17: =IF(h2h!E17="","",NORMDIST(h2h!E17+E17,0,M17,TRUE)) -> 0.6853626124 | G17: 1.94 | H17: 1.96 | I17: =IF(OR(F17="",G17=""),"",IF((G17*F17-1)>=coeff!$B$10,coeff!$B$8/coeff!$B$9*(G17*F17-1)/(G17-1),"")) -> 35.06419873 | J17: =IF(OR(F17="",H17=""),"",IF((H17*(1-F17)-1)>=coeff!$B$10,coeff!$B$8/coeff!$B$9*(H17*(1-F17)-1)/(H17-1),"")) ->  | M17: 15.12176559 | N17: 18.91299025
A18: Ukraine - Superleague | B18: 2016-02-22 | C18: BC Odesa | D18: Dnipro Dnepropetrovsk | F18: =IF(h2h!E18="","",NORMDIST(h2h!E18+E18,0,M18,TRUE)) -> 0.06777266234 | I18: =IF(OR(F18="",G18=""),"",IF((G18*F18-1)>=coeff!$B$10,coeff!$B$8/coeff!$B$9*(G18*F18-1)/(G18-1),"")) ->  | J18: =IF(OR(F18="",H18=""),"",IF((H18*(1-F18)-1)>=coeff!$B$10,coeff!$B$8/coeff!$B$9*(H18*(1-F18)-1)/(H18-1),"")) ->  | M18: 15.00750026 | N18: 16.44627514
A19: Czech Republic - NBL | B19: 2016-02-22 | C19: ČEZ Nymburk | D19: BC Kolín | F19: =IF(h2h!E19="","",NORMDIST(h2h!E19+E19,0,M19,TRUE)) -> 0.9406230896 | I19: =IF(OR(F19="",G19=""),"",IF((G19*F19-1)>=coeff!$B$10,coeff!$B$8/coeff!$B$9*(G19*F19-1)/(G19-1),"")) ->  | J19: =IF(OR(F19="",H19=""),"",IF((H19*(1-F19)-1)>=coeff!$B$10,coeff!$B$8/coeff!$B$9*(H19*(1-F19)-1)/(H19-1),"")) ->  | M19: 20.70478782 | N19: 17.22303232
F20: =IF(h2h!E20="","",NORMDIST(h2h!E20+E20,0,M20,TRUE)) ->  | I20: =IF(OR(F20="",G20=""),"",IF((G20*F20-1)>=coeff!$B$10,coeff!$B$8/coeff!$B$9*(G20*F20-1)/(G20-1),"")) ->  | J20: =IF(OR(F20="",H20=""),"",IF((H20*(1-F20)-1)>=coeff!$B$10,coeff!$B$8/coeff!$B$9*(H20*(1-F20)-1)/(H20-1),"")) ->  | M20: 18.09515455 | N20: 20.44940688
F21: =IF(h2h!E21="","",NORMDIST(h2h!E21+E21,0,M21,TRUE)) ->  | I21: =IF(OR(F21="",G21=""),"",IF((G21*F21-1)>=coeff!$B$10,coeff!$B$8/coeff!$B$9*(G21*F21-1)/(G21-1),"")) ->  | J21: =IF(OR(F21="",H21=""),"",IF((H21*(1-F21)-1)>=coeff!$B$10,coeff!$B$8/coeff!$B$9*(H21*(1-F21)-1)/(H21-1),"")) -> 
F22: =IF(h2h!E22="","",NORMDIST(h2h!E22+E22,0,M22,TRUE)) ->  | I22: =IF(OR(F22="",G22=""),"",IF((G22*F22-1)>=coeff!$B$10,coeff!$B$8/coeff!$B$9*(G22*F22-1)/(G22-1),"")) ->  | J22: =IF(OR(F22="",H22=""),"",IF((H22*(1-F22)-1)>=coeff!$B$10,coeff!$B$8/coeff!$B$9*(H22*(1-F22)-1)/(H22-1),"")) -> 
F23: =IF(h2h!E23="","",NORMDIST(h2h!E23+E23,0,M23,TRUE)) ->  | I23: =IF(OR(F23="",G23=""),"",IF((G23*F23-1)>=coeff!$B$10,coeff!$B$8/coeff!$B$9*(G23*F23-1)/(G23-1),"")) ->  | J23: =IF(OR(F23="",H23=""),"",IF((H23*(1-F23)-1)>=coeff!$B$10,coeff!$B$8/coeff!$B$9*(H23*(1-F23)-1)/(H23-1),"")) -> 
F24: =IF(h2h!E24="","",NORMDIST(h2h!E24+E24,0,M24,TRUE)) ->  | I24: =IF(OR(F24="",G24=""),"",IF((G24*F24-1)>=coeff!$B$10,coeff!$B$8/coeff!$B$9*(G24*F24-1)/(G24-1),"")) ->  | J24: =IF(OR(F24="",H24=""),"",IF((H24*(1-F24)-1)>=coeff!$B$10,coeff!$B$8/coeff!$B$9*(H24*(1-F24)-1)/(H24-1),"")) -> 
F25: =IF(h2h!E25="","",NORMDIST(h2h!E25+E25,0,M25,TRUE)) ->  | I25: =IF(OR(F25="",G25=""),"",IF((G25*F25-1)>=coeff!$B$10,coeff!$B$8/coeff!$B$9*(G25*F25-1)/(G25-1),"")) ->  | J25: =IF(OR(F25="",H25=""),"",IF((H25*(1-F25)-1)>=coeff!$B$10,coeff!$B$8/coeff!$B$9*(H25*(1-F25)-1)/(H25-1),"")) -> 
F26: =IF(h2h!E26="","",NORMDIST(h2h!E26+E26,0,M26,TRUE)) ->  | I26: =IF(OR(F26="",G26=""),"",IF((G26*F26-1)>=coeff!$B$10,coeff!$B$8/coeff!$B$9*(G26*F26-1)/(G26-1),"")) ->  | J26: =IF(OR(F26="",H26=""),"",IF((H26*(1-F26)-1)>=coeff!$B$10,coeff!$B$8/coeff!$B$9*(H26*(1-F26)-1)/(H26-1),"")) -> 
F27: =IF(h2h!E27="","",NORMDIST(h2h!E27+E27,0,M27,TRUE)) ->  | I27: =IF(OR(F27="",G27=""),"",IF((G27*F27-1)>=coeff!$B$10,coeff!$B$8/coeff!$B$9*(G27*F27-1)/(G27-1),"")) ->  | J27: =IF(OR(F27="",H27=""),"",IF((H27*(1-F27)-1)>=coeff!$B$10,coeff!$B$8/coeff!$B$9*(H27*(1-F27)-1)/(H27-1),"")) -> 
F28: =IF(h2h!E28="","",NORMDIST(h2h!E28+E28,0,M28,TRUE)) ->  | I28: =IF(OR(F28="",G28=""),"",IF((G28*F28-1)>=coeff!$B$10,coeff!$B$8/coeff!$B$9*(G28*F28-1)/(G28-1),"")) ->  | J28: =IF(OR(F28="",H28=""),"",IF((H28*(1-F28)-1)>=coeff!$B$10,coeff!$B$8/coeff!$B$9*(H28*(1-F28)-1)/(H28-1),"")) -> 
F29: =IF(h2h!E29="","",NORMDIST(h2h!E29+E29,0,M29,TRUE)) ->  | I29: =IF(OR(F29="",G29=""),"",IF((G29*F29-1)>=coeff!$B$10,coeff!$B$8/coeff!$B$9*(G29*F29-1)/(G29-1),"")) ->  | J29: =IF(OR(F29="",H29=""),"",IF((H29*(1-F29)-1)>=coeff!$B$10,coeff!$B$8/coeff!$B$9*(H29*(1-F29)-1)/(H29-1),"")) -> 
F30: =IF(h2h!E30="","",NORMDIST(h2h!E30+E30,0,M30,TRUE)) ->  | I30: =IF(OR(F30="",G30=""),"",IF((G30*F30-1)>=coeff!$B$10,coeff!$B$8/coeff!$B$9*(G30*F30-1)/(G30-1),"")) ->  | J30: =IF(OR(F30="",H30=""),"",IF((H30*(1-F30)-1)>=coeff!$B$10,coeff!$B$8/coeff!$B$9*(H30*(1-F30)-1)/(H30-1),"")) -> 
F31: =IF(h2h!E31="","",NORMDIST(h2h!E31+E31,0,M31,TRUE)) ->  | I31: =IF(OR(F31="",G31=""),"",IF((G31*F31-1)>=coeff!$B$10,coeff!$B$8/coeff!$B$9*(G31*F31-1)/(G31-1),"")) ->  | J31: =IF(OR(F31="",H31=""),"",IF((H31*(1-F31)-1)>=coeff!$B$10,coeff!$B$8/coeff!$B$9*(H31*(1-F31)-1)/(H31-1),"")) -> 
F32: =IF(h2h!E32="","",NORMDIST(h2h!E32+E32,0,M32,TRUE)) ->  | I32: =IF(OR(F32="",G32=""),"",IF((G32*F32-1)>=coeff!$B$10,coeff!$B$8/coeff!$B$9*(G32*F32-1)/(G32-1),"")) ->  | J32: =IF(OR(F32="",H32=""),"",IF((H32*(1-F32)-1)>=coeff!$B$10,coeff!$B$8/coeff!$B$9*(H32*(1-F32)-1)/(H32-1),"")) -> 
F33: =IF(h2h!E33="","",NORMDIST(h2h!E33+E33,0,M33,TRUE)) ->  | I33: =IF(OR(F33="",G33=""),"",IF((G33*F33-1)>=coeff!$B$10,coeff!$B$8/coeff!$B$9*(G33*F33-1)/(G33-1),"")) ->  | J33: =IF(OR(F33="",H33=""),"",IF((H33*(1-F33)-1)>=coeff!$B$10,coeff!$B$8/coeff!$B$9*(H33*(1-F33)-1)/(H33-1),"")) -> 
F34: =IF(h2h!E34="","",NORMDIST(h2h!E34+E34,0,M34,TRUE)) ->  | I34: =IF(OR(F34="",G34=""),"",IF((G34*F34-1)>=coeff!$B$10,coeff!$B$8/coeff!$B$9*(G34*F34-1)/(G34-1),"")) ->  | J34: =IF(OR(F34="",H34=""),"",IF((H34*(1-F34)-1)>=coeff!$B$10,coeff!$B$8/coeff!$B$9*(H34*(1-F34)-1)/(H34-1),"")) -> 
F35: =IF(h2h!E35="","",NORMDIST(h2h!E35+E35,0,M35,TRUE)) ->  | I35: =IF(OR(F35="",G35=""),"",IF((G35*F35-1)>=coeff!$B$10,coeff!$B$8/coeff!$B$9*(G35*F35-1)/(G35-1),"")) ->  | J35: =IF(OR(F35="",H35=""),"",IF((H35*(1-F35)-1)>=coeff!$B$10,coeff!$B$8/coeff!$B$9*(H35*(1-F35)-1)/(H35-1),"")) -> 
F36: =IF(h2h!E36="","",NORMDIST(h2h!E36+E36,0,M36,TRUE)) ->  | I36: =IF(OR(F36="",G36=""),"",IF((G36*F36-1)>=coeff!$B$10,coeff!$B$8/coeff!$B$9*(G36*F36-1)/(G36-1),"")) ->  | J36: =IF(OR(F36="",H36=""),"",IF((H36*(1-F36)-1)>=coeff!$B$10,coeff!$B$8/coeff!$B$9*(H36*(1-F36)-1)/(H36-1),"")) -> 
F37: =IF(h2h!E37="","",NORMDIST(h2h!E37+E37,0,M37,TRUE)) ->  | I37: =IF(OR(F37="",G37=""),"",IF((G37*F37-1)>=coeff!$B$10,coeff!$B$8/coeff!$B$9*(G37*F37-1)/(G37-1),"")) ->  | J37: =IF(OR(F37="",H37=""),"",IF((H37*(1-F37)-1)>=coeff!$B$10,coeff!$B$8/coeff!$B$9*(H37*(1-F37)-1)/(H37-1),"")) -> 
F38: =IF(h2h!E38="","",NORMDIST(h2h!E38+E38,0,M38,TRUE)) ->  | I38: =IF(OR(F38="",G38=""),"",IF((G38*F38-1)>=coeff!$B$10,coeff!$B$8/coeff!$B$9*(G38*F38-1)/(G38-1),"")) ->  | J38: =IF(OR(F38="",H38=""),"",IF((H38*(1-F38)-1)>=coeff!$B$10,coeff!$B$8/coeff!$B$9*(H38*(1-F38)-1)/(H38-1),"")) -> 
F39: =IF(h2h!E39="","",NORMDIST(h2h!E39+E39,0,M39,TRUE)) ->  | I39: =IF(OR(F39="",G39=""),"",IF((G39*F39-1)>=coeff!$B$10,coeff!$B$8/coeff!$B$9*(G39*F39-1)/(G39-1),"")) ->  | J39: =IF(OR(F39="",H39=""),"",IF((H39*(1-F39)-1)>=coeff!$B$10,coeff!$B$8/coeff!$B$9*(H39*(1-F39)-1)/(H39-1),"")) -> 
F40: =IF(h2h!E40="","",NORMDIST(h2h!E40+E40,0,M40,TRUE)) ->  | I40: =IF(OR(F40="",G40=""),"",IF((G40*F40-1)>=coeff!$B$10,coeff!$B$8/coeff!$B$9*(G40*F40-1)/(G40-1),"")) ->  | J40: =IF(OR(F40="",H40=""),"",IF((H40*(1-F40)-1)>=coeff!$B$10,coeff!$B$8/coeff!$B$9*(H40*(1-F40)-1)/(H40-1),"")) -> 
F41: =IF(h2h!E41="","",NORMDIST(h2h!E41+E41,0,M41,TRUE)) ->  | I41: =IF(OR(F41="",G41=""),"",IF((G41*F41-1)>=coeff!$B$10,coeff!$B$8/coeff!$B$9*(G41*F41-1)/(G41-1),"")) ->  | J41: =IF(OR(F41="",H41=""),"",IF((H41*(1-F41)-1)>=coeff!$B$10,coeff!$B$8/coeff!$B$9*(H41*(1-F41)-1)/(H41-1),"")) -> 
F42: =IF(h2h!E42="","",NORMDIST(h2h!E42+E42,0,M42,TRUE)) ->  | I42: =IF(OR(F42="",G42=""),"",IF((G42*F42-1)>=coeff!$B$10,coeff!$B$8/coeff!$B$9*(G42*F42-1)/(G42-1),"")) ->  | J42: =IF(OR(F42="",H42=""),"",IF((H42*(1-F42)-1)>=coeff!$B$10,coeff!$B$8/coeff!$B$9*(H42*(1-F42)-1)/(H42-1),"")) -> 
F43: =IF(h2h!E43="","",NORMDIST(h2h!E43+E43,0,M43,TRUE)) ->  | I43: =IF(OR(F43="",G43=""),"",IF((G43*F43-1)>=coeff!$B$10,coeff!$B$8/coeff!$B$9*(G43*F43-1)/(G43-1),"")) ->  | J43: =IF(OR(F43="",H43=""),"",IF((H43*(1-F43)-1)>=coeff!$B$10,coeff!$B$8/coeff!$B$9*(H43*(1-F43)-1)/(H43-1),"")) -> 
F44: =IF(h2h!E44="","",NORMDIST(h2h!E44+E44,0,M44,TRUE)) ->  | I44: =IF(OR(F44="",G44=""),"",IF((G44*F44-1)>=coeff!$B$10,coeff!$B$8/coeff!$B$9*(G44*F44-1)/(G44-1),"")) ->  | J44: =IF(OR(F44="",H44=""),"",IF((H44*(1-F44)-1)>=coeff!$B$10,coeff!$B$8/coeff!$B$9*(H44*(1-F44)-1)/(H44-1),"")) -> 
F45: =IF(h2h!E45="","",NORMDIST(h2h!E45+E45,0,M45,TRUE)) ->  | I45: =IF(OR(F45="",G45=""),"",IF((G45*F45-1)>=coeff!$B$10,coeff!$B$8/coeff!$B$9*(G45*F45-1)/(G45-1),"")) ->  | J45: =IF(OR(F45="",H45=""),"",IF((H45*(1-F45)-1)>=coeff!$B$10,coeff!$B$8/coeff!$B$9*(H45*(1-F45)-1)/(H45-1),"")) -> 
F46: =IF(h2h!E46="","",NORMDIST(h2h!E46+E46,0,M46,TRUE)) ->  | I46: =IF(OR(F46="",G46=""),"",IF((G46*F46-1)>=coeff!$B$10,coeff!$B$8/coeff!$B$9*(G46*F46-1)/(G46-1),"")) ->  | J46: =IF(OR(F46="",H46=""),"",IF((H46*(1-F46)-1)>=coeff!$B$10,coeff!$B$8/coeff!$B$9*(H46*(1-F46)-1)/(H46-1),"")) -> 
F47: =IF(h2h!E47="","",NORMDIST(h2h!E47+E47,0,M47,TRUE)) ->  | I47: =IF(OR(F47="",G47=""),"",IF((G47*F47-1)>=coeff!$B$10,coeff!$B$8/coeff!$B$9*(G47*F47-1)/(G47-1),"")) ->  | J47: =IF(OR(F47="",H47=""),"",IF((H47*(1-F47)-1)>=coeff!$B$10,coeff!$B$8/coeff!$B$9*(H47*(1-F47)-1)/(H47-1),"")) -> 
F48: =IF(h2h!E48="","",NORMDIST(h2h!E48+E48,0,M48,TRUE)) ->  | I48: =IF(OR(F48="",G48=""),"",IF((G48*F48-1)>=coeff!$B$10,coeff!$B$8/coeff!$B$9*(G48*F48-1)/(G48-1),"")) ->  | J48: =IF(OR(F48="",H48=""),"",IF((H48*(1-F48)-1)>=coeff!$B$10,coeff!$B$8/coeff!$B$9*(H48*(1-F48)-1)/(H48-1),"")) -> 
F49: =IF(h2h!E49="","",NORMDIST(h2h!E49+E49,0,M49,TRUE)) ->  | I49: =IF(OR(F49="",G49=""),"",IF((G49*F49-1)>=coeff!$B$10,coeff!$B$8/coeff!$B$9*(G49*F49-1)/(G49-1),"")) ->  | J49: =IF(OR(F49="",H49=""),"",IF((H49*(1-F49)-1)>=coeff!$B$10,coeff!$B$8/coeff!$B$9*(H49*(1-F49)-1)/(H49-1),"")) -> 
F50: =IF(h2h!E50="","",NORMDIST(h2h!E50+E50,0,M50,TRUE)) ->  | I50: =IF(OR(F50="",G50=""),"",IF((G50*F50-1)>=coeff!$B$10,coeff!$B$8/coeff!$B$9*(G50*F50-1)/(G50-1),"")) ->  | J50: =IF(OR(F50="",H50=""),"",IF((H50*(1-F50)-1)>=coeff!$B$10,coeff!$B$8/coeff!$B$9*(H50*(1-F50)-1)/(H50-1),"")) -> 
F51: =IF(h2h!E51="","",NORMDIST(h2h!E51+E51,0,M51,TRUE)) ->  | I51: =IF(OR(F51="",G51=""),"",IF((G51*F51-1)>=coeff!$B$10,coeff!$B$8/coeff!$B$9*(G51*F51-1)/(G51-1),"")) ->  | J51: =IF(OR(F51="",H51=""),"",IF((H51*(1-F51)-1)>=coeff!$B$10,coeff!$B$8/coeff!$B$9*(H51*(1-F51)-1)/(H51-1),"")) -> 
F52: =IF(h2h!E52="","",NORMDIST(h2h!E52+E52,0,M52,TRUE)) ->  | I52: =IF(OR(F52="",G52=""),"",IF((G52*F52-1)>=coeff!$B$10,coeff!$B$8/coeff!$B$9*(G52*F52-1)/(G52-1),"")) ->  | J52: =IF(OR(F52="",H52=""),"",IF((H52*(1-F52)-1)>=coeff!$B$10,coeff!$B$8/coeff!$B$9*(H52*(1-F52)-1)/(H52-1),"")) -> 
F53: =IF(h2h!E53="","",NORMDIST(h2h!E53+E53,0,M53,TRUE)) ->  | I53: =IF(OR(F53="",G53=""),"",IF((G53*F53-1)>=coeff!$B$10,coeff!$B$8/coeff!$B$9*(G53*F53-1)/(G53-1),"")) ->  | J53: =IF(OR(F53="",H53=""),"",IF((H53*(1-F53)-1)>=coeff!$B$10,coeff!$B$8/coeff!$B$9*(H53*(1-F53)-1)/(H53-1),"")) -> 
F54: =IF(h2h!E54="","",NORMDIST(h2h!E54+E54,0,M54,TRUE)) ->  | I54: =IF(OR(F54="",G54=""),"",IF((G54*F54-1)>=coeff!$B$10,coeff!$B$8/coeff!$B$9*(G54*F54-1)/(G54-1),"")) ->  | J54: =IF(OR(F54="",H54=""),"",IF((H54*(1-F54)-1)>=coeff!$B$10,coeff!$B$8/coeff!$B$9*(H54*(1-F54)-1)/(H54-1),"")) -> 
F55: =IF(h2h!E55="","",NORMDIST(h2h!E55+E55,0,M55,TRUE)) ->  | I55: =IF(OR(F55="",G55=""),"",IF((G55*F55-1)>=coeff!$B$10,coeff!$B$8/coeff!$B$9*(G55*F55-1)/(G55-1),"")) ->  | J55: =IF(OR(F55="",H55=""),"",IF((H55*(1-F55)-1)>=coeff!$B$10,coeff!$B$8/coeff!$B$9*(H55*(1-F55)-1)/(H55-1),"")) -> 
F56: =IF(h2h!E56="","",NORMDIST(h2h!E56+E56,0,M56,TRUE)) ->  | I56: =IF(OR(F56="",G56=""),"",IF((G56*F56-1)>=coeff!$B$10,coeff!$B$8/coeff!$B$9*(G56*F56-1)/(G56-1),"")) ->  | J56: =IF(OR(F56="",H56=""),"",IF((H56*(1-F56)-1)>=coeff!$B$10,coeff!$B$8/coeff!$B$9*(H56*(1-F56)-1)/(H56-1),"")) -> 
F57: =IF(h2h!E57="","",NORMDIST(h2h!E57+E57,0,M57,TRUE)) ->  | I57: =IF(OR(F57="",G57=""),"",IF((G57*F57-1)>=coeff!$B$10,coeff!$B$8/coeff!$B$9*(G57*F57-1)/(G57-1),"")) ->  | J57: =IF(OR(F57="",H57=""),"",IF((H57*(1-F57)-1)>=coeff!$B$10,coeff!$B$8/coeff!$B$9*(H57*(1-F57)-1)/(H57-1),"")) -> 
F58: =IF(h2h!E58="","",NORMDIST(h2h!E58+E58,0,M58,TRUE)) ->  | I58: =IF(OR(F58="",G58=""),"",IF((G58*F58-1)>=coeff!$B$10,coeff!$B$8/coeff!$B$9*(G58*F58-1)/(G58-1),"")) ->  | J58: =IF(OR(F58="",H58=""),"",IF((H58*(1-F58)-1)>=coeff!$B$10,coeff!$B$8/coeff!$B$9*(H58*(1-F58)-1)/(H58-1),"")) -> 
F59: =IF(h2h!E59="","",NORMDIST(h2h!E59+E59,0,M59,TRUE)) ->  | I59: =IF(OR(F59="",G59=""),"",IF((G59*F59-1)>=coeff!$B$10,coeff!$B$8/coeff!$B$9*(G59*F59-1)/(G59-1),"")) ->  | J59: =IF(OR(F59="",H59=""),"",IF((H59*(1-F59)-1)>=coeff!$B$10,coeff!$B$8/coeff!$B$9*(H59*(1-F59)-1)/(H59-1),"")) -> 
F60: =IF(h2h!E60="","",NORMDIST(h2h!E60+E60,0,M60,TRUE)) ->  | I60: =IF(OR(F60="",G60=""),"",IF((G60*F60-1)>=coeff!$B$10,coeff!$B$8/coeff!$B$9*(G60*F60-1)/(G60-1),"")) ->  | J60: =IF(OR(F60="",H60=""),"",IF((H60*(1-F60)-1)>=coeff!$B$10,coeff!$B$8/coeff!$B$9*(H60*(1-F60)-1)/(H60-1),"")) -> 
F61: =IF(h2h!E61="","",NORMDIST(h2h!E61+E61,0,M61,TRUE)) ->  | I61: =IF(OR(F61="",G61=""),"",IF((G61*F61-1)>=coeff!$B$10,coeff!$B$8/coeff!$B$9*(G61*F61-1)/(G61-1),"")) ->  | J61: =IF(OR(F61="",H61=""),"",IF((H61*(1-F61)-1)>=coeff!$B$10,coeff!$B$8/coeff!$B$9*(H61*(1-F61)-1)/(H61-1),"")) -> 
F62: =IF(h2h!E62="","",NORMDIST(h2h!E62+E62,0,M62,TRUE)) ->  | I62: =IF(OR(F62="",G62=""),"",IF((G62*F62-1)>=coeff!$B$10,coeff!$B$8/coeff!$B$9*(G62*F62-1)/(G62-1),"")) ->  | J62: =IF(OR(F62="",H62=""),"",IF((H62*(1-F62)-1)>=coeff!$B$10,coeff!$B$8/coeff!$B$9*(H62*(1-F62)-1)/(H62-1),"")) -> 
F63: =IF(h2h!E63="","",NORMDIST(h2h!E63+E63,0,M63,TRUE)) ->  | I63: =IF(OR(F63="",G63=""),"",IF((G63*F63-1)>=coeff!$B$10,coeff!$B$8/coeff!$B$9*(G63*F63-1)/(G63-1),"")) ->  | J63: =IF(OR(F63="",H63=""),"",IF((H63*(1-F63)-1)>=coeff!$B$10,coeff!$B$8/coeff!$B$9*(H63*(1-F63)-1)/(H63-1),"")) -> 
F64: =IF(h2h!E64="","",NORMDIST(h2h!E64+E64,0,M64,TRUE)) ->  | I64: =IF(OR(F64="",G64=""),"",IF((G64*F64-1)>=coeff!$B$10,coeff!$B$8/coeff!$B$9*(G64*F64-1)/(G64-1),"")) ->  | J64: =IF(OR(F64="",H64=""),"",IF((H64*(1-F64)-1)>=coeff!$B$10,coeff!$B$8/coeff!$B$9*(H64*(1-F64)-1)/(H64-1),"")) -> 
F65: =IF(h2h!E65="","",NORMDIST(h2h!E65+E65,0,M65,TRUE)) ->  | I65: =IF(OR(F65="",G65=""),"",IF((G65*F65-1)>=coeff!$B$10,coeff!$B$8/coeff!$B$9*(G65*F65-1)/(G65-1),"")) ->  | J65: =IF(OR(F65="",H65=""),"",IF((H65*(1-F65)-1)>=coeff!$B$10,coeff!$B$8/coeff!$B$9*(H65*(1-F65)-1)/(H65-1),"")) -> 
F66: =IF(h2h!E66="","",NORMDIST(h2h!E66+E66,0,M66,TRUE)) ->  | I66: =IF(OR(F66="",G66=""),"",IF((G66*F66-1)>=coeff!$B$10,coeff!$B$8/coeff!$B$9*(G66*F66-1)/(G66-1),"")) ->  | J66: =IF(OR(F66="",H66=""),"",IF((H66*(1-F66)-1)>=coeff!$B$10,coeff!$B$8/coeff!$B$9*(H66*(1-F66)-1)/(H66-1),"")) -> 
F67: =IF(h2h!E67="","",NORMDIST(h2h!E67+E67,0,M67,TRUE)) ->  | I67: =IF(OR(F67="",G67=""),"",IF((G67*F67-1)>=coeff!$B$10,coeff!$B$8/coeff!$B$9*(G67*F67-1)/(G67-1),"")) ->  | J67: =IF(OR(F67="",H67=""),"",IF((H67*(1-F67)-1)>=coeff!$B$10,coeff!$B$8/coeff!$B$9*(H67*(1-F67)-1)/(H67-1),"")) -> 
F68: =IF(h2h!E68="","",NORMDIST(h2h!E68+E68,0,M68,TRUE)) ->  | I68: =IF(OR(F68="",G68=""),"",IF((G68*F68-1)>=coeff!$B$10,coeff!$B$8/coeff!$B$9*(G68*F68-1)/(G68-1),"")) ->  | J68: =IF(OR(F68="",H68=""),"",IF((H68*(1-F68)-1)>=coeff!$B$10,coeff!$B$8/coeff!$B$9*(H68*(1-F68)-1)/(H68-1),"")) -> 
F69: =IF(h2h!E69="","",NORMDIST(h2h!E69+E69,0,M69,TRUE)) ->  | I69: =IF(OR(F69="",G69=""),"",IF((G69*F69-1)>=coeff!$B$10,coeff!$B$8/coeff!$B$9*(G69*F69-1)/(G69-1),"")) ->  | J69: =IF(OR(F69="",H69=""),"",IF((H69*(1-F69)-1)>=coeff!$B$10,coeff!$B$8/coeff!$B$9*(H69*(1-F69)-1)/(H69-1),"")) -> 
F70: =IF(h2h!E70="","",NORMDIST(h2h!E70+E70,0,M70,TRUE)) ->  | I70: =IF(OR(F70="",G70=""),"",IF((G70*F70-1)>=coeff!$B$10,coeff!$B$8/coeff!$B$9*(G70*F70-1)/(G70-1),"")) ->  | J70: =IF(OR(F70="",H70=""),"",IF((H70*(1-F70)-1)>=coeff!$B$10,coeff!$B$8/coeff!$B$9*(H70*(1-F70)-1)/(H70-1),"")) -> 
F71: =IF(h2h!E71="","",NORMDIST(h2h!E71+E71,0,M71,TRUE)) ->  | I71: =IF(OR(F71="",G71=""),"",IF((G71*F71-1)>=coeff!$B$10,coeff!$B$8/coeff!$B$9*(G71*F71-1)/(G71-1),"")) ->  | J71: =IF(OR(F71="",H71=""),"",IF((H71*(1-F71)-1)>=coeff!$B$10,coeff!$B$8/coeff!$B$9*(H71*(1-F71)-1)/(H71-1),"")) -> 
F72: =IF(h2h!E72="","",NORMDIST(h2h!E72+E72,0,M72,TRUE)) ->  | I72: =IF(OR(F72="",G72=""),"",IF((G72*F72-1)>=coeff!$B$10,coeff!$B$8/coeff!$B$9*(G72*F72-1)/(G72-1),"")) ->  | J72: =IF(OR(F72="",H72=""),"",IF((H72*(1-F72)-1)>=coeff!$B$10,coeff!$B$8/coeff!$B$9*(H72*(1-F72)-1)/(H72-1),"")) -> 
F73: =IF(h2h!E73="","",NORMDIST(h2h!E73+E73,0,M73,TRUE)) ->  | I73: =IF(OR(F73="",G73=""),"",IF((G73*F73-1)>=coeff!$B$10,coeff!$B$8/coeff!$B$9*(G73*F73-1)/(G73-1),"")) ->  | J73: =IF(OR(F73="",H73=""),"",IF((H73*(1-F73)-1)>=coeff!$B$10,coeff!$B$8/coeff!$B$9*(H73*(1-F73)-1)/(H73-1),"")) -> 
F74: =IF(h2h!E74="","",NORMDIST(h2h!E74+E74,0,M74,TRUE)) ->  | I74: =IF(OR(F74="",G74=""),"",IF((G74*F74-1)>=coeff!$B$10,coeff!$B$8/coeff!$B$9*(G74*F74-1)/(G74-1),"")) ->  | J74: =IF(OR(F74="",H74=""),"",IF((H74*(1-F74)-1)>=coeff!$B$10,coeff!$B$8/coeff!$B$9*(H74*(1-F74)-1)/(H74-1),"")) -> 
F75: =IF(h2h!E75="","",NORMDIST(h2h!E75+E75,0,M75,TRUE)) ->  | I75: =IF(OR(F75="",G75=""),"",IF((G75*F75-1)>=coeff!$B$10,coeff!$B$8/coeff!$B$9*(G75*F75-1)/(G75-1),"")) ->  | J75: =IF(OR(F75="",H75=""),"",IF((H75*(1-F75)-1)>=coeff!$B$10,coeff!$B$8/coeff!$B$9*(H75*(1-F75)-1)/(H75-1),"")) -> 
F76: =IF(h2h!E76="","",NORMDIST(h2h!E76+E76,0,M76,TRUE)) ->  | I76: =IF(OR(F76="",G76=""),"",IF((G76*F76-1)>=coeff!$B$10,coeff!$B$8/coeff!$B$9*(G76*F76-1)/(G76-1),"")) ->  | J76: =IF(OR(F76="",H76=""),"",IF((H76*(1-F76)-1)>=coeff!$B$10,coeff!$B$8/coeff!$B$9*(H76*(1-F76)-1)/(H76-1),"")) -> 
F77: =IF(h2h!E77="","",NORMDIST(h2h!E77+E77,0,M77,TRUE)) ->  | I77: =IF(OR(F77="",G77=""),"",IF((G77*F77-1)>=coeff!$B$10,coeff!$B$8/coeff!$B$9*(G77*F77-1)/(G77-1),"")) ->  | J77: =IF(OR(F77="",H77=""),"",IF((H77*(1-F77)-1)>=coeff!$B$10,coeff!$B$8/coeff!$B$9*(H77*(1-F77)-1)/(H77-1),"")) -> 
F78: =IF(h2h!E78="","",NORMDIST(h2h!E78+E78,0,M78,TRUE)) ->  | I78: =IF(OR(F78="",G78=""),"",IF((G78*F78-1)>=coeff!$B$10,coeff!$B$8/coeff!$B$9*(G78*F78-1)/(G78-1),"")) ->  | J78: =IF(OR(F78="",H78=""),"",IF((H78*(1-F78)-1)>=coeff!$B$10,coeff!$B$8/coeff!$B$9*(H78*(1-F78)-1)/(H78-1),"")) -> 
F79: =IF(h2h!E79="","",NORMDIST(h2h!E79+E79,0,M79,TRUE)) ->  | I79: =IF(OR(F79="",G79=""),"",IF((G79*F79-1)>=coeff!$B$10,coeff!$B$8/coeff!$B$9*(G79*F79-1)/(G79-1),"")) ->  | J79: =IF(OR(F79="",H79=""),"",IF((H79*(1-F79)-1)>=coeff!$B$10,coeff!$B$8/coeff!$B$9*(H79*(1-F79)-1)/(H79-1),"")) -> 
F80: =IF(h2h!E80="","",NORMDIST(h2h!E80+E80,0,M80,TRUE)) ->  | I80: =IF(OR(F80="",G80=""),"",IF((G80*F80-1)>=coeff!$B$10,coeff!$B$8/coeff!$B$9*(G80*F80-1)/(G80-1),"")) ->  | J80: =IF(OR(F80="",H80=""),"",IF((H80*(1-F80)-1)>=coeff!$B$10,coeff!$B$8/coeff!$B$9*(H80*(1-F80)-1)/(H80-1),"")) -> 
F81: =IF(h2h!E81="","",NORMDIST(h2h!E81+E81,0,M81,TRUE)) ->  | I81: =IF(OR(F81="",G81=""),"",IF((G81*F81-1)>=coeff!$B$10,coeff!$B$8/coeff!$B$9*(G81*F81-1)/(G81-1),"")) ->  | J81: =IF(OR(F81="",H81=""),"",IF((H81*(1-F81)-1)>=coeff!$B$10,coeff!$B$8/coeff!$B$9*(H81*(1-F81)-1)/(H81-1),"")) -> 
F82: =IF(h2h!E82="","",NORMDIST(h2h!E82+E82,0,M82,TRUE)) ->  | I82: =IF(OR(F82="",G82=""),"",IF((G82*F82-1)>=coeff!$B$10,coeff!$B$8/coeff!$B$9*(G82*F82-1)/(G82-1),"")) ->  | J82: =IF(OR(F82="",H82=""),"",IF((H82*(1-F82)-1)>=coeff!$B$10,coeff!$B$8/coeff!$B$9*(H82*(1-F82)-1)/(H82-1),"")) -> 
F83: =IF(h2h!E83="","",NORMDIST(h2h!E83+E83,0,M83,TRUE)) ->  | I83: =IF(OR(F83="",G83=""),"",IF((G83*F83-1)>=coeff!$B$10,coeff!$B$8/coeff!$B$9*(G83*F83-1)/(G83-1),"")) ->  | J83: =IF(OR(F83="",H83=""),"",IF((H83*(1-F83)-1)>=coeff!$B$10,coeff!$B$8/coeff!$B$9*(H83*(1-F83)-1)/(H83-1),"")) -> 
F84: =IF(h2h!E84="","",NORMDIST(h2h!E84+E84,0,M84,TRUE)) ->  | I84: =IF(OR(F84="",G84=""),"",IF((G84*F84-1)>=coeff!$B$10,coeff!$B$8/coeff!$B$9*(G84*F84-1)/(G84-1),"")) ->  | J84: =IF(OR(F84="",H84=""),"",IF((H84*(1-F84)-1)>=coeff!$B$10,coeff!$B$8/coeff!$B$9*(H84*(1-F84)-1)/(H84-1),"")) -> 
F85: =IF(h2h!E85="","",NORMDIST(h2h!E85+E85,0,M85,TRUE)) ->  | I85: =IF(OR(F85="",G85=""),"",IF((G85*F85-1)>=coeff!$B$10,coeff!$B$8/coeff!$B$9*(G85*F85-1)/(G85-1),"")) ->  | J85: =IF(OR(F85="",H85=""),"",IF((H85*(1-F85)-1)>=coeff!$B$10,coeff!$B$8/coeff!$B$9*(H85*(1-F85)-1)/(H85-1),"")) -> 
F86: =IF(h2h!E86="","",NORMDIST(h2h!E86+E86,0,M86,TRUE)) ->  | I86: =IF(OR(F86="",G86=""),"",IF((G86*F86-1)>=coeff!$B$10,coeff!$B$8/coeff!$B$9*(G86*F86-1)/(G86-1),"")) ->  | J86: =IF(OR(F86="",H86=""),"",IF((H86*(1-F86)-1)>=coeff!$B$10,coeff!$B$8/coeff!$B$9*(H86*(1-F86)-1)/(H86-1),"")) -> 
F87: =IF(h2h!E87="","",NORMDIST(h2h!E87+E87,0,M87,TRUE)) ->  | I87: =IF(OR(F87="",G87=""),"",IF((G87*F87-1)>=coeff!$B$10,coeff!$B$8/coeff!$B$9*(G87*F87-1)/(G87-1),"")) ->  | J87: =IF(OR(F87="",H87=""),"",IF((H87*(1-F87)-1)>=coeff!$B$10,coeff!$B$8/coeff!$B$9*(H87*(1-F87)-1)/(H87-1),"")) -> 
F88: =IF(h2h!E88="","",NORMDIST(h2h!E88+E88,0,M88,TRUE)) ->  | I88: =IF(OR(F88="",G88=""),"",IF((G88*F88-1)>=coeff!$B$10,coeff!$B$8/coeff!$B$9*(G88*F88-1)/(G88-1),"")) ->  | J88: =IF(OR(F88="",H88=""),"",IF((H88*(1-F88)-1)>=coeff!$B$10,coeff!$B$8/coeff!$B$9*(H88*(1-F88)-1)/(H88-1),"")) -> 
F89: =IF(h2h!E89="","",NORMDIST(h2h!E89+E89,0,M89,TRUE)) ->  | I89: =IF(OR(F89="",G89=""),"",IF((G89*F89-1)>=coeff!$B$10,coeff!$B$8/coeff!$B$9*(G89*F89-1)/(G89-1),"")) ->  | J89: =IF(OR(F89="",H89=""),"",IF((H89*(1-F89)-1)>=coeff!$B$10,coeff!$B$8/coeff!$B$9*(H89*(1-F89)-1)/(H89-1),"")) -> 
F90: =IF(h2h!E90="","",NORMDIST(h2h!E90+E90,0,M90,TRUE)) ->  | I90: =IF(OR(F90="",G90=""),"",IF((G90*F90-1)>=coeff!$B$10,coeff!$B$8/coeff!$B$9*(G90*F90-1)/(G90-1),"")) ->  | J90: =IF(OR(F90="",H90=""),"",IF((H90*(1-F90)-1)>=coeff!$B$10,coeff!$B$8/coeff!$B$9*(H90*(1-F90)-1)/(H90-1),"")) -> 
F91: =IF(h2h!E91="","",NORMDIST(h2h!E91+E91,0,M91,TRUE)) ->  | I91: =IF(OR(F91="",G91=""),"",IF((G91*F91-1)>=coeff!$B$10,coeff!$B$8/coeff!$B$9*(G91*F91-1)/(G91-1),"")) ->  | J91: =IF(OR(F91="",H91=""),"",IF((H91*(1-F91)-1)>=coeff!$B$10,coeff!$B$8/coeff!$B$9*(H91*(1-F91)-1)/(H91-1),"")) -> 
F92: =IF(h2h!E92="","",NORMDIST(h2h!E92+E92,0,M92,TRUE)) ->  | I92: =IF(OR(F92="",G92=""),"",IF((G92*F92-1)>=coeff!$B$10,coeff!$B$8/coeff!$B$9*(G92*F92-1)/(G92-1),"")) ->  | J92: =IF(OR(F92="",H92=""),"",IF((H92*(1-F92)-1)>=coeff!$B$10,coeff!$B$8/coeff!$B$9*(H92*(1-F92)-1)/(H92-1),"")) -> 
F93: =IF(h2h!E93="","",NORMDIST(h2h!E93+E93,0,M93,TRUE)) ->  | I93: =IF(OR(F93="",G93=""),"",IF((G93*F93-1)>=coeff!$B$10,coeff!$B$8/coeff!$B$9*(G93*F93-1)/(G93-1),"")) ->  | J93: =IF(OR(F93="",H93=""),"",IF((H93*(1-F93)-1)>=coeff!$B$10,coeff!$B$8/coeff!$B$9*(H93*(1-F93)-1)/(H93-1),"")) -> 
F94: =IF(h2h!E94="","",NORMDIST(h2h!E94+E94,0,M94,TRUE)) ->  | I94: =IF(OR(F94="",G94=""),"",IF((G94*F94-1)>=coeff!$B$10,coeff!$B$8/coeff!$B$9*(G94*F94-1)/(G94-1),"")) ->  | J94: =IF(OR(F94="",H94=""),"",IF((H94*(1-F94)-1)>=coeff!$B$10,coeff!$B$8/coeff!$B$9*(H94*(1-F94)-1)/(H94-1),"")) -> 
F95: =IF(h2h!E95="","",NORMDIST(h2h!E95+E95,0,M95,TRUE)) ->  | I95: =IF(OR(F95="",G95=""),"",IF((G95*F95-1)>=coeff!$B$10,coeff!$B$8/coeff!$B$9*(G95*F95-1)/(G95-1),"")) ->  | J95: =IF(OR(F95="",H95=""),"",IF((H95*(1-F95)-1)>=coeff!$B$10,coeff!$B$8/coeff!$B$9*(H95*(1-F95)-1)/(H95-1),"")) -> 
F96: =IF(h2h!E96="","",NORMDIST(h2h!E96+E96,0,M96,TRUE)) ->  | I96: =IF(OR(F96="",G96=""),"",IF((G96*F96-1)>=coeff!$B$10,coeff!$B$8/coeff!$B$9*(G96*F96-1)/(G96-1),"")) ->  | J96: =IF(OR(F96="",H96=""),"",IF((H96*(1-F96)-1)>=coeff!$B$10,coeff!$B$8/coeff!$B$9*(H96*(1-F96)-1)/(H96-1),"")) -> 
F97: =IF(h2h!E97="","",NORMDIST(h2h!E97+E97,0,M97,TRUE)) ->  | I97: =IF(OR(F97="",G97=""),"",IF((G97*F97-1)>=coeff!$B$10,coeff!$B$8/coeff!$B$9*(G97*F97-1)/(G97-1),"")) ->  | J97: =IF(OR(F97="",H97=""),"",IF((H97*(1-F97)-1)>=coeff!$B$10,coeff!$B$8/coeff!$B$9*(H97*(1-F97)-1)/(H97-1),"")) -> 
F98: =IF(h2h!E98="","",NORMDIST(h2h!E98+E98,0,M98,TRUE)) ->  | I98: =IF(OR(F98="",G98=""),"",IF((G98*F98-1)>=coeff!$B$10,coeff!$B$8/coeff!$B$9*(G98*F98-1)/(G98-1),"")) ->  | J98: =IF(OR(F98="",H98=""),"",IF((H98*(1-F98)-1)>=coeff!$B$10,coeff!$B$8/coeff!$B$9*(H98*(1-F98)-1)/(H98-1),"")) -> 
F99: =IF(h2h!E99="","",NORMDIST(h2h!E99+E99,0,M99,TRUE)) ->  | I99: =IF(OR(F99="",G99=""),"",IF((G99*F99-1)>=coeff!$B$10,coeff!$B$8/coeff!$B$9*(G99*F99-1)/(G99-1),"")) ->  | J99: =IF(OR(F99="",H99=""),"",IF((H99*(1-F99)-1)>=coeff!$B$10,coeff!$B$8/coeff!$B$9*(H99*(1-F99)-1)/(H99-1),"")) -> 
F100: =IF(h2h!E100="","",NORMDIST(h2h!E100+E100,0,M100,TRUE)) ->  | I100: =IF(OR(F100="",G100=""),"",IF((G100*F100-1)>=coeff!$B$10,coeff!$B$8/coeff!$B$9*(G100*F100-1)/(G100-1),"")) ->  | J100: =IF(OR(F100="",H100=""),"",IF((H100*(1-F100)-1)>=coeff!$B$10,coeff!$B$8/coeff!$B$9*(H100*(1-F100)-1)/(H100-1),"")) -> 
F101: =IF(h2h!E101="","",NORMDIST(h2h!E101+E101,0,M101,TRUE)) ->  | I101: =IF(OR(F101="",G101=""),"",IF((G101*F101-1)>=coeff!$B$10,coeff!$B$8/coeff!$B$9*(G101*F101-1)/(G101-1),"")) ->  | J101: =IF(OR(F101="",H101=""),"",IF((H101*(1-F101)-1)>=coeff!$B$10,coeff!$B$8/coeff!$B$9*(H101*(1-F101)-1)/(H101-1),"")) -> 
F102: =IF(h2h!E102="","",NORMDIST(h2h!E102+E102,0,M102,TRUE)) ->  | I102: =IF(OR(F102="",G102=""),"",IF((G102*F102-1)>=coeff!$B$10,coeff!$B$8/coeff!$B$9*(G102*F102-1)/(G102-1),"")) ->  | J102: =IF(OR(F102="",H102=""),"",IF((H102*(1-F102)-1)>=coeff!$B$10,coeff!$B$8/coeff!$B$9*(H102*(1-F102)-1)/(H102-1),"")) -> 
F103: =IF(h2h!E103="","",NORMDIST(h2h!E103+E103,0,M103,TRUE)) ->  | I103: =IF(OR(F103="",G103=""),"",IF((G103*F103-1)>=coeff!$B$10,coeff!$B$8/coeff!$B$9*(G103*F103-1)/(G103-1),"")) ->  | J103: =IF(OR(F103="",H103=""),"",IF((H103*(1-F103)-1)>=coeff!$B$10,coeff!$B$8/coeff!$B$9*(H103*(1-F103)-1)/(H103-1),"")) -> 
F104: =IF(h2h!E104="","",NORMDIST(h2h!E104+E104,0,M104,TRUE)) ->  | I104: =IF(OR(F104="",G104=""),"",IF((G104*F104-1)>=coeff!$B$10,coeff!$B$8/coeff!$B$9*(G104*F104-1)/(G104-1),"")) ->  | J104: =IF(OR(F104="",H104=""),"",IF((H104*(1-F104)-1)>=coeff!$B$10,coeff!$B$8/coeff!$B$9*(H104*(1-F104)-1)/(H104-1),"")) -> 
F105: =IF(h2h!E105="","",NORMDIST(h2h!E105+E105,0,M105,TRUE)) ->  | I105: =IF(OR(F105="",G105=""),"",IF((G105*F105-1)>=coeff!$B$10,coeff!$B$8/coeff!$B$9*(G105*F105-1)/(G105-1),"")) ->  | J105: =IF(OR(F105="",H105=""),"",IF((H105*(1-F105)-1)>=coeff!$B$10,coeff!$B$8/coeff!$B$9*(H105*(1-F105)-1)/(H105-1),"")) -> 
F106: =IF(h2h!E106="","",NORMDIST(h2h!E106+E106,0,M106,TRUE)) ->  | I106: =IF(OR(F106="",G106=""),"",IF((G106*F106-1)>=coeff!$B$10,coeff!$B$8/coeff!$B$9*(G106*F106-1)/(G106-1),"")) ->  | J106: =IF(OR(F106="",H106=""),"",IF((H106*(1-F106)-1)>=coeff!$B$10,coeff!$B$8/coeff!$B$9*(H106*(1-F106)-1)/(H106-1),"")) -> 
F107: =IF(h2h!E107="","",NORMDIST(h2h!E107+E107,0,M107,TRUE)) ->  | I107: =IF(OR(F107="",G107=""),"",IF((G107*F107-1)>=coeff!$B$10,coeff!$B$8/coeff!$B$9*(G107*F107-1)/(G107-1),"")) ->  | J107: =IF(OR(F107="",H107=""),"",IF((H107*(1-F107)-1)>=coeff!$B$10,coeff!$B$8/coeff!$B$9*(H107*(1-F107)-1)/(H107-1),"")) -> 
F108: =IF(h2h!E108="","",NORMDIST(h2h!E108+E108,0,M108,TRUE)) ->  | I108: =IF(OR(F108="",G108=""),"",IF((G108*F108-1)>=coeff!$B$10,coeff!$B$8/coeff!$B$9*(G108*F108-1)/(G108-1),"")) ->  | J108: =IF(OR(F108="",H108=""),"",IF((H108*(1-F108)-1)>=coeff!$B$10,coeff!$B$8/coeff!$B$9*(H108*(1-F108)-1)/(H108-1),"")) -> 
F109: =IF(h2h!E109="","",NORMDIST(h2h!E109+E109,0,M109,TRUE)) ->  | I109: =IF(OR(F109="",G109=""),"",IF((G109*F109-1)>=coeff!$B$10,coeff!$B$8/coeff!$B$9*(G109*F109-1)/(G109-1),"")) ->  | J109: =IF(OR(F109="",H109=""),"",IF((H109*(1-F109)-1)>=coeff!$B$10,coeff!$B$8/coeff!$B$9*(H109*(1-F109)-1)/(H109-1),"")) -> 
F110: =IF(h2h!E110="","",NORMDIST(h2h!E110+E110,0,M110,TRUE)) ->  | I110: =IF(OR(F110="",G110=""),"",IF((G110*F110-1)>=coeff!$B$10,coeff!$B$8/coeff!$B$9*(G110*F110-1)/(G110-1),"")) ->  | J110: =IF(OR(F110="",H110=""),"",IF((H110*(1-F110)-1)>=coeff!$B$10,coeff!$B$8/coeff!$B$9*(H110*(1-F110)-1)/(H110-1),"")) -> 
F111: =IF(h2h!E111="","",NORMDIST(h2h!E111+E111,0,M111,TRUE)) ->  | I111: =IF(OR(F111="",G111=""),"",IF((G111*F111-1)>=coeff!$B$10,coeff!$B$8/coeff!$B$9*(G111*F111-1)/(G111-1),"")) ->  | J111: =IF(OR(F111="",H111=""),"",IF((H111*(1-F111)-1)>=coeff!$B$10,coeff!$B$8/coeff!$B$9*(H111*(1-F111)-1)/(H111-1),"")) -> 
F112: =IF(h2h!E112="","",NORMDIST(h2h!E112+E112,0,M112,TRUE)) ->  | I112: =IF(OR(F112="",G112=""),"",IF((G112*F112-1)>=coeff!$B$10,coeff!$B$8/coeff!$B$9*(G112*F112-1)/(G112-1),"")) ->  | J112: =IF(OR(F112="",H112=""),"",IF((H112*(1-F112)-1)>=coeff!$B$10,coeff!$B$8/coeff!$B$9*(H112*(1-F112)-1)/(H112-1),"")) -> 
F113: =IF(h2h!E113="","",NORMDIST(h2h!E113+E113,0,M113,TRUE)) ->  | I113: =IF(OR(F113="",G113=""),"",IF((G113*F113-1)>=coeff!$B$10,coeff!$B$8/coeff!$B$9*(G113*F113-1)/(G113-1),"")) ->  | J113: =IF(OR(F113="",H113=""),"",IF((H113*(1-F113)-1)>=coeff!$B$10,coeff!$B$8/coeff!$B$9*(H113*(1-F113)-1)/(H113-1),"")) -> 
F114: =IF(h2h!E114="","",NORMDIST(h2h!E114+E114,0,M114,TRUE)) ->  | I114: =IF(OR(F114="",G114=""),"",IF((G114*F114-1)>=coeff!$B$10,coeff!$B$8/coeff!$B$9*(G114*F114-1)/(G114-1),"")) ->  | J114: =IF(OR(F114="",H114=""),"",IF((H114*(1-F114)-1)>=coeff!$B$10,coeff!$B$8/coeff!$B$9*(H114*(1-F114)-1)/(H114-1),"")) -> 
F115: =IF(h2h!E115="","",NORMDIST(h2h!E115+E115,0,M115,TRUE)) ->  | I115: =IF(OR(F115="",G115=""),"",IF((G115*F115-1)>=coeff!$B$10,coeff!$B$8/coeff!$B$9*(G115*F115-1)/(G115-1),"")) ->  | J115: =IF(OR(F115="",H115=""),"",IF((H115*(1-F115)-1)>=coeff!$B$10,coeff!$B$8/coeff!$B$9*(H115*(1-F115)-1)/(H115-1),"")) -> 
F116: =IF(h2h!E116="","",NORMDIST(h2h!E116+E116,0,M116,TRUE)) ->  | I116: =IF(OR(F116="",G116=""),"",IF((G116*F116-1)>=coeff!$B$10,coeff!$B$8/coeff!$B$9*(G116*F116-1)/(G116-1),"")) ->  | J116: =IF(OR(F116="",H116=""),"",IF((H116*(1-F116)-1)>=coeff!$B$10,coeff!$B$8/coeff!$B$9*(H116*(1-F116)-1)/(H116-1),"")) -> 
F117: =IF(h2h!E117="","",NORMDIST(h2h!E117+E117,0,M117,TRUE)) ->  | I117: =IF(OR(F117="",G117=""),"",IF((G117*F117-1)>=coeff!$B$10,coeff!$B$8/coeff!$B$9*(G117*F117-1)/(G117-1),"")) ->  | J117: =IF(OR(F117="",H117=""),"",IF((H117*(1-F117)-1)>=coeff!$B$10,coeff!$B$8/coeff!$B$9*(H117*(1-F117)-1)/(H117-1),"")) -> 
F118: =IF(h2h!E118="","",NORMDIST(h2h!E118+E118,0,M118,TRUE)) ->  | I118: =IF(OR(F118="",G118=""),"",IF((G118*F118-1)>=coeff!$B$10,coeff!$B$8/coeff!$B$9*(G118*F118-1)/(G118-1),"")) ->  | J118: =IF(OR(F118="",H118=""),"",IF((H118*(1-F118)-1)>=coeff!$B$10,coeff!$B$8/coeff!$B$9*(H118*(1-F118)-1)/(H118-1),"")) -> 
F119: =IF(h2h!E119="","",NORMDIST(h2h!E119+E119,0,M119,TRUE)) ->  | I119: =IF(OR(F119="",G119=""),"",IF((G119*F119-1)>=coeff!$B$10,coeff!$B$8/coeff!$B$9*(G119*F119-1)/(G119-1),"")) ->  | J119: =IF(OR(F119="",H119=""),"",IF((H119*(1-F119)-1)>=coeff!$B$10,coeff!$B$8/coeff!$B$9*(H119*(1-F119)-1)/(H119-1),"")) -> 
F120: =IF(h2h!E120="","",NORMDIST(h2h!E120+E120,0,M120,TRUE)) ->  | I120: =IF(OR(F120="",G120=""),"",IF((G120*F120-1)>=coeff!$B$10,coeff!$B$8/coeff!$B$9*(G120*F120-1)/(G120-1),"")) ->  | J120: =IF(OR(F120="",H120=""),"",IF((H120*(1-F120)-1)>=coeff!$B$10,coeff!$B$8/coeff!$B$9*(H120*(1-F120)-1)/(H120-1),"")) -> 
F121: =IF(h2h!E121="","",NORMDIST(h2h!E121+E121,0,M121,TRUE)) ->  | I121: =IF(OR(F121="",G121=""),"",IF((G121*F121-1)>=coeff!$B$10,coeff!$B$8/coeff!$B$9*(G121*F121-1)/(G121-1),"")) ->  | J121: =IF(OR(F121="",H121=""),"",IF((H121*(1-F121)-1)>=coeff!$B$10,coeff!$B$8/coeff!$B$9*(H121*(1-F121)-1)/(H121-1),"")) -> 
F122: =IF(h2h!E122="","",NORMDIST(h2h!E122+E122,0,M122,TRUE)) ->  | I122: =IF(OR(F122="",G122=""),"",IF((G122*F122-1)>=coeff!$B$10,coeff!$B$8/coeff!$B$9*(G122*F122-1)/(G122-1),"")) ->  | J122: =IF(OR(F122="",H122=""),"",IF((H122*(1-F122)-1)>=coeff!$B$10,coeff!$B$8/coeff!$B$9*(H122*(1-F122)-1)/(H122-1),"")) -> 
F123: =IF(h2h!E123="","",NORMDIST(h2h!E123+E123,0,M123,TRUE)) ->  | I123: =IF(OR(F123="",G123=""),"",IF((G123*F123-1)>=coeff!$B$10,coeff!$B$8/coeff!$B$9*(G123*F123-1)/(G123-1),"")) ->  | J123: =IF(OR(F123="",H123=""),"",IF((H123*(1-F123)-1)>=coeff!$B$10,coeff!$B$8/coeff!$B$9*(H123*(1-F123)-1)/(H123-1),"")) -> 
F124: =IF(h2h!E124="","",NORMDIST(h2h!E124+E124,0,M124,TRUE)) ->  | I124: =IF(OR(F124="",G124=""),"",IF((G124*F124-1)>=coeff!$B$10,coeff!$B$8/coeff!$B$9*(G124*F124-1)/(G124-1),"")) ->  | J124: =IF(OR(F124="",H124=""),"",IF((H124*(1-F124)-1)>=coeff!$B$10,coeff!$B$8/coeff!$B$9*(H124*(1-F124)-1)/(H124-1),"")) -> 
F125: =IF(h2h!E125="","",NORMDIST(h2h!E125+E125,0,M125,TRUE)) ->  | I125: =IF(OR(F125="",G125=""),"",IF((G125*F125-1)>=coeff!$B$10,coeff!$B$8/coeff!$B$9*(G125*F125-1)/(G125-1),"")) ->  | J125: =IF(OR(F125="",H125=""),"",IF((H125*(1-F125)-1)>=coeff!$B$10,coeff!$B$8/coeff!$B$9*(H125*(1-F125)-1)/(H125-1),"")) -> 
F126: =IF(h2h!E126="","",NORMDIST(h2h!E126+E126,0,M126,TRUE)) ->  | I126: =IF(OR(F126="",G126=""),"",IF((G126*F126-1)>=coeff!$B$10,coeff!$B$8/coeff!$B$9*(G126*F126-1)/(G126-1),"")) ->  | J126: =IF(OR(F126="",H126=""),"",IF((H126*(1-F126)-1)>=coeff!$B$10,coeff!$B$8/coeff!$B$9*(H126*(1-F126)-1)/(H126-1),"")) -> 
F127: =IF(h2h!E127="","",NORMDIST(h2h!E127+E127,0,M127,TRUE)) ->  | I127: =IF(OR(F127="",G127=""),"",IF((G127*F127-1)>=coeff!$B$10,coeff!$B$8/coeff!$B$9*(G127*F127-1)/(G127-1),"")) ->  | J127: =IF(OR(F127="",H127=""),"",IF((H127*(1-F127)-1)>=coeff!$B$10,coeff!$B$8/coeff!$B$9*(H127*(1-F127)-1)/(H127-1),"")) -> 
F128: =IF(h2h!E128="","",NORMDIST(h2h!E128+E128,0,M128,TRUE)) ->  | I128: =IF(OR(F128="",G128=""),"",IF((G128*F128-1)>=coeff!$B$10,coeff!$B$8/coeff!$B$9*(G128*F128-1)/(G128-1),"")) ->  | J128: =IF(OR(F128="",H128=""),"",IF((H128*(1-F128)-1)>=coeff!$B$10,coeff!$B$8/coeff!$B$9*(H128*(1-F128)-1)/(H128-1),"")) -> 
F129: =IF(h2h!E129="","",NORMDIST(h2h!E129+E129,0,M129,TRUE)) ->  | I129: =IF(OR(F129="",G129=""),"",IF((G129*F129-1)>=coeff!$B$10,coeff!$B$8/coeff!$B$9*(G129*F129-1)/(G129-1),"")) ->  | J129: =IF(OR(F129="",H129=""),"",IF((H129*(1-F129)-1)>=coeff!$B$10,coeff!$B$8/coeff!$B$9*(H129*(1-F129)-1)/(H129-1),"")) -> 
F130: =IF(h2h!E130="","",NORMDIST(h2h!E130+E130,0,M130,TRUE)) ->  | I130: =IF(OR(F130="",G130=""),"",IF((G130*F130-1)>=coeff!$B$10,coeff!$B$8/coeff!$B$9*(G130*F130-1)/(G130-1),"")) ->  | J130: =IF(OR(F130="",H130=""),"",IF((H130*(1-F130)-1)>=coeff!$B$10,coeff!$B$8/coeff!$B$9*(H130*(1-F130)-1)/(H130-1),"")) -> 
F131: =IF(h2h!E131="","",NORMDIST(h2h!E131+E131,0,M131,TRUE)) ->  | I131: =IF(OR(F131="",G131=""),"",IF((G131*F131-1)>=coeff!$B$10,coeff!$B$8/coeff!$B$9*(G131*F131-1)/(G131-1),"")) ->  | J131: =IF(OR(F131="",H131=""),"",IF((H131*(1-F131)-1)>=coeff!$B$10,coeff!$B$8/coeff!$B$9*(H131*(1-F131)-1)/(H131-1),"")) -> 
F132: =IF(h2h!E132="","",NORMDIST(h2h!E132+E132,0,M132,TRUE)) ->  | I132: =IF(OR(F132="",G132=""),"",IF((G132*F132-1)>=coeff!$B$10,coeff!$B$8/coeff!$B$9*(G132*F132-1)/(G132-1),"")) ->  | J132: =IF(OR(F132="",H132=""),"",IF((H132*(1-F132)-1)>=coeff!$B$10,coeff!$B$8/coeff!$B$9*(H132*(1-F132)-1)/(H132-1),"")) -> 
F133: =IF(h2h!E133="","",NORMDIST(h2h!E133+E133,0,M133,TRUE)) ->  | I133: =IF(OR(F133="",G133=""),"",IF((G133*F133-1)>=coeff!$B$10,coeff!$B$8/coeff!$B$9*(G133*F133-1)/(G133-1),"")) ->  | J133: =IF(OR(F133="",H133=""),"",IF((H133*(1-F133)-1)>=coeff!$B$10,coeff!$B$8/coeff!$B$9*(H133*(1-F133)-1)/(H133-1),"")) -> 
F134: =IF(h2h!E134="","",NORMDIST(h2h!E134+E134,0,M134,TRUE)) ->  | I134: =IF(OR(F134="",G134=""),"",IF((G134*F134-1)>=coeff!$B$10,coeff!$B$8/coeff!$B$9*(G134*F134-1)/(G134-1),"")) ->  | J134: =IF(OR(F134="",H134=""),"",IF((H134*(1-F134)-1)>=coeff!$B$10,coeff!$B$8/coeff!$B$9*(H134*(1-F134)-1)/(H134-1),"")) -> 
F135: =IF(h2h!E135="","",NORMDIST(h2h!E135+E135,0,M135,TRUE)) ->  | I135: =IF(OR(F135="",G135=""),"",IF((G135*F135-1)>=coeff!$B$10,coeff!$B$8/coeff!$B$9*(G135*F135-1)/(G135-1),"")) ->  | J135: =IF(OR(F135="",H135=""),"",IF((H135*(1-F135)-1)>=coeff!$B$10,coeff!$B$8/coeff!$B$9*(H135*(1-F135)-1)/(H135-1),"")) -> 
F136: =IF(h2h!E136="","",NORMDIST(h2h!E136+E136,0,M136,TRUE)) ->  | I136: =IF(OR(F136="",G136=""),"",IF((G136*F136-1)>=coeff!$B$10,coeff!$B$8/coeff!$B$9*(G136*F136-1)/(G136-1),"")) ->  | J136: =IF(OR(F136="",H136=""),"",IF((H136*(1-F136)-1)>=coeff!$B$10,coeff!$B$8/coeff!$B$9*(H136*(1-F136)-1)/(H136-1),"")) -> 
F137: =IF(h2h!E137="","",NORMDIST(h2h!E137+E137,0,M137,TRUE)) ->  | I137: =IF(OR(F137="",G137=""),"",IF((G137*F137-1)>=coeff!$B$10,coeff!$B$8/coeff!$B$9*(G137*F137-1)/(G137-1),"")) ->  | J137: =IF(OR(F137="",H137=""),"",IF((H137*(1-F137)-1)>=coeff!$B$10,coeff!$B$8/coeff!$B$9*(H137*(1-F137)-1)/(H137-1),"")) -> 
F138: =IF(h2h!E138="","",NORMDIST(h2h!E138+E138,0,M138,TRUE)) ->  | I138: =IF(OR(F138="",G138=""),"",IF((G138*F138-1)>=coeff!$B$10,coeff!$B$8/coeff!$B$9*(G138*F138-1)/(G138-1),"")) ->  | J138: =IF(OR(F138="",H138=""),"",IF((H138*(1-F138)-1)>=coeff!$B$10,coeff!$B$8/coeff!$B$9*(H138*(1-F138)-1)/(H138-1),"")) -> 
F139: =IF(h2h!E139="","",NORMDIST(h2h!E139+E139,0,M139,TRUE)) ->  | I139: =IF(OR(F139="",G139=""),"",IF((G139*F139-1)>=coeff!$B$10,coeff!$B$8/coeff!$B$9*(G139*F139-1)/(G139-1),"")) ->  | J139: =IF(OR(F139="",H139=""),"",IF((H139*(1-F139)-1)>=coeff!$B$10,coeff!$B$8/coeff!$B$9*(H139*(1-F139)-1)/(H139-1),"")) -> 
F140: =IF(h2h!E140="","",NORMDIST(h2h!E140+E140,0,M140,TRUE)) ->  | I140: =IF(OR(F140="",G140=""),"",IF((G140*F140-1)>=coeff!$B$10,coeff!$B$8/coeff!$B$9*(G140*F140-1)/(G140-1),"")) ->  | J140: =IF(OR(F140="",H140=""),"",IF((H140*(1-F140)-1)>=coeff!$B$10,coeff!$B$8/coeff!$B$9*(H140*(1-F140)-1)/(H140-1),"")) -> 
F141: =IF(h2h!E141="","",NORMDIST(h2h!E141+E141,0,M141,TRUE)) ->  | I141: =IF(OR(F141="",G141=""),"",IF((G141*F141-1)>=coeff!$B$10,coeff!$B$8/coeff!$B$9*(G141*F141-1)/(G141-1),"")) ->  | J141: =IF(OR(F141="",H141=""),"",IF((H141*(1-F141)-1)>=coeff!$B$10,coeff!$B$8/coeff!$B$9*(H141*(1-F141)-1)/(H141-1),"")) -> 
F142: =IF(h2h!E142="","",NORMDIST(h2h!E142+E142,0,M142,TRUE)) ->  | I142: =IF(OR(F142="",G142=""),"",IF((G142*F142-1)>=coeff!$B$10,coeff!$B$8/coeff!$B$9*(G142*F142-1)/(G142-1),"")) ->  | J142: =IF(OR(F142="",H142=""),"",IF((H142*(1-F142)-1)>=coeff!$B$10,coeff!$B$8/coeff!$B$9*(H142*(1-F142)-1)/(H142-1),"")) -> 
F143: =IF(h2h!E143="","",NORMDIST(h2h!E143+E143,0,M143,TRUE)) ->  | I143: =IF(OR(F143="",G143=""),"",IF((G143*F143-1)>=coeff!$B$10,coeff!$B$8/coeff!$B$9*(G143*F143-1)/(G143-1),"")) ->  | J143: =IF(OR(F143="",H143=""),"",IF((H143*(1-F143)-1)>=coeff!$B$10,coeff!$B$8/coeff!$B$9*(H143*(1-F143)-1)/(H143-1),"")) -> 
F144: =IF(h2h!E144="","",NORMDIST(h2h!E144+E144,0,M144,TRUE)) ->  | I144: =IF(OR(F144="",G144=""),"",IF((G144*F144-1)>=coeff!$B$10,coeff!$B$8/coeff!$B$9*(G144*F144-1)/(G144-1),"")) ->  | J144: =IF(OR(F144="",H144=""),"",IF((H144*(1-F144)-1)>=coeff!$B$10,coeff!$B$8/coeff!$B$9*(H144*(1-F144)-1)/(H144-1),"")) -> 
F145: =IF(h2h!E145="","",NORMDIST(h2h!E145+E145,0,M145,TRUE)) ->  | I145: =IF(OR(F145="",G145=""),"",IF((G145*F145-1)>=coeff!$B$10,coeff!$B$8/coeff!$B$9*(G145*F145-1)/(G145-1),"")) ->  | J145: =IF(OR(F145="",H145=""),"",IF((H145*(1-F145)-1)>=coeff!$B$10,coeff!$B$8/coeff!$B$9*(H145*(1-F145)-1)/(H145-1),"")) -> 
F146: =IF(h2h!E146="","",NORMDIST(h2h!E146+E146,0,M146,TRUE)) ->  | I146: =IF(OR(F146="",G146=""),"",IF((G146*F146-1)>=coeff!$B$10,coeff!$B$8/coeff!$B$9*(G146*F146-1)/(G146-1),"")) ->  | J146: =IF(OR(F146="",H146=""),"",IF((H146*(1-F146)-1)>=coeff!$B$10,coeff!$B$8/coeff!$B$9*(H146*(1-F146)-1)/(H146-1),"")) -> 
F147: =IF(h2h!E147="","",NORMDIST(h2h!E147+E147,0,M147,TRUE)) ->  | I147: =IF(OR(F147="",G147=""),"",IF((G147*F147-1)>=coeff!$B$10,coeff!$B$8/coeff!$B$9*(G147*F147-1)/(G147-1),"")) ->  | J147: =IF(OR(F147="",H147=""),"",IF((H147*(1-F147)-1)>=coeff!$B$10,coeff!$B$8/coeff!$B$9*(H147*(1-F147)-1)/(H147-1),"")) -> 
F148: =IF(h2h!E148="","",NORMDIST(h2h!E148+E148,0,M148,TRUE)) ->  | I148: =IF(OR(F148="",G148=""),"",IF((G148*F148-1)>=coeff!$B$10,coeff!$B$8/coeff!$B$9*(G148*F148-1)/(G148-1),"")) ->  | J148: =IF(OR(F148="",H148=""),"",IF((H148*(1-F148)-1)>=coeff!$B$10,coeff!$B$8/coeff!$B$9*(H148*(1-F148)-1)/(H148-1),"")) -> 
F149: =IF(h2h!E149="","",NORMDIST(h2h!E149+E149,0,M149,TRUE)) ->  | I149: =IF(OR(F149="",G149=""),"",IF((G149*F149-1)>=coeff!$B$10,coeff!$B$8/coeff!$B$9*(G149*F149-1)/(G149-1),"")) ->  | J149: =IF(OR(F149="",H149=""),"",IF((H149*(1-F149)-1)>=coeff!$B$10,coeff!$B$8/coeff!$B$9*(H149*(1-F149)-1)/(H149-1),"")) -> 
F150: =IF(h2h!E150="","",NORMDIST(h2h!E150+E150,0,M150,TRUE)) ->  | I150: =IF(OR(F150="",G150=""),"",IF((G150*F150-1)>=coeff!$B$10,coeff!$B$8/coeff!$B$9*(G150*F150-1)/(G150-1),"")) ->  | J150: =IF(OR(F150="",H150=""),"",IF((H150*(1-F150)-1)>=coeff!$B$10,coeff!$B$8/coeff!$B$9*(H150*(1-F150)-1)/(H150-1),"")) -> 
F151: =IF(h2h!E151="","",NORMDIST(h2h!E151+E151,0,M151,TRUE)) ->  | I151: =IF(OR(F151="",G151=""),"",IF((G151*F151-1)>=coeff!$B$10,coeff!$B$8/coeff!$B$9*(G151*F151-1)/(G151-1),"")) ->  | J151: =IF(OR(F151="",H151=""),"",IF((H151*(1-F151)-1)>=coeff!$B$10,coeff!$B$8/coeff!$B$9*(H151*(1-F151)-1)/(H151-1),"")) -> 
F152: =IF(h2h!E152="","",NORMDIST(h2h!E152+E152,0,M152,TRUE)) ->  | I152: =IF(OR(F152="",G152=""),"",IF((G152*F152-1)>=coeff!$B$10,coeff!$B$8/coeff!$B$9*(G152*F152-1)/(G152-1),"")) ->  | J152: =IF(OR(F152="",H152=""),"",IF((H152*(1-F152)-1)>=coeff!$B$10,coeff!$B$8/coeff!$B$9*(H152*(1-F152)-1)/(H152-1),"")) -> 
F153: =IF(h2h!E153="","",NORMDIST(h2h!E153+E153,0,M153,TRUE)) ->  | I153: =IF(OR(F153="",G153=""),"",IF((G153*F153-1)>=coeff!$B$10,coeff!$B$8/coeff!$B$9*(G153*F153-1)/(G153-1),"")) ->  | J153: =IF(OR(F153="",H153=""),"",IF((H153*(1-F153)-1)>=coeff!$B$10,coeff!$B$8/coeff!$B$9*(H153*(1-F153)-1)/(H153-1),"")) -> 
F154: =IF(h2h!E154="","",NORMDIST(h2h!E154+E154,0,M154,TRUE)) ->  | I154: =IF(OR(F154="",G154=""),"",IF((G154*F154-1)>=coeff!$B$10,coeff!$B$8/coeff!$B$9*(G154*F154-1)/(G154-1),"")) ->  | J154: =IF(OR(F154="",H154=""),"",IF((H154*(1-F154)-1)>=coeff!$B$10,coeff!$B$8/coeff!$B$9*(H154*(1-F154)-1)/(H154-1),"")) -> 
F155: =IF(h2h!E155="","",NORMDIST(h2h!E155+E155,0,M155,TRUE)) ->  | I155: =IF(OR(F155="",G155=""),"",IF((G155*F155-1)>=coeff!$B$10,coeff!$B$8/coeff!$B$9*(G155*F155-1)/(G155-1),"")) ->  | J155: =IF(OR(F155="",H155=""),"",IF((H155*(1-F155)-1)>=coeff!$B$10,coeff!$B$8/coeff!$B$9*(H155*(1-F155)-1)/(H155-1),"")) -> 
F156: =IF(h2h!E156="","",NORMDIST(h2h!E156+E156,0,M156,TRUE)) ->  | I156: =IF(OR(F156="",G156=""),"",IF((G156*F156-1)>=coeff!$B$10,coeff!$B$8/coeff!$B$9*(G156*F156-1)/(G156-1),"")) ->  | J156: =IF(OR(F156="",H156=""),"",IF((H156*(1-F156)-1)>=coeff!$B$10,coeff!$B$8/coeff!$B$9*(H156*(1-F156)-1)/(H156-1),"")) -> 
F157: =IF(h2h!E157="","",NORMDIST(h2h!E157+E157,0,M157,TRUE)) ->  | I157: =IF(OR(F157="",G157=""),"",IF((G157*F157-1)>=coeff!$B$10,coeff!$B$8/coeff!$B$9*(G157*F157-1)/(G157-1),"")) ->  | J157: =IF(OR(F157="",H157=""),"",IF((H157*(1-F157)-1)>=coeff!$B$10,coeff!$B$8/coeff!$B$9*(H157*(1-F157)-1)/(H157-1),"")) -> 
F158: =IF(h2h!E158="","",NORMDIST(h2h!E158+E158,0,M158,TRUE)) ->  | I158: =IF(OR(F158="",G158=""),"",IF((G158*F158-1)>=coeff!$B$10,coeff!$B$8/coeff!$B$9*(G158*F158-1)/(G158-1),"")) ->  | J158: =IF(OR(F158="",H158=""),"",IF((H158*(1-F158)-1)>=coeff!$B$10,coeff!$B$8/coeff!$B$9*(H158*(1-F158)-1)/(H158-1),"")) -> 
F159: =IF(h2h!E159="","",NORMDIST(h2h!E159+E159,0,M159,TRUE)) ->  | I159: =IF(OR(F159="",G159=""),"",IF((G159*F159-1)>=coeff!$B$10,coeff!$B$8/coeff!$B$9*(G159*F159-1)/(G159-1),"")) ->  | J159: =IF(OR(F159="",H159=""),"",IF((H159*(1-F159)-1)>=coeff!$B$10,coeff!$B$8/coeff!$B$9*(H159*(1-F159)-1)/(H159-1),"")) -> 
F160: =IF(h2h!E160="","",NORMDIST(h2h!E160+E160,0,M160,TRUE)) ->  | I160: =IF(OR(F160="",G160=""),"",IF((G160*F160-1)>=coeff!$B$10,coeff!$B$8/coeff!$B$9*(G160*F160-1)/(G160-1),"")) ->  | J160: =IF(OR(F160="",H160=""),"",IF((H160*(1-F160)-1)>=coeff!$B$10,coeff!$B$8/coeff!$B$9*(H160*(1-F160)-1)/(H160-1),"")) -> 
F161: =IF(h2h!E161="","",NORMDIST(h2h!E161+E161,0,M161,TRUE)) ->  | I161: =IF(OR(F161="",G161=""),"",IF((G161*F161-1)>=coeff!$B$10,coeff!$B$8/coeff!$B$9*(G161*F161-1)/(G161-1),"")) ->  | J161: =IF(OR(F161="",H161=""),"",IF((H161*(1-F161)-1)>=coeff!$B$10,coeff!$B$8/coeff!$B$9*(H161*(1-F161)-1)/(H161-1),"")) -> 
F162: =IF(h2h!E162="","",NORMDIST(h2h!E162+E162,0,M162,TRUE)) ->  | I162: =IF(OR(F162="",G162=""),"",IF((G162*F162-1)>=coeff!$B$10,coeff!$B$8/coeff!$B$9*(G162*F162-1)/(G162-1),"")) ->  | J162: =IF(OR(F162="",H162=""),"",IF((H162*(1-F162)-1)>=coeff!$B$10,coeff!$B$8/coeff!$B$9*(H162*(1-F162)-1)/(H162-1),"")) -> 
F163: =IF(h2h!E163="","",NORMDIST(h2h!E163+E163,0,M163,TRUE)) ->  | I163: =IF(OR(F163="",G163=""),"",IF((G163*F163-1)>=coeff!$B$10,coeff!$B$8/coeff!$B$9*(G163*F163-1)/(G163-1),"")) ->  | J163: =IF(OR(F163="",H163=""),"",IF((H163*(1-F163)-1)>=coeff!$B$10,coeff!$B$8/coeff!$B$9*(H163*(1-F163)-1)/(H163-1),"")) -> 
F164: =IF(h2h!E164="","",NORMDIST(h2h!E164+E164,0,M164,TRUE)) ->  | I164: =IF(OR(F164="",G164=""),"",IF((G164*F164-1)>=coeff!$B$10,coeff!$B$8/coeff!$B$9*(G164*F164-1)/(G164-1),"")) ->  | J164: =IF(OR(F164="",H164=""),"",IF((H164*(1-F164)-1)>=coeff!$B$10,coeff!$B$8/coeff!$B$9*(H164*(1-F164)-1)/(H164-1),"")) -> 
F165: =IF(h2h!E165="","",NORMDIST(h2h!E165+E165,0,M165,TRUE)) ->  | I165: =IF(OR(F165="",G165=""),"",IF((G165*F165-1)>=coeff!$B$10,coeff!$B$8/coeff!$B$9*(G165*F165-1)/(G165-1),"")) ->  | J165: =IF(OR(F165="",H165=""),"",IF((H165*(1-F165)-1)>=coeff!$B$10,coeff!$B$8/coeff!$B$9*(H165*(1-F165)-1)/(H165-1),"")) -> 
F166: =IF(h2h!E166="","",NORMDIST(h2h!E166+E166,0,M166,TRUE)) ->  | I166: =IF(OR(F166="",G166=""),"",IF((G166*F166-1)>=coeff!$B$10,coeff!$B$8/coeff!$B$9*(G166*F166-1)/(G166-1),"")) ->  | J166: =IF(OR(F166="",H166=""),"",IF((H166*(1-F166)-1)>=coeff!$B$10,coeff!$B$8/coeff!$B$9*(H166*(1-F166)-1)/(H166-1),"")) -> 
F167: =IF(h2h!E167="","",NORMDIST(h2h!E167+E167,0,M167,TRUE)) ->  | I167: =IF(OR(F167="",G167=""),"",IF((G167*F167-1)>=coeff!$B$10,coeff!$B$8/coeff!$B$9*(G167*F167-1)/(G167-1),"")) ->  | J167: =IF(OR(F167="",H167=""),"",IF((H167*(1-F167)-1)>=coeff!$B$10,coeff!$B$8/coeff!$B$9*(H167*(1-F167)-1)/(H167-1),"")) -> 
F168: =IF(h2h!E168="","",NORMDIST(h2h!E168+E168,0,M168,TRUE)) ->  | I168: =IF(OR(F168="",G168=""),"",IF((G168*F168-1)>=coeff!$B$10,coeff!$B$8/coeff!$B$9*(G168*F168-1)/(G168-1),"")) ->  | J168: =IF(OR(F168="",H168=""),"",IF((H168*(1-F168)-1)>=coeff!$B$10,coeff!$B$8/coeff!$B$9*(H168*(1-F168)-1)/(H168-1),"")) -> 
F169: =IF(h2h!E169="","",NORMDIST(h2h!E169+E169,0,M169,TRUE)) ->  | I169: =IF(OR(F169="",G169=""),"",IF((G169*F169-1)>=coeff!$B$10,coeff!$B$8/coeff!$B$9*(G169*F169-1)/(G169-1),"")) ->  | J169: =IF(OR(F169="",H169=""),"",IF((H169*(1-F169)-1)>=coeff!$B$10,coeff!$B$8/coeff!$B$9*(H169*(1-F169)-1)/(H169-1),"")) -> 
F170: =IF(h2h!E170="","",NORMDIST(h2h!E170+E170,0,M170,TRUE)) ->  | I170: =IF(OR(F170="",G170=""),"",IF((G170*F170-1)>=coeff!$B$10,coeff!$B$8/coeff!$B$9*(G170*F170-1)/(G170-1),"")) ->  | J170: =IF(OR(F170="",H170=""),"",IF((H170*(1-F170)-1)>=coeff!$B$10,coeff!$B$8/coeff!$B$9*(H170*(1-F170)-1)/(H170-1),"")) -> 
F171: =IF(h2h!E171="","",NORMDIST(h2h!E171+E171,0,M171,TRUE)) ->  | I171: =IF(OR(F171="",G171=""),"",IF((G171*F171-1)>=coeff!$B$10,coeff!$B$8/coeff!$B$9*(G171*F171-1)/(G171-1),"")) ->  | J171: =IF(OR(F171="",H171=""),"",IF((H171*(1-F171)-1)>=coeff!$B$10,coeff!$B$8/coeff!$B$9*(H171*(1-F171)-1)/(H171-1),"")) -> 
F172: =IF(h2h!E172="","",NORMDIST(h2h!E172+E172,0,M172,TRUE)) ->  | I172: =IF(OR(F172="",G172=""),"",IF((G172*F172-1)>=coeff!$B$10,coeff!$B$8/coeff!$B$9*(G172*F172-1)/(G172-1),"")) ->  | J172: =IF(OR(F172="",H172=""),"",IF((H172*(1-F172)-1)>=coeff!$B$10,coeff!$B$8/coeff!$B$9*(H172*(1-F172)-1)/(H172-1),"")) -> 
F173: =IF(h2h!E173="","",NORMDIST(h2h!E173+E173,0,M173,TRUE)) ->  | I173: =IF(OR(F173="",G173=""),"",IF((G173*F173-1)>=coeff!$B$10,coeff!$B$8/coeff!$B$9*(G173*F173-1)/(G173-1),"")) ->  | J173: =IF(OR(F173="",H173=""),"",IF((H173*(1-F173)-1)>=coeff!$B$10,coeff!$B$8/coeff!$B$9*(H173*(1-F173)-1)/(H173-1),"")) -> 
F174: =IF(h2h!E174="","",NORMDIST(h2h!E174+E174,0,M174,TRUE)) ->  | I174: =IF(OR(F174="",G174=""),"",IF((G174*F174-1)>=coeff!$B$10,coeff!$B$8/coeff!$B$9*(G174*F174-1)/(G174-1),"")) ->  | J174: =IF(OR(F174="",H174=""),"",IF((H174*(1-F174)-1)>=coeff!$B$10,coeff!$B$8/coeff!$B$9*(H174*(1-F174)-1)/(H174-1),"")) -> 
F175: =IF(h2h!E175="","",NORMDIST(h2h!E175+E175,0,M175,TRUE)) ->  | I175: =IF(OR(F175="",G175=""),"",IF((G175*F175-1)>=coeff!$B$10,coeff!$B$8/coeff!$B$9*(G175*F175-1)/(G175-1),"")) ->  | J175: =IF(OR(F175="",H175=""),"",IF((H175*(1-F175)-1)>=coeff!$B$10,coeff!$B$8/coeff!$B$9*(H175*(1-F175)-1)/(H175-1),"")) -> 
F176: =IF(h2h!E176="","",NORMDIST(h2h!E176+E176,0,M176,TRUE)) ->  | I176: =IF(OR(F176="",G176=""),"",IF((G176*F176-1)>=coeff!$B$10,coeff!$B$8/coeff!$B$9*(G176*F176-1)/(G176-1),"")) ->  | J176: =IF(OR(F176="",H176=""),"",IF((H176*(1-F176)-1)>=coeff!$B$10,coeff!$B$8/coeff!$B$9*(H176*(1-F176)-1)/(H176-1),"")) -> 
F177: =IF(h2h!E177="","",NORMDIST(h2h!E177+E177,0,M177,TRUE)) ->  | I177: =IF(OR(F177="",G177=""),"",IF((G177*F177-1)>=coeff!$B$10,coeff!$B$8/coeff!$B$9*(G177*F177-1)/(G177-1),"")) ->  | J177: =IF(OR(F177="",H177=""),"",IF((H177*(1-F177)-1)>=coeff!$B$10,coeff!$B$8/coeff!$B$9*(H177*(1-F177)-1)/(H177-1),"")) -> 
F178: =IF(h2h!E178="","",NORMDIST(h2h!E178+E178,0,M178,TRUE)) ->  | I178: =IF(OR(F178="",G178=""),"",IF((G178*F178-1)>=coeff!$B$10,coeff!$B$8/coeff!$B$9*(G178*F178-1)/(G178-1),"")) ->  | J178: =IF(OR(F178="",H178=""),"",IF((H178*(1-F178)-1)>=coeff!$B$10,coeff!$B$8/coeff!$B$9*(H178*(1-F178)-1)/(H178-1),"")) -> 
F179: =IF(h2h!E179="","",NORMDIST(h2h!E179+E179,0,M179,TRUE)) ->  | I179: =IF(OR(F179="",G179=""),"",IF((G179*F179-1)>=coeff!$B$10,coeff!$B$8/coeff!$B$9*(G179*F179-1)/(G179-1),"")) ->  | J179: =IF(OR(F179="",H179=""),"",IF((H179*(1-F179)-1)>=coeff!$B$10,coeff!$B$8/coeff!$B$9*(H179*(1-F179)-1)/(H179-1),"")) -> 
F180: =IF(h2h!E180="","",NORMDIST(h2h!E180+E180,0,M180,TRUE)) ->  | I180: =IF(OR(F180="",G180=""),"",IF((G180*F180-1)>=coeff!$B$10,coeff!$B$8/coeff!$B$9*(G180*F180-1)/(G180-1),"")) ->  | J180: =IF(OR(F180="",H180=""),"",IF((H180*(1-F180)-1)>=coeff!$B$10,coeff!$B$8/coeff!$B$9*(H180*(1-F180)-1)/(H180-1),"")) -> 
F181: =IF(h2h!E181="","",NORMDIST(h2h!E181+E181,0,M181,TRUE)) ->  | I181: =IF(OR(F181="",G181=""),"",IF((G181*F181-1)>=coeff!$B$10,coeff!$B$8/coeff!$B$9*(G181*F181-1)/(G181-1),"")) ->  | J181: =IF(OR(F181="",H181=""),"",IF((H181*(1-F181)-1)>=coeff!$B$10,coeff!$B$8/coeff!$B$9*(H181*(1-F181)-1)/(H181-1),"")) -> 
F182: =IF(h2h!E182="","",NORMDIST(h2h!E182+E182,0,M182,TRUE)) -> 
F183: =IF(h2h!E183="","",NORMDIST(h2h!E183+E183,0,M183,TRUE)) -> 
F184: =IF(h2h!E184="","",NORMDIST(h2h!E184+E184,0,M184,TRUE)) -> 
F185: =IF(h2h!E185="","",NORMDIST(h2h!E185+E185,0,M185,TRUE)) -> 
F186: =IF(h2h!E186="","",NORMDIST(h2h!E186+E186,0,M186,TRUE)) -> 
F187: =IF(h2h!E187="","",NORMDIST(h2h!E187+E187,0,M187,TRUE)) -> 
F188: =IF(h2h!E188="","",NORMDIST(h2h!E188+E188,0,M188,TRUE)) -> 
F189: =IF(h2h!E189="","",NORMDIST(h2h!E189+E189,0,M189,TRUE)) -> 
F190: =IF(h2h!E190="","",NORMDIST(h2h!E190+E190,0,M190,TRUE)) -> 
F191: =IF(h2h!E191="","",NORMDIST(h2h!E191+E191,0,M191,TRUE)) -> 
F192: =IF(h2h!E192="","",NORMDIST(h2h!E192+E192,0,M192,TRUE)) -> 
F193: =IF(h2h!E193="","",NORMDIST(h2h!E193+E193,0,M193,TRUE)) -> 
F194: =IF(h2h!E194="","",NORMDIST(h2h!E194+E194,0,M194,TRUE)) -> 
F195: =IF(h2h!E195="","",NORMDIST(h2h!E195+E195,0,M195,TRUE)) -> 
F196: =IF(h2h!E196="","",NORMDIST(h2h!E196+E196,0,M196,TRUE)) -> 
F197: =IF(h2h!E197="","",NORMDIST(h2h!E197+E197,0,M197,TRUE)) -> 
F198: =IF(h2h!E198="","",NORMDIST(h2h!E198+E198,0,M198,TRUE)) -> 
F199: =IF(h2h!E199="","",NORMDIST(h2h!E199+E199,0,M199,TRUE)) -> 
F200: =IF(h2h!E200="","",NORMDIST(h2h!E200+E200,0,M200,TRUE)) -> 
F201: =IF(h2h!E201="","",NORMDIST(h2h!E201+E201,0,M201,TRUE)) -> 
... 3 more rows

Sheet totals
M1: Sportpunter's EURO basketball STDs as of 22/02/2016 5:00:30 PM AEST
A3: League | B3: Start Time | C3: Team1 | D3: Team2 | E3: ExpectedTotal | F3: TotalLine | G3: ProbOver | H3: OddsOver | I3: OddsUnder | J3: $BetOver | K3: $BetUnder | M3: c | N3: StddevTotal
A4: Greece - Basket League | B4: 2016-02-22 | C4: GS Lavrio | D4: Kolossos | E4: 145 | F4: 148 | G4: =IF(F4="","",NORMDIST(E4-F4,0,N4,TRUE)) -> 0.4283244942 | H4: 1.95 | I4: 1.95 | J4: =IF(OR(G4="",H4=""),"",IF((H4*G4-1)>=coeff!$B$15,coeff!$B$13/coeff!$B$14*(H4*G4-1)/(H4-1),"")) ->  | K4: =IF(OR(G4="",I4="",E4=""),"",IF((I4*(1-G4)-1)>=coeff!$B$15,coeff!$B$13/coeff!$B$14*(I4*(1-G4)-1)/(I4-1),"")) -> 12.08076172 | M4: 16.78399481 | N4: 16.6074805
A5: Greece - Basket League | B5: 2016-02-22 | C5: AO Aiolos Trikallon | D5: A.G.O Rethymno | E5: 154.7 | F5: 157 | G5: =IF(F5="","",NORMDIST(E5-F5,0,N5,TRUE)) -> 0.4449258718 | H5: 1.95 | I5: 1.95 | J5: =IF(OR(G5="",H5=""),"",IF((H5*G5-1)>=coeff!$B$15,coeff!$B$13/coeff!$B$14*(H5*G5-1)/(H5-1),"")) ->  | K5: =IF(OR(G5="",I5="",E5=""),"",IF((I5*(1-G5)-1)>=coeff!$B$15,coeff!$B$13/coeff!$B$14*(I5*(1-G5)-1)/(I5-1),"")) -> 8.673110532 | M5: 16.78399481 | N5: 16.6074805
A6: Greece - Basket League | B6: 2016-02-22 | C6: AS Koroivos Amaliadas | D6: Olympiakos Piraeus | E6: 150 | F6: 145 | G6: 0.6183191166 | H6: 1.95 | I6: 1.95 | J6: =IF(OR(G6="",H6=""),"",IF((H6*G6-1)>=coeff!$B$15,coeff!$B$13/coeff!$B$14*(H6*G6-1)/(H6-1),"")) -> 21.65497657 | K6: =IF(OR(G6="",I6="",E6=""),"",IF((I6*(1-G6)-1)>=coeff!$B$15,coeff!$B$13/coeff!$B$14*(I6*(1-G6)-1)/(I6-1),"")) ->  | M6: 16.78399481 | N6: 16.6074805
A7: Greece - Basket League | B7: 2016-02-22 | C7: SEFA Arkadikos | D7: Apollon Patras | E7: 144.7 | F7: 145.5 | G7: 0.4807899556 | H7: 1.93 | I7: 1.93 | J7: =IF(OR(G7="",H7=""),"",IF((H7*G7-1)>=coeff!$B$15,coeff!$B$13/coeff!$B$14*(H7*G7-1)/(H7-1),"")) ->  | K7: =IF(OR(G7="",I7="",E7=""),"",IF((I7*(1-G7)-1)>=coeff!$B$15,coeff!$B$13/coeff!$B$14*(I7*(1-G7)-1)/(I7-1),"")) ->  | M7: 16.78399481 | N7: 16.6074805
A8: Argentina - Liga Nacional de Bá | B8: 2016-02-23 | C8: San Lorenzo | D8: Ciclista Olímpico | E8: 158.8 | F8: 161 | G8: 0.4539745541 | H8: 1.98 | I8: 1.88 | J8: =IF(OR(G8="",H8=""),"",IF((H8*G8-1)>=coeff!$B$15,coeff!$B$13/coeff!$B$14*(H8*G8-1)/(H8-1),"")) ->  | K8: =IF(OR(G8="",I8="",E8=""),"",IF((I8*(1-G8)-1)>=coeff!$B$15,coeff!$B$13/coeff!$B$14*(I8*(1-G8)-1)/(I8-1),"")) ->  | M8: 14.64536556 | N8: 19.02689405
A9: Argentina - Liga Nacional de Bá | B9: 2016-02-23 | C9: Atenas | D9: Argentino Junín | E9: 152 | F9: 152.5 | G9: 0.4895175648 | H9: 1.96 | I9: 1.9 | J9: =IF(OR(G9="",H9=""),"",IF((H9*G9-1)>=coeff!$B$15,coeff!$B$13/coeff!$B$14*(H9*G9-1)/(H9-1),"")) ->  | K9: =IF(OR(G9="",I9="",E9=""),"",IF((I9*(1-G9)-1)>=coeff!$B$15,coeff!$B$13/coeff!$B$14*(I9*(1-G9)-1)/(I9-1),"")) ->  | M9: 14.64536556 | N9: 19.02689405
A10: Argentina - Liga Nacional de Bá | B10: 2016-02-23 | C10: San Martín Corrientes | D10: Regatas | E10: 167 | F10: 165.5 | G10: 0.5314183772 | H10: 1.93 | I10: 1.93 | J10: =IF(OR(G10="",H10=""),"",IF((H10*G10-1)>=coeff!$B$15,coeff!$B$13/coeff!$B$14*(H10*G10-1)/(H10-1),"")) ->  | K10: =IF(OR(G10="",I10="",E10=""),"",IF((I10*(1-G10)-1)>=coeff!$B$15,coeff!$B$13/coeff!$B$14*(I10*(1-G10)-1)/(I10-1),"")) ->  | M10: 14.64536556 | N10: 19.02689405
A11: Argentina - Liga Nacional de Bá | B11: 2016-02-23 | C11: Quilmes | D11: Lanús | E11: 163.3 | F11: 160.5 | G11: 0.558497181 | H11: 1.9 | I11: 1.96 | J11: =IF(OR(G11="",H11=""),"",IF((H11*G11-1)>=coeff!$B$15,coeff!$B$13/coeff!$B$14*(H11*G11-1)/(H11-1),"")) -> 6.793849329 | K11: =IF(OR(G11="",I11="",E11=""),"",IF((I11*(1-G11)-1)>=coeff!$B$15,coeff!$B$13/coeff!$B$14*(I11*(1-G11)-1)/(I11-1),"")) ->  | M11: 14.64536556 | N11: 19.02689405
A12: Austria - Bundesliga | B12: 2016-02-22 | C12: Swans Gmunden | D12: WBC Wels | E12: 154.5 | F12: 154.5 | G12: 0.5 | H12: 1.95 | I12: 1.95 | J12: =IF(OR(G12="",H12=""),"",IF((H12*G12-1)>=coeff!$B$15,coeff!$B$13/coeff!$B$14*(H12*G12-1)/(H12-1),"")) ->  | K12: =IF(OR(G12="",I12="",E12=""),"",IF((I12*(1-G12)-1)>=coeff!$B$15,coeff!$B$13/coeff!$B$14*(I12*(1-G12)-1)/(I12-1),"")) ->  | M12: 15.0618625 | N12: 19.18306714
A13: Europe - VTB League | B13: 2016-02-22 | C13: Kalev/Cramo Tallinn | D13: CSKA Moskva | F13: 168 | G13: 6.299918223e-26 | H13: 1.96 | I13: 1.96 | J13: =IF(OR(G13="",H13=""),"",IF((H13*G13-1)>=coeff!$B$15,coeff!$B$13/coeff!$B$14*(H13*G13-1)/(H13-1),"")) ->  | K13: =IF(OR(G13="",I13="",E13=""),"",IF((I13*(1-G13)-1)>=coeff!$B$15,coeff!$B$13/coeff!$B$14*(I13*(1-G13)-1)/(I13-1),"")) ->  | M13: 15.46021286 | N13: 16.05457863
A14: Europe - VTB League | B14: 2016-02-22 | C14: VEF Riga | D14: ČEZ Nymburk | F14: 163 | G14: 1.608847389e-24 | H14: 1.95 | I14: 1.95 | J14: =IF(OR(G14="",H14=""),"",IF((H14*G14-1)>=coeff!$B$15,coeff!$B$13/coeff!$B$14*(H14*G14-1)/(H14-1),"")) ->  | K14: =IF(OR(G14="",I14="",E14=""),"",IF((I14*(1-G14)-1)>=coeff!$B$15,coeff!$B$13/coeff!$B$14*(I14*(1-G14)-1)/(I14-1),"")) ->  | M14: 15.46021286 | N14: 16.05457863
A15: Israel - Ligat Haal | B15: 2016-02-22 | C15: Ironi Nes Ziona | D15: Maccabi Haifa | E15: 157.3 | F15: 156 | G15: 0.5297363132 | H15: 1.95 | I15: 1.95 | J15: =IF(OR(G15="",H15=""),"",IF((H15*G15-1)>=coeff!$B$15,coeff!$B$13/coeff!$B$14*(H15*G15-1)/(H15-1),"")) ->  | K15: =IF(OR(G15="",I15="",E15=""),"",IF((I15*(1-G15)-1)>=coeff!$B$15,coeff!$B$13/coeff!$B$14*(I15*(1-G15)-1)/(I15-1),"")) ->  | M15: 14.5885713 | N15: 17.4246294
A16: Israel - Ligat Haal | B16: 2016-02-22 | C16: Bnei HaSharon | D16: Maccabi Kiryat Gat | E16: 169.4 | F16: 163.5 | G16: 0.6325449016 | H16: 1.93 | I16: 1.98 | J16: =IF(OR(G16="",H16=""),"",IF((H16*G16-1)>=coeff!$B$15,coeff!$B$13/coeff!$B$14*(H16*G16-1)/(H16-1),"")) -> 23.74318925 | K16: =IF(OR(G16="",I16="",E16=""),"",IF((I16*(1-G16)-1)>=coeff!$B$15,coeff!$B$13/coeff!$B$14*(I16*(1-G16)-1)/(I16-1),"")) ->  | M16: 14.5885713 | N16: 17.4246294
A17: Sweden - Ligan | B17: 2016-02-22 | C17: BC Luleå | D17: Sundsvall | E17: 169.5 | F17: 169.5 | G17: 0.5 | H17: 1.97 | I17: 1.93 | J17: =IF(OR(G17="",H17=""),"",IF((H17*G17-1)>=coeff!$B$15,coeff!$B$13/coeff!$B$14*(H17*G17-1)/(H17-1),"")) ->  | K17: =IF(OR(G17="",I17="",E17=""),"",IF((I17*(1-G17)-1)>=coeff!$B$15,coeff!$B$13/coeff!$B$14*(I17*(1-G17)-1)/(I17-1),"")) ->  | M17: 15.12176559 | N17: 18.91299025
A18: Ukraine - Superleague | B18: 2016-02-22 | C18: BC Odesa | D18: Dnipro Dnepropetrovsk | E18: 152.3 | J18: =IF(OR(G18="",H18=""),"",IF((H18*G18-1)>=coeff!$B$15,coeff!$B$13/coeff!$B$14*(H18*G18-1)/(H18-1),"")) ->  | K18: =IF(OR(G18="",I18="",E18=""),"",IF((I18*(1-G18)-1)>=coeff!$B$15,coeff!$B$13/coeff!$B$14*(I18*(1-G18)-1)/(I18-1),"")) ->  | M18: 15.00750026 | N18: 16.44627514
A19: Czech Republic - NBL | B19: 2016-02-22 | C19: ČEZ Nymburk | D19: BC Kolín | E19: 158.6 | J19: =IF(OR(G19="",H19=""),"",IF((H19*G19-1)>=coeff!$B$15,coeff!$B$13/coeff!$B$14*(H19*G19-1)/(H19-1),"")) ->  | K19: =IF(OR(G19="",I19="",E19=""),"",IF((I19*(1-G19)-1)>=coeff!$B$15,coeff!$B$13/coeff!$B$14*(I19*(1-G19)-1)/(I19-1),"")) ->  | M19: 20.70478782 | N19: 17.22303232
J20: =IF(OR(G20="",H20=""),"",IF((H20*G20-1)>=coeff!$B$15,coeff!$B$13/coeff!$B$14*(H20*G20-1)/(H20-1),"")) ->  | K20: =IF(OR(G20="",I20="",E20=""),"",IF((I20*(1-G20)-1)>=coeff!$B$15,coeff!$B$13/coeff!$B$14*(I20*(1-G20)-1)/(I20-1),"")) ->  | M20: 18.09515455 | N20: 20.44940688
J21: =IF(OR(G21="",H21=""),"",IF((H21*G21-1)>=coeff!$B$15,coeff!$B$13/coeff!$B$14*(H21*G21-1)/(H21-1),"")) ->  | K21: =IF(OR(G21="",I21="",E21=""),"",IF((I21*(1-G21)-1)>=coeff!$B$15,coeff!$B$13/coeff!$B$14*(I21*(1-G21)-1)/(I21-1),"")) -> 
J22: =IF(OR(G22="",H22=""),"",IF((H22*G22-1)>=coeff!$B$15,coeff!$B$13/coeff!$B$14*(H22*G22-1)/(H22-1),"")) ->  | K22: =IF(OR(G22="",I22="",E22=""),"",IF((I22*(1-G22)-1)>=coeff!$B$15,coeff!$B$13/coeff!$B$14*(I22*(1-G22)-1)/(I22-1),"")) -> 
J23: =IF(OR(G23="",H23=""),"",IF((H23*G23-1)>=coeff!$B$15,coeff!$B$13/coeff!$B$14*(H23*G23-1)/(H23-1),"")) ->  | K23: =IF(OR(G23="",I23="",E23=""),"",IF((I23*(1-G23)-1)>=coeff!$B$15,coeff!$B$13/coeff!$B$14*(I23*(1-G23)-1)/(I23-1),"")) -> 
J24: =IF(OR(G24="",H24=""),"",IF((H24*G24-1)>=coeff!$B$15,coeff!$B$13/coeff!$B$14*(H24*G24-1)/(H24-1),"")) ->  | K24: =IF(OR(G24="",I24="",E24=""),"",IF((I24*(1-G24)-1)>=coeff!$B$15,coeff!$B$13/coeff!$B$14*(I24*(1-G24)-1)/(I24-1),"")) -> 
J25: =IF(OR(G25="",H25=""),"",IF((H25*G25-1)>=coeff!$B$15,coeff!$B$13/coeff!$B$14*(H25*G25-1)/(H25-1),"")) ->  | K25: =IF(OR(G25="",I25="",E25=""),"",IF((I25*(1-G25)-1)>=coeff!$B$15,coeff!$B$13/coeff!$B$14*(I25*(1-G25)-1)/(I25-1),"")) -> 
J26: =IF(OR(G26="",H26=""),"",IF((H26*G26-1)>=coeff!$B$15,coeff!$B$13/coeff!$B$14*(H26*G26-1)/(H26-1),"")) ->  | K26: =IF(OR(G26="",I26="",E26=""),"",IF((I26*(1-G26)-1)>=coeff!$B$15,coeff!$B$13/coeff!$B$14*(I26*(1-G26)-1)/(I26-1),"")) -> 
J27: =IF(OR(G27="",H27=""),"",IF((H27*G27-1)>=coeff!$B$15,coeff!$B$13/coeff!$B$14*(H27*G27-1)/(H27-1),"")) ->  | K27: =IF(OR(G27="",I27="",E27=""),"",IF((I27*(1-G27)-1)>=coeff!$B$15,coeff!$B$13/coeff!$B$14*(I27*(1-G27)-1)/(I27-1),"")) -> 
J28: =IF(OR(G28="",H28=""),"",IF((H28*G28-1)>=coeff!$B$15,coeff!$B$13/coeff!$B$14*(H28*G28-1)/(H28-1),"")) ->  | K28: =IF(OR(G28="",I28="",E28=""),"",IF((I28*(1-G28)-1)>=coeff!$B$15,coeff!$B$13/coeff!$B$14*(I28*(1-G28)-1)/(I28-1),"")) -> 
J29: =IF(OR(G29="",H29=""),"",IF((H29*G29-1)>=coeff!$B$15,coeff!$B$13/coeff!$B$14*(H29*G29-1)/(H29-1),"")) ->  | K29: =IF(OR(G29="",I29="",E29=""),"",IF((I29*(1-G29)-1)>=coeff!$B$15,coeff!$B$13/coeff!$B$14*(I29*(1-G29)-1)/(I29-1),"")) -> 
J30: =IF(OR(G30="",H30=""),"",IF((H30*G30-1)>=coeff!$B$15,coeff!$B$13/coeff!$B$14*(H30*G30-1)/(H30-1),"")) ->  | K30: =IF(OR(G30="",I30="",E30=""),"",IF((I30*(1-G30)-1)>=coeff!$B$15,coeff!$B$13/coeff!$B$14*(I30*(1-G30)-1)/(I30-1),"")) -> 
J31: =IF(OR(G31="",H31=""),"",IF((H31*G31-1)>=coeff!$B$15,coeff!$B$13/coeff!$B$14*(H31*G31-1)/(H31-1),"")) ->  | K31: =IF(OR(G31="",I31="",E31=""),"",IF((I31*(1-G31)-1)>=coeff!$B$15,coeff!$B$13/coeff!$B$14*(I31*(1-G31)-1)/(I31-1),"")) -> 
J32: =IF(OR(G32="",H32=""),"",IF((H32*G32-1)>=coeff!$B$15,coeff!$B$13/coeff!$B$14*(H32*G32-1)/(H32-1),"")) ->  | K32: =IF(OR(G32="",I32="",E32=""),"",IF((I32*(1-G32)-1)>=coeff!$B$15,coeff!$B$13/coeff!$B$14*(I32*(1-G32)-1)/(I32-1),"")) -> 
J33: =IF(OR(G33="",H33=""),"",IF((H33*G33-1)>=coeff!$B$15,coeff!$B$13/coeff!$B$14*(H33*G33-1)/(H33-1),"")) ->  | K33: =IF(OR(G33="",I33="",E33=""),"",IF((I33*(1-G33)-1)>=coeff!$B$15,coeff!$B$13/coeff!$B$14*(I33*(1-G33)-1)/(I33-1),"")) -> 
J34: =IF(OR(G34="",H34=""),"",IF((H34*G34-1)>=coeff!$B$15,coeff!$B$13/coeff!$B$14*(H34*G34-1)/(H34-1),"")) ->  | K34: =IF(OR(G34="",I34="",E34=""),"",IF((I34*(1-G34)-1)>=coeff!$B$15,coeff!$B$13/coeff!$B$14*(I34*(1-G34)-1)/(I34-1),"")) -> 
J35: =IF(OR(G35="",H35=""),"",IF((H35*G35-1)>=coeff!$B$15,coeff!$B$13/coeff!$B$14*(H35*G35-1)/(H35-1),"")) ->  | K35: =IF(OR(G35="",I35="",E35=""),"",IF((I35*(1-G35)-1)>=coeff!$B$15,coeff!$B$13/coeff!$B$14*(I35*(1-G35)-1)/(I35-1),"")) -> 
J36: =IF(OR(G36="",H36=""),"",IF((H36*G36-1)>=coeff!$B$15,coeff!$B$13/coeff!$B$14*(H36*G36-1)/(H36-1),"")) ->  | K36: =IF(OR(G36="",I36="",E36=""),"",IF((I36*(1-G36)-1)>=coeff!$B$15,coeff!$B$13/coeff!$B$14*(I36*(1-G36)-1)/(I36-1),"")) -> 
J37: =IF(OR(G37="",H37=""),"",IF((H37*G37-1)>=coeff!$B$15,coeff!$B$13/coeff!$B$14*(H37*G37-1)/(H37-1),"")) ->  | K37: =IF(OR(G37="",I37="",E37=""),"",IF((I37*(1-G37)-1)>=coeff!$B$15,coeff!$B$13/coeff!$B$14*(I37*(1-G37)-1)/(I37-1),"")) -> 
J38: =IF(OR(G38="",H38=""),"",IF((H38*G38-1)>=coeff!$B$15,coeff!$B$13/coeff!$B$14*(H38*G38-1)/(H38-1),"")) ->  | K38: =IF(OR(G38="",I38="",E38=""),"",IF((I38*(1-G38)-1)>=coeff!$B$15,coeff!$B$13/coeff!$B$14*(I38*(1-G38)-1)/(I38-1),"")) -> 
J39: =IF(OR(G39="",H39=""),"",IF((H39*G39-1)>=coeff!$B$15,coeff!$B$13/coeff!$B$14*(H39*G39-1)/(H39-1),"")) ->  | K39: =IF(OR(G39="",I39="",E39=""),"",IF((I39*(1-G39)-1)>=coeff!$B$15,coeff!$B$13/coeff!$B$14*(I39*(1-G39)-1)/(I39-1),"")) -> 
J40: =IF(OR(G40="",H40=""),"",IF((H40*G40-1)>=coeff!$B$15,coeff!$B$13/coeff!$B$14*(H40*G40-1)/(H40-1),"")) ->  | K40: =IF(OR(G40="",I40="",E40=""),"",IF((I40*(1-G40)-1)>=coeff!$B$15,coeff!$B$13/coeff!$B$14*(I40*(1-G40)-1)/(I40-1),"")) -> 
J41: =IF(OR(G41="",H41=""),"",IF((H41*G41-1)>=coeff!$B$15,coeff!$B$13/coeff!$B$14*(H41*G41-1)/(H41-1),"")) ->  | K41: =IF(OR(G41="",I41="",E41=""),"",IF((I41*(1-G41)-1)>=coeff!$B$15,coeff!$B$13/coeff!$B$14*(I41*(1-G41)-1)/(I41-1),"")) -> 
J42: =IF(OR(G42="",H42=""),"",IF((H42*G42-1)>=coeff!$B$15,coeff!$B$13/coeff!$B$14*(H42*G42-1)/(H42-1),"")) ->  | K42: =IF(OR(G42="",I42="",E42=""),"",IF((I42*(1-G42)-1)>=coeff!$B$15,coeff!$B$13/coeff!$B$14*(I42*(1-G42)-1)/(I42-1),"")) -> 
J43: =IF(OR(G43="",H43=""),"",IF((H43*G43-1)>=coeff!$B$15,coeff!$B$13/coeff!$B$14*(H43*G43-1)/(H43-1),"")) ->  | K43: =IF(OR(G43="",I43="",E43=""),"",IF((I43*(1-G43)-1)>=coeff!$B$15,coeff!$B$13/coeff!$B$14*(I43*(1-G43)-1)/(I43-1),"")) -> 
J44: =IF(OR(G44="",H44=""),"",IF((H44*G44-1)>=coeff!$B$15,coeff!$B$13/coeff!$B$14*(H44*G44-1)/(H44-1),"")) ->  | K44: =IF(OR(G44="",I44="",E44=""),"",IF((I44*(1-G44)-1)>=coeff!$B$15,coeff!$B$13/coeff!$B$14*(I44*(1-G44)-1)/(I44-1),"")) -> 
J45: =IF(OR(G45="",H45=""),"",IF((H45*G45-1)>=coeff!$B$15,coeff!$B$13/coeff!$B$14*(H45*G45-1)/(H45-1),"")) ->  | K45: =IF(OR(G45="",I45="",E45=""),"",IF((I45*(1-G45)-1)>=coeff!$B$15,coeff!$B$13/coeff!$B$14*(I45*(1-G45)-1)/(I45-1),"")) -> 
J46: =IF(OR(G46="",H46=""),"",IF((H46*G46-1)>=coeff!$B$15,coeff!$B$13/coeff!$B$14*(H46*G46-1)/(H46-1),"")) ->  | K46: =IF(OR(G46="",I46="",E46=""),"",IF((I46*(1-G46)-1)>=coeff!$B$15,coeff!$B$13/coeff!$B$14*(I46*(1-G46)-1)/(I46-1),"")) -> 
J47: =IF(OR(G47="",H47=""),"",IF((H47*G47-1)>=coeff!$B$15,coeff!$B$13/coeff!$B$14*(H47*G47-1)/(H47-1),"")) ->  | K47: =IF(OR(G47="",I47="",E47=""),"",IF((I47*(1-G47)-1)>=coeff!$B$15,coeff!$B$13/coeff!$B$14*(I47*(1-G47)-1)/(I47-1),"")) -> 
J48: =IF(OR(G48="",H48=""),"",IF((H48*G48-1)>=coeff!$B$15,coeff!$B$13/coeff!$B$14*(H48*G48-1)/(H48-1),"")) ->  | K48: =IF(OR(G48="",I48="",E48=""),"",IF((I48*(1-G48)-1)>=coeff!$B$15,coeff!$B$13/coeff!$B$14*(I48*(1-G48)-1)/(I48-1),"")) -> 
J49: =IF(OR(G49="",H49=""),"",IF((H49*G49-1)>=coeff!$B$15,coeff!$B$13/coeff!$B$14*(H49*G49-1)/(H49-1),"")) ->  | K49: =IF(OR(G49="",I49="",E49=""),"",IF((I49*(1-G49)-1)>=coeff!$B$15,coeff!$B$13/coeff!$B$14*(I49*(1-G49)-1)/(I49-1),"")) -> 
J50: =IF(OR(G50="",H50=""),"",IF((H50*G50-1)>=coeff!$B$15,coeff!$B$13/coeff!$B$14*(H50*G50-1)/(H50-1),"")) ->  | K50: =IF(OR(G50="",I50="",E50=""),"",IF((I50*(1-G50)-1)>=coeff!$B$15,coeff!$B$13/coeff!$B$14*(I50*(1-G50)-1)/(I50-1),"")) -> 
J51: =IF(OR(G51="",H51=""),"",IF((H51*G51-1)>=coeff!$B$15,coeff!$B$13/coeff!$B$14*(H51*G51-1)/(H51-1),"")) ->  | K51: =IF(OR(G51="",I51="",E51=""),"",IF((I51*(1-G51)-1)>=coeff!$B$15,coeff!$B$13/coeff!$B$14*(I51*(1-G51)-1)/(I51-1),"")) -> 
J52: =IF(OR(G52="",H52=""),"",IF((H52*G52-1)>=coeff!$B$15,coeff!$B$13/coeff!$B$14*(H52*G52-1)/(H52-1),"")) ->  | K52: =IF(OR(G52="",I52="",E52=""),"",IF((I52*(1-G52)-1)>=coeff!$B$15,coeff!$B$13/coeff!$B$14*(I52*(1-G52)-1)/(I52-1),"")) -> 
J53: =IF(OR(G53="",H53=""),"",IF((H53*G53-1)>=coeff!$B$15,coeff!$B$13/coeff!$B$14*(H53*G53-1)/(H53-1),"")) ->  | K53: =IF(OR(G53="",I53="",E53=""),"",IF((I53*(1-G53)-1)>=coeff!$B$15,coeff!$B$13/coeff!$B$14*(I53*(1-G53)-1)/(I53-1),"")) -> 
J54: =IF(OR(G54="",H54=""),"",IF((H54*G54-1)>=coeff!$B$15,coeff!$B$13/coeff!$B$14*(H54*G54-1)/(H54-1),"")) ->  | K54: =IF(OR(G54="",I54="",E54=""),"",IF((I54*(1-G54)-1)>=coeff!$B$15,coeff!$B$13/coeff!$B$14*(I54*(1-G54)-1)/(I54-1),"")) -> 
J55: =IF(OR(G55="",H55=""),"",IF((H55*G55-1)>=coeff!$B$15,coeff!$B$13/coeff!$B$14*(H55*G55-1)/(H55-1),"")) ->  | K55: =IF(OR(G55="",I55="",E55=""),"",IF((I55*(1-G55)-1)>=coeff!$B$15,coeff!$B$13/coeff!$B$14*(I55*(1-G55)-1)/(I55-1),"")) -> 
J56: =IF(OR(G56="",H56=""),"",IF((H56*G56-1)>=coeff!$B$15,coeff!$B$13/coeff!$B$14*(H56*G56-1)/(H56-1),"")) ->  | K56: =IF(OR(G56="",I56="",E56=""),"",IF((I56*(1-G56)-1)>=coeff!$B$15,coeff!$B$13/coeff!$B$14*(I56*(1-G56)-1)/(I56-1),"")) -> 
J57: =IF(OR(G57="",H57=""),"",IF((H57*G57-1)>=coeff!$B$15,coeff!$B$13/coeff!$B$14*(H57*G57-1)/(H57-1),"")) ->  | K57: =IF(OR(G57="",I57="",E57=""),"",IF((I57*(1-G57)-1)>=coeff!$B$15,coeff!$B$13/coeff!$B$14*(I57*(1-G57)-1)/(I57-1),"")) -> 
J58: =IF(OR(G58="",H58=""),"",IF((H58*G58-1)>=coeff!$B$15,coeff!$B$13/coeff!$B$14*(H58*G58-1)/(H58-1),"")) ->  | K58: =IF(OR(G58="",I58="",E58=""),"",IF((I58*(1-G58)-1)>=coeff!$B$15,coeff!$B$13/coeff!$B$14*(I58*(1-G58)-1)/(I58-1),"")) -> 
J59: =IF(OR(G59="",H59=""),"",IF((H59*G59-1)>=coeff!$B$15,coeff!$B$13/coeff!$B$14*(H59*G59-1)/(H59-1),"")) ->  | K59: =IF(OR(G59="",I59="",E59=""),"",IF((I59*(1-G59)-1)>=coeff!$B$15,coeff!$B$13/coeff!$B$14*(I59*(1-G59)-1)/(I59-1),"")) -> 
J60: =IF(OR(G60="",H60=""),"",IF((H60*G60-1)>=coeff!$B$15,coeff!$B$13/coeff!$B$14*(H60*G60-1)/(H60-1),"")) ->  | K60: =IF(OR(G60="",I60="",E60=""),"",IF((I60*(1-G60)-1)>=coeff!$B$15,coeff!$B$13/coeff!$B$14*(I60*(1-G60)-1)/(I60-1),"")) -> 
J61: =IF(OR(G61="",H61=""),"",IF((H61*G61-1)>=coeff!$B$15,coeff!$B$13/coeff!$B$14*(H61*G61-1)/(H61-1),"")) ->  | K61: =IF(OR(G61="",I61="",E61=""),"",IF((I61*(1-G61)-1)>=coeff!$B$15,coeff!$B$13/coeff!$B$14*(I61*(1-G61)-1)/(I61-1),"")) -> 
J62: =IF(OR(G62="",H62=""),"",IF((H62*G62-1)>=coeff!$B$15,coeff!$B$13/coeff!$B$14*(H62*G62-1)/(H62-1),"")) ->  | K62: =IF(OR(G62="",I62="",E62=""),"",IF((I62*(1-G62)-1)>=coeff!$B$15,coeff!$B$13/coeff!$B$14*(I62*(1-G62)-1)/(I62-1),"")) -> 
J63: =IF(OR(G63="",H63=""),"",IF((H63*G63-1)>=coeff!$B$15,coeff!$B$13/coeff!$B$14*(H63*G63-1)/(H63-1),"")) ->  | K63: =IF(OR(G63="",I63="",E63=""),"",IF((I63*(1-G63)-1)>=coeff!$B$15,coeff!$B$13/coeff!$B$14*(I63*(1-G63)-1)/(I63-1),"")) -> 
J64: =IF(OR(G64="",H64=""),"",IF((H64*G64-1)>=coeff!$B$15,coeff!$B$13/coeff!$B$14*(H64*G64-1)/(H64-1),"")) ->  | K64: =IF(OR(G64="",I64="",E64=""),"",IF((I64*(1-G64)-1)>=coeff!$B$15,coeff!$B$13/coeff!$B$14*(I64*(1-G64)-1)/(I64-1),"")) -> 
J65: =IF(OR(G65="",H65=""),"",IF((H65*G65-1)>=coeff!$B$15,coeff!$B$13/coeff!$B$14*(H65*G65-1)/(H65-1),"")) ->  | K65: =IF(OR(G65="",I65="",E65=""),"",IF((I65*(1-G65)-1)>=coeff!$B$15,coeff!$B$13/coeff!$B$14*(I65*(1-G65)-1)/(I65-1),"")) -> 
J66: =IF(OR(G66="",H66=""),"",IF((H66*G66-1)>=coeff!$B$15,coeff!$B$13/coeff!$B$14*(H66*G66-1)/(H66-1),"")) ->  | K66: =IF(OR(G66="",I66="",E66=""),"",IF((I66*(1-G66)-1)>=coeff!$B$15,coeff!$B$13/coeff!$B$14*(I66*(1-G66)-1)/(I66-1),"")) -> 
J67: =IF(OR(G67="",H67=""),"",IF((H67*G67-1)>=coeff!$B$15,coeff!$B$13/coeff!$B$14*(H67*G67-1)/(H67-1),"")) ->  | K67: =IF(OR(G67="",I67="",E67=""),"",IF((I67*(1-G67)-1)>=coeff!$B$15,coeff!$B$13/coeff!$B$14*(I67*(1-G67)-1)/(I67-1),"")) -> 
J68: =IF(OR(G68="",H68=""),"",IF((H68*G68-1)>=coeff!$B$15,coeff!$B$13/coeff!$B$14*(H68*G68-1)/(H68-1),"")) ->  | K68: =IF(OR(G68="",I68="",E68=""),"",IF((I68*(1-G68)-1)>=coeff!$B$15,coeff!$B$13/coeff!$B$14*(I68*(1-G68)-1)/(I68-1),"")) -> 
G69: =IF(F69="","",NORMDIST(E69-F69,0,N69,TRUE)) ->  | J69: =IF(OR(G69="",H69=""),"",IF((H69*G69-1)>=coeff!$B$15,coeff!$B$13/coeff!$B$14*(H69*G69-1)/(H69-1),"")) ->  | K69: =IF(OR(G69="",I69="",E69=""),"",IF((I69*(1-G69)-1)>=coeff!$B$15,coeff!$B$13/coeff!$B$14*(I69*(1-G69)-1)/(I69-1),"")) -> 
J70: =IF(OR(G70="",H70=""),"",IF((H70*G70-1)>=coeff!$B$15,coeff!$B$13/coeff!$B$14*(H70*G70-1)/(H70-1),"")) ->  | K70: =IF(OR(G70="",I70="",E70=""),"",IF((I70*(1-G70)-1)>=coeff!$B$15,coeff!$B$13/coeff!$B$14*(I70*(1-G70)-1)/(I70-1),"")) -> 
J71: =IF(OR(G71="",H71=""),"",IF((H71*G71-1)>=coeff!$B$15,coeff!$B$13/coeff!$B$14*(H71*G71-1)/(H71-1),"")) ->  | K71: =IF(OR(G71="",I71="",E71=""),"",IF((I71*(1-G71)-1)>=coeff!$B$15,coeff!$B$13/coeff!$B$14*(I71*(1-G71)-1)/(I71-1),"")) -> 
J72: =IF(OR(G72="",H72=""),"",IF((H72*G72-1)>=coeff!$B$15,coeff!$B$13/coeff!$B$14*(H72*G72-1)/(H72-1),"")) ->  | K72: =IF(OR(G72="",I72="",E72=""),"",IF((I72*(1-G72)-1)>=coeff!$B$15,coeff!$B$13/coeff!$B$14*(I72*(1-G72)-1)/(I72-1),"")) -> 
J73: =IF(OR(G73="",H73=""),"",IF((H73*G73-1)>=coeff!$B$15,coeff!$B$13/coeff!$B$14*(H73*G73-1)/(H73-1),"")) ->  | K73: =IF(OR(G73="",I73="",E73=""),"",IF((I73*(1-G73)-1)>=coeff!$B$15,coeff!$B$13/coeff!$B$14*(I73*(1-G73)-1)/(I73-1),"")) -> 
J74: =IF(OR(G74="",H74=""),"",IF((H74*G74-1)>=coeff!$B$15,coeff!$B$13/coeff!$B$14*(H74*G74-1)/(H74-1),"")) ->  | K74: =IF(OR(G74="",I74="",E74=""),"",IF((I74*(1-G74)-1)>=coeff!$B$15,coeff!$B$13/coeff!$B$14*(I74*(1-G74)-1)/(I74-1),"")) -> 
J75: =IF(OR(G75="",H75=""),"",IF((H75*G75-1)>=coeff!$B$15,coeff!$B$13/coeff!$B$14*(H75*G75-1)/(H75-1),"")) ->  | K75: =IF(OR(G75="",I75="",E75=""),"",IF((I75*(1-G75)-1)>=coeff!$B$15,coeff!$B$13/coeff!$B$14*(I75*(1-G75)-1)/(I75-1),"")) -> 
J76: =IF(OR(G76="",H76=""),"",IF((H76*G76-1)>=coeff!$B$15,coeff!$B$13/coeff!$B$14*(H76*G76-1)/(H76-1),"")) ->  | K76: =IF(OR(G76="",I76="",E76=""),"",IF((I76*(1-G76)-1)>=coeff!$B$15,coeff!$B$13/coeff!$B$14*(I76*(1-G76)-1)/(I76-1),"")) -> 
J77: =IF(OR(G77="",H77=""),"",IF((H77*G77-1)>=coeff!$B$15,coeff!$B$13/coeff!$B$14*(H77*G77-1)/(H77-1),"")) ->  | K77: =IF(OR(G77="",I77="",E77=""),"",IF((I77*(1-G77)-1)>=coeff!$B$15,coeff!$B$13/coeff!$B$14*(I77*(1-G77)-1)/(I77-1),"")) -> 
J78: =IF(OR(G78="",H78=""),"",IF((H78*G78-1)>=coeff!$B$15,coeff!$B$13/coeff!$B$14*(H78*G78-1)/(H78-1),"")) ->  | K78: =IF(OR(G78="",I78="",E78=""),"",IF((I78*(1-G78)-1)>=coeff!$B$15,coeff!$B$13/coeff!$B$14*(I78*(1-G78)-1)/(I78-1),"")) -> 
J79: =IF(OR(G79="",H79=""),"",IF((H79*G79-1)>=coeff!$B$15,coeff!$B$13/coeff!$B$14*(H79*G79-1)/(H79-1),"")) ->  | K79: =IF(OR(G79="",I79="",E79=""),"",IF((I79*(1-G79)-1)>=coeff!$B$15,coeff!$B$13/coeff!$B$14*(I79*(1-G79)-1)/(I79-1),"")) -> 
J80: =IF(OR(G80="",H80=""),"",IF((H80*G80-1)>=coeff!$B$15,coeff!$B$13/coeff!$B$14*(H80*G80-1)/(H80-1),"")) ->  | K80: =IF(OR(G80="",I80="",E80=""),"",IF((I80*(1-G80)-1)>=coeff!$B$15,coeff!$B$13/coeff!$B$14*(I80*(1-G80)-1)/(I80-1),"")) -> 
J81: =IF(OR(G81="",H81=""),"",IF((H81*G81-1)>=coeff!$B$15,coeff!$B$13/coeff!$B$14*(H81*G81-1)/(H81-1),"")) ->  | K81: =IF(OR(G81="",I81="",E81=""),"",IF((I81*(1-G81)-1)>=coeff!$B$15,coeff!$B$13/coeff!$B$14*(I81*(1-G81)-1)/(I81-1),"")) -> 
J82: =IF(OR(G82="",H82=""),"",IF((H82*G82-1)>=coeff!$B$15,coeff!$B$13/coeff!$B$14*(H82*G82-1)/(H82-1),"")) ->  | K82: =IF(OR(G82="",I82="",E82=""),"",IF((I82*(1-G82)-1)>=coeff!$B$15,coeff!$B$13/coeff!$B$14*(I82*(1-G82)-1)/(I82-1),"")) -> 
J83: =IF(OR(G83="",H83=""),"",IF((H83*G83-1)>=coeff!$B$15,coeff!$B$13/coeff!$B$14*(H83*G83-1)/(H83-1),"")) ->  | K83: =IF(OR(G83="",I83="",E83=""),"",IF((I83*(1-G83)-1)>=coeff!$B$15,coeff!$B$13/coeff!$B$14*(I83*(1-G83)-1)/(I83-1),"")) -> 
J84: =IF(OR(G84="",H84=""),"",IF((H84*G84-1)>=coeff!$B$15,coeff!$B$13/coeff!$B$14*(H84*G84-1)/(H84-1),"")) ->  | K84: =IF(OR(G84="",I84="",E84=""),"",IF((I84*(1-G84)-1)>=coeff!$B$15,coeff!$B$13/coeff!$B$14*(I84*(1-G84)-1)/(I84-1),"")) -> 
J85: =IF(OR(G85="",H85=""),"",IF((H85*G85-1)>=coeff!$B$15,coeff!$B$13/coeff!$B$14*(H85*G85-1)/(H85-1),"")) ->  | K85: =IF(OR(G85="",I85="",E85=""),"",IF((I85*(1-G85)-1)>=coeff!$B$15,coeff!$B$13/coeff!$B$14*(I85*(1-G85)-1)/(I85-1),"")) -> 
J86: =IF(OR(G86="",H86=""),"",IF((H86*G86-1)>=coeff!$B$15,coeff!$B$13/coeff!$B$14*(H86*G86-1)/(H86-1),"")) ->  | K86: =IF(OR(G86="",I86="",E86=""),"",IF((I86*(1-G86)-1)>=coeff!$B$15,coeff!$B$13/coeff!$B$14*(I86*(1-G86)-1)/(I86-1),"")) -> 
J87: =IF(OR(G87="",H87=""),"",IF((H87*G87-1)>=coeff!$B$15,coeff!$B$13/coeff!$B$14*(H87*G87-1)/(H87-1),"")) ->  | K87: =IF(OR(G87="",I87="",E87=""),"",IF((I87*(1-G87)-1)>=coeff!$B$15,coeff!$B$13/coeff!$B$14*(I87*(1-G87)-1)/(I87-1),"")) -> 
J88: =IF(OR(G88="",H88=""),"",IF((H88*G88-1)>=coeff!$B$15,coeff!$B$13/coeff!$B$14*(H88*G88-1)/(H88-1),"")) ->  | K88: =IF(OR(G88="",I88="",E88=""),"",IF((I88*(1-G88)-1)>=coeff!$B$15,coeff!$B$13/coeff!$B$14*(I88*(1-G88)-1)/(I88-1),"")) -> 
J89: =IF(OR(G89="",H89=""),"",IF((H89*G89-1)>=coeff!$B$15,coeff!$B$13/coeff!$B$14*(H89*G89-1)/(H89-1),"")) ->  | K89: =IF(OR(G89="",I89="",E89=""),"",IF((I89*(1-G89)-1)>=coeff!$B$15,coeff!$B$13/coeff!$B$14*(I89*(1-G89)-1)/(I89-1),"")) -> 
J90: =IF(OR(G90="",H90=""),"",IF((H90*G90-1)>=coeff!$B$15,coeff!$B$13/coeff!$B$14*(H90*G90-1)/(H90-1),"")) ->  | K90: =IF(OR(G90="",I90="",E90=""),"",IF((I90*(1-G90)-1)>=coeff!$B$15,coeff!$B$13/coeff!$B$14*(I90*(1-G90)-1)/(I90-1),"")) -> 
J91: =IF(OR(G91="",H91=""),"",IF((H91*G91-1)>=coeff!$B$15,coeff!$B$13/coeff!$B$14*(H91*G91-1)/(H91-1),"")) ->  | K91: =IF(OR(G91="",I91="",E91=""),"",IF((I91*(1-G91)-1)>=coeff!$B$15,coeff!$B$13/coeff!$B$14*(I91*(1-G91)-1)/(I91-1),"")) -> 
J92: =IF(OR(G92="",H92=""),"",IF((H92*G92-1)>=coeff!$B$15,coeff!$B$13/coeff!$B$14*(H92*G92-1)/(H92-1),"")) ->  | K92: =IF(OR(G92="",I92="",E92=""),"",IF((I92*(1-G92)-1)>=coeff!$B$15,coeff!$B$13/coeff!$B$14*(I92*(1-G92)-1)/(I92-1),"")) -> 
J93: =IF(OR(G93="",H93=""),"",IF((H93*G93-1)>=coeff!$B$15,coeff!$B$13/coeff!$B$14*(H93*G93-1)/(H93-1),"")) ->  | K93: =IF(OR(G93="",I93="",E93=""),"",IF((I93*(1-G93)-1)>=coeff!$B$15,coeff!$B$13/coeff!$B$14*(I93*(1-G93)-1)/(I93-1),"")) -> 
J94: =IF(OR(G94="",H94=""),"",IF((H94*G94-1)>=coeff!$B$15,coeff!$B$13/coeff!$B$14*(H94*G94-1)/(H94-1),"")) ->  | K94: =IF(OR(G94="",I94="",E94=""),"",IF((I94*(1-G94)-1)>=coeff!$B$15,coeff!$B$13/coeff!$B$14*(I94*(1-G94)-1)/(I94-1),"")) -> 
J95: =IF(OR(G95="",H95=""),"",IF((H95*G95-1)>=coeff!$B$15,coeff!$B$13/coeff!$B$14*(H95*G95-1)/(H95-1),"")) ->  | K95: =IF(OR(G95="",I95="",E95=""),"",IF((I95*(1-G95)-1)>=coeff!$B$15,coeff!$B$13/coeff!$B$14*(I95*(1-G95)-1)/(I95-1),"")) -> 
J96: =IF(OR(G96="",H96=""),"",IF((H96*G96-1)>=coeff!$B$15,coeff!$B$13/coeff!$B$14*(H96*G96-1)/(H96-1),"")) ->  | K96: =IF(OR(G96="",I96="",E96=""),"",IF((I96*(1-G96)-1)>=coeff!$B$15,coeff!$B$13/coeff!$B$14*(I96*(1-G96)-1)/(I96-1),"")) -> 
J97: =IF(OR(G97="",H97=""),"",IF((H97*G97-1)>=coeff!$B$15,coeff!$B$13/coeff!$B$14*(H97*G97-1)/(H97-1),"")) ->  | K97: =IF(OR(G97="",I97="",E97=""),"",IF((I97*(1-G97)-1)>=coeff!$B$15,coeff!$B$13/coeff!$B$14*(I97*(1-G97)-1)/(I97-1),"")) -> 
J98: =IF(OR(G98="",H98=""),"",IF((H98*G98-1)>=coeff!$B$15,coeff!$B$13/coeff!$B$14*(H98*G98-1)/(H98-1),"")) ->  | K98: =IF(OR(G98="",I98="",E98=""),"",IF((I98*(1-G98)-1)>=coeff!$B$15,coeff!$B$13/coeff!$B$14*(I98*(1-G98)-1)/(I98-1),"")) -> 
J99: =IF(OR(G99="",H99=""),"",IF((H99*G99-1)>=coeff!$B$15,coeff!$B$13/coeff!$B$14*(H99*G99-1)/(H99-1),"")) ->  | K99: =IF(OR(G99="",I99="",E99=""),"",IF((I99*(1-G99)-1)>=coeff!$B$15,coeff!$B$13/coeff!$B$14*(I99*(1-G99)-1)/(I99-1),"")) -> 
J100: =IF(OR(G100="",H100=""),"",IF((H100*G100-1)>=coeff!$B$15,coeff!$B$13/coeff!$B$14*(H100*G100-1)/(H100-1),"")) ->  | K100: =IF(OR(G100="",I100="",E100=""),"",IF((I100*(1-G100)-1)>=coeff!$B$15,coeff!$B$13/coeff!$B$14*(I100*(1-G100)-1)/(I100-1),"")) -> 
J101: =IF(OR(G101="",H101=""),"",IF((H101*G101-1)>=coeff!$B$15,coeff!$B$13/coeff!$B$14*(H101*G101-1)/(H101-1),"")) ->  | K101: =IF(OR(G101="",I101="",E101=""),"",IF((I101*(1-G101)-1)>=coeff!$B$15,coeff!$B$13/coeff!$B$14*(I101*(1-G101)-1)/(I101-1),"")) -> 
J102: =IF(OR(G102="",H102=""),"",IF((H102*G102-1)>=coeff!$B$15,coeff!$B$13/coeff!$B$14*(H102*G102-1)/(H102-1),"")) ->  | K102: =IF(OR(G102="",I102="",E102=""),"",IF((I102*(1-G102)-1)>=coeff!$B$15,coeff!$B$13/coeff!$B$14*(I102*(1-G102)-1)/(I102-1),"")) -> 
J103: =IF(OR(G103="",H103=""),"",IF((H103*G103-1)>=coeff!$B$15,coeff!$B$13/coeff!$B$14*(H103*G103-1)/(H103-1),"")) ->  | K103: =IF(OR(G103="",I103="",E103=""),"",IF((I103*(1-G103)-1)>=coeff!$B$15,coeff!$B$13/coeff!$B$14*(I103*(1-G103)-1)/(I103-1),"")) -> 
J104: =IF(OR(G104="",H104=""),"",IF((H104*G104-1)>=coeff!$B$15,coeff!$B$13/coeff!$B$14*(H104*G104-1)/(H104-1),"")) ->  | K104: =IF(OR(G104="",I104="",E104=""),"",IF((I104*(1-G104)-1)>=coeff!$B$15,coeff!$B$13/coeff!$B$14*(I104*(1-G104)-1)/(I104-1),"")) -> 
J105: =IF(OR(G105="",H105=""),"",IF((H105*G105-1)>=coeff!$B$15,coeff!$B$13/coeff!$B$14*(H105*G105-1)/(H105-1),"")) ->  | K105: =IF(OR(G105="",I105="",E105=""),"",IF((I105*(1-G105)-1)>=coeff!$B$15,coeff!$B$13/coeff!$B$14*(I105*(1-G105)-1)/(I105-1),"")) -> 
J106: =IF(OR(G106="",H106=""),"",IF((H106*G106-1)>=coeff!$B$15,coeff!$B$13/coeff!$B$14*(H106*G106-1)/(H106-1),"")) ->  | K106: =IF(OR(G106="",I106="",E106=""),"",IF((I106*(1-G106)-1)>=coeff!$B$15,coeff!$B$13/coeff!$B$14*(I106*(1-G106)-1)/(I106-1),"")) -> 
J107: =IF(OR(G107="",H107=""),"",IF((H107*G107-1)>=coeff!$B$15,coeff!$B$13/coeff!$B$14*(H107*G107-1)/(H107-1),"")) ->  | K107: =IF(OR(G107="",I107="",E107=""),"",IF((I107*(1-G107)-1)>=coeff!$B$15,coeff!$B$13/coeff!$B$14*(I107*(1-G107)-1)/(I107-1),"")) -> 
J108: =IF(OR(G108="",H108=""),"",IF((H108*G108-1)>=coeff!$B$15,coeff!$B$13/coeff!$B$14*(H108*G108-1)/(H108-1),"")) ->  | K108: =IF(OR(G108="",I108="",E108=""),"",IF((I108*(1-G108)-1)>=coeff!$B$15,coeff!$B$13/coeff!$B$14*(I108*(1-G108)-1)/(I108-1),"")) -> 
J109: =IF(OR(G109="",H109=""),"",IF((H109*G109-1)>=coeff!$B$15,coeff!$B$13/coeff!$B$14*(H109*G109-1)/(H109-1),"")) ->  | K109: =IF(OR(G109="",I109="",E109=""),"",IF((I109*(1-G109)-1)>=coeff!$B$15,coeff!$B$13/coeff!$B$14*(I109*(1-G109)-1)/(I109-1),"")) -> 
J110: =IF(OR(G110="",H110=""),"",IF((H110*G110-1)>=coeff!$B$15,coeff!$B$13/coeff!$B$14*(H110*G110-1)/(H110-1),"")) ->  | K110: =IF(OR(G110="",I110="",E110=""),"",IF((I110*(1-G110)-1)>=coeff!$B$15,coeff!$B$13/coeff!$B$14*(I110*(1-G110)-1)/(I110-1),"")) -> 
J111: =IF(OR(G111="",H111=""),"",IF((H111*G111-1)>=coeff!$B$15,coeff!$B$13/coeff!$B$14*(H111*G111-1)/(H111-1),"")) ->  | K111: =IF(OR(G111="",I111="",E111=""),"",IF((I111*(1-G111)-1)>=coeff!$B$15,coeff!$B$13/coeff!$B$14*(I111*(1-G111)-1)/(I111-1),"")) -> 
J112: =IF(OR(G112="",H112=""),"",IF((H112*G112-1)>=coeff!$B$15,coeff!$B$13/coeff!$B$14*(H112*G112-1)/(H112-1),"")) ->  | K112: =IF(OR(G112="",I112="",E112=""),"",IF((I112*(1-G112)-1)>=coeff!$B$15,coeff!$B$13/coeff!$B$14*(I112*(1-G112)-1)/(I112-1),"")) -> 
J113: =IF(OR(G113="",H113=""),"",IF((H113*G113-1)>=coeff!$B$15,coeff!$B$13/coeff!$B$14*(H113*G113-1)/(H113-1),"")) ->  | K113: =IF(OR(G113="",I113="",E113=""),"",IF((I113*(1-G113)-1)>=coeff!$B$15,coeff!$B$13/coeff!$B$14*(I113*(1-G113)-1)/(I113-1),"")) -> 
J114: =IF(OR(G114="",H114=""),"",IF((H114*G114-1)>=coeff!$B$15,coeff!$B$13/coeff!$B$14*(H114*G114-1)/(H114-1),"")) ->  | K114: =IF(OR(G114="",I114="",E114=""),"",IF((I114*(1-G114)-1)>=coeff!$B$15,coeff!$B$13/coeff!$B$14*(I114*(1-G114)-1)/(I114-1),"")) -> 
J115: =IF(OR(G115="",H115=""),"",IF((H115*G115-1)>=coeff!$B$15,coeff!$B$13/coeff!$B$14*(H115*G115-1)/(H115-1),"")) ->  | K115: =IF(OR(G115="",I115="",E115=""),"",IF((I115*(1-G115)-1)>=coeff!$B$15,coeff!$B$13/coeff!$B$14*(I115*(1-G115)-1)/(I115-1),"")) -> 
J116: =IF(OR(G116="",H116=""),"",IF((H116*G116-1)>=coeff!$B$15,coeff!$B$13/coeff!$B$14*(H116*G116-1)/(H116-1),"")) ->  | K116: =IF(OR(G116="",I116="",E116=""),"",IF((I116*(1-G116)-1)>=coeff!$B$15,coeff!$B$13/coeff!$B$14*(I116*(1-G116)-1)/(I116-1),"")) -> 
J117: =IF(OR(G117="",H117=""),"",IF((H117*G117-1)>=coeff!$B$15,coeff!$B$13/coeff!$B$14*(H117*G117-1)/(H117-1),"")) ->  | K117: =IF(OR(G117="",I117="",E117=""),"",IF((I117*(1-G117)-1)>=coeff!$B$15,coeff!$B$13/coeff!$B$14*(I117*(1-G117)-1)/(I117-1),"")) -> 
J118: =IF(OR(G118="",H118=""),"",IF((H118*G118-1)>=coeff!$B$15,coeff!$B$13/coeff!$B$14*(H118*G118-1)/(H118-1),"")) ->  | K118: =IF(OR(G118="",I118="",E118=""),"",IF((I118*(1-G118)-1)>=coeff!$B$15,coeff!$B$13/coeff!$B$14*(I118*(1-G118)-1)/(I118-1),"")) -> 
J119: =IF(OR(G119="",H119=""),"",IF((H119*G119-1)>=coeff!$B$15,coeff!$B$13/coeff!$B$14*(H119*G119-1)/(H119-1),"")) ->  | K119: =IF(OR(G119="",I119="",E119=""),"",IF((I119*(1-G119)-1)>=coeff!$B$15,coeff!$B$13/coeff!$B$14*(I119*(1-G119)-1)/(I119-1),"")) -> 
J120: =IF(OR(G120="",H120=""),"",IF((H120*G120-1)>=coeff!$B$15,coeff!$B$13/coeff!$B$14*(H120*G120-1)/(H120-1),"")) ->  | K120: =IF(OR(G120="",I120="",E120=""),"",IF((I120*(1-G120)-1)>=coeff!$B$15,coeff!$B$13/coeff!$B$14*(I120*(1-G120)-1)/(I120-1),"")) -> 
J121: =IF(OR(G121="",H121=""),"",IF((H121*G121-1)>=coeff!$B$15,coeff!$B$13/coeff!$B$14*(H121*G121-1)/(H121-1),"")) ->  | K121: =IF(OR(G121="",I121="",E121=""),"",IF((I121*(1-G121)-1)>=coeff!$B$15,coeff!$B$13/coeff!$B$14*(I121*(1-G121)-1)/(I121-1),"")) -> 
J122: =IF(OR(G122="",H122=""),"",IF((H122*G122-1)>=coeff!$B$15,coeff!$B$13/coeff!$B$14*(H122*G122-1)/(H122-1),"")) ->  | K122: =IF(OR(G122="",I122="",E122=""),"",IF((I122*(1-G122)-1)>=coeff!$B$15,coeff!$B$13/coeff!$B$14*(I122*(1-G122)-1)/(I122-1),"")) -> 
J123: =IF(OR(G123="",H123=""),"",IF((H123*G123-1)>=coeff!$B$15,coeff!$B$13/coeff!$B$14*(H123*G123-1)/(H123-1),"")) ->  | K123: =IF(OR(G123="",I123="",E123=""),"",IF((I123*(1-G123)-1)>=coeff!$B$15,coeff!$B$13/coeff!$B$14*(I123*(1-G123)-1)/(I123-1),"")) -> 
J124: =IF(OR(G124="",H124=""),"",IF((H124*G124-1)>=coeff!$B$15,coeff!$B$13/coeff!$B$14*(H124*G124-1)/(H124-1),"")) ->  | K124: =IF(OR(G124="",I124="",E124=""),"",IF((I124*(1-G124)-1)>=coeff!$B$15,coeff!$B$13/coeff!$B$14*(I124*(1-G124)-1)/(I124-1),"")) -> 
J125: =IF(OR(G125="",H125=""),"",IF((H125*G125-1)>=coeff!$B$15,coeff!$B$13/coeff!$B$14*(H125*G125-1)/(H125-1),"")) ->  | K125: =IF(OR(G125="",I125="",E125=""),"",IF((I125*(1-G125)-1)>=coeff!$B$15,coeff!$B$13/coeff!$B$14*(I125*(1-G125)-1)/(I125-1),"")) -> 
J126: =IF(OR(G126="",H126=""),"",IF((H126*G126-1)>=coeff!$B$15,coeff!$B$13/coeff!$B$14*(H126*G126-1)/(H126-1),"")) ->  | K126: =IF(OR(G126="",I126="",E126=""),"",IF((I126*(1-G126)-1)>=coeff!$B$15,coeff!$B$13/coeff!$B$14*(I126*(1-G126)-1)/(I126-1),"")) -> 
J127: =IF(OR(G127="",H127=""),"",IF((H127*G127-1)>=coeff!$B$15,coeff!$B$13/coeff!$B$14*(H127*G127-1)/(H127-1),"")) ->  | K127: =IF(OR(G127="",I127="",E127=""),"",IF((I127*(1-G127)-1)>=coeff!$B$15,coeff!$B$13/coeff!$B$14*(I127*(1-G127)-1)/(I127-1),"")) -> 
J128: =IF(OR(G128="",H128=""),"",IF((H128*G128-1)>=coeff!$B$15,coeff!$B$13/coeff!$B$14*(H128*G128-1)/(H128-1),"")) ->  | K128: =IF(OR(G128="",I128="",E128=""),"",IF((I128*(1-G128)-1)>=coeff!$B$15,coeff!$B$13/coeff!$B$14*(I128*(1-G128)-1)/(I128-1),"")) -> 
J129: =IF(OR(G129="",H129=""),"",IF((H129*G129-1)>=coeff!$B$15,coeff!$B$13/coeff!$B$14*(H129*G129-1)/(H129-1),"")) ->  | K129: =IF(OR(G129="",I129="",E129=""),"",IF((I129*(1-G129)-1)>=coeff!$B$15,coeff!$B$13/coeff!$B$14*(I129*(1-G129)-1)/(I129-1),"")) -> 
J130: =IF(OR(G130="",H130=""),"",IF((H130*G130-1)>=coeff!$B$15,coeff!$B$13/coeff!$B$14*(H130*G130-1)/(H130-1),"")) ->  | K130: =IF(OR(G130="",I130="",E130=""),"",IF((I130*(1-G130)-1)>=coeff!$B$15,coeff!$B$13/coeff!$B$14*(I130*(1-G130)-1)/(I130-1),"")) -> 
J131: =IF(OR(G131="",H131=""),"",IF((H131*G131-1)>=coeff!$B$15,coeff!$B$13/coeff!$B$14*(H131*G131-1)/(H131-1),"")) ->  | K131: =IF(OR(G131="",I131="",E131=""),"",IF((I131*(1-G131)-1)>=coeff!$B$15,coeff!$B$13/coeff!$B$14*(I131*(1-G131)-1)/(I131-1),"")) -> 
J132: =IF(OR(G132="",H132=""),"",IF((H132*G132-1)>=coeff!$B$15,coeff!$B$13/coeff!$B$14*(H132*G132-1)/(H132-1),"")) ->  | K132: =IF(OR(G132="",I132="",E132=""),"",IF((I132*(1-G132)-1)>=coeff!$B$15,coeff!$B$13/coeff!$B$14*(I132*(1-G132)-1)/(I132-1),"")) -> 
G133: =IF(F133="","",NORMDIST(E133-F133,0,N133,TRUE)) ->  | J133: =IF(OR(G133="",H133=""),"",IF((H133*G133-1)>=coeff!$B$15,coeff!$B$13/coeff!$B$14*(H133*G133-1)/(H133-1),"")) ->  | K133: =IF(OR(G133="",I133="",E133=""),"",IF((I133*(1-G133)-1)>=coeff!$B$15,coeff!$B$13/coeff!$B$14*(I133*(1-G133)-1)/(I133-1),"")) -> 
J134: =IF(OR(G134="",H134=""),"",IF((H134*G134-1)>=coeff!$B$15,coeff!$B$13/coeff!$B$14*(H134*G134-1)/(H134-1),"")) ->  | K134: =IF(OR(G134="",I134="",E134=""),"",IF((I134*(1-G134)-1)>=coeff!$B$15,coeff!$B$13/coeff!$B$14*(I134*(1-G134)-1)/(I134-1),"")) -> 
J135: =IF(OR(G135="",H135=""),"",IF((H135*G135-1)>=coeff!$B$15,coeff!$B$13/coeff!$B$14*(H135*G135-1)/(H135-1),"")) ->  | K135: =IF(OR(G135="",I135="",E135=""),"",IF((I135*(1-G135)-1)>=coeff!$B$15,coeff!$B$13/coeff!$B$14*(I135*(1-G135)-1)/(I135-1),"")) -> 
J136: =IF(OR(G136="",H136=""),"",IF((H136*G136-1)>=coeff!$B$15,coeff!$B$13/coeff!$B$14*(H136*G136-1)/(H136-1),"")) ->  | K136: =IF(OR(G136="",I136="",E136=""),"",IF((I136*(1-G136)-1)>=coeff!$B$15,coeff!$B$13/coeff!$B$14*(I136*(1-G136)-1)/(I136-1),"")) -> 
J137: =IF(OR(G137="",H137=""),"",IF((H137*G137-1)>=coeff!$B$15,coeff!$B$13/coeff!$B$14*(H137*G137-1)/(H137-1),"")) ->  | K137: =IF(OR(G137="",I137="",E137=""),"",IF((I137*(1-G137)-1)>=coeff!$B$15,coeff!$B$13/coeff!$B$14*(I137*(1-G137)-1)/(I137-1),"")) -> 
J138: =IF(OR(G138="",H138=""),"",IF((H138*G138-1)>=coeff!$B$15,coeff!$B$13/coeff!$B$14*(H138*G138-1)/(H138-1),"")) ->  | K138: =IF(OR(G138="",I138="",E138=""),"",IF((I138*(1-G138)-1)>=coeff!$B$15,coeff!$B$13/coeff!$B$14*(I138*(1-G138)-1)/(I138-1),"")) -> 
J139: =IF(OR(G139="",H139=""),"",IF((H139*G139-1)>=coeff!$B$15,coeff!$B$13/coeff!$B$14*(H139*G139-1)/(H139-1),"")) ->  | K139: =IF(OR(G139="",I139="",E139=""),"",IF((I139*(1-G139)-1)>=coeff!$B$15,coeff!$B$13/coeff!$B$14*(I139*(1-G139)-1)/(I139-1),"")) -> 
J140: =IF(OR(G140="",H140=""),"",IF((H140*G140-1)>=coeff!$B$15,coeff!$B$13/coeff!$B$14*(H140*G140-1)/(H140-1),"")) ->  | K140: =IF(OR(G140="",I140="",E140=""),"",IF((I140*(1-G140)-1)>=coeff!$B$15,coeff!$B$13/coeff!$B$14*(I140*(1-G140)-1)/(I140-1),"")) -> 
J141: =IF(OR(G141="",H141=""),"",IF((H141*G141-1)>=coeff!$B$15,coeff!$B$13/coeff!$B$14*(H141*G141-1)/(H141-1),"")) ->  | K141: =IF(OR(G141="",I141="",E141=""),"",IF((I141*(1-G141)-1)>=coeff!$B$15,coeff!$B$13/coeff!$B$14*(I141*(1-G141)-1)/(I141-1),"")) -> 
J142: =IF(OR(G142="",H142=""),"",IF((H142*G142-1)>=coeff!$B$15,coeff!$B$13/coeff!$B$14*(H142*G142-1)/(H142-1),"")) ->  | K142: =IF(OR(G142="",I142="",E142=""),"",IF((I142*(1-G142)-1)>=coeff!$B$15,coeff!$B$13/coeff!$B$14*(I142*(1-G142)-1)/(I142-1),"")) -> 
J143: =IF(OR(G143="",H143=""),"",IF((H143*G143-1)>=coeff!$B$15,coeff!$B$13/coeff!$B$14*(H143*G143-1)/(H143-1),"")) ->  | K143: =IF(OR(G143="",I143="",E143=""),"",IF((I143*(1-G143)-1)>=coeff!$B$15,coeff!$B$13/coeff!$B$14*(I143*(1-G143)-1)/(I143-1),"")) -> 
J144: =IF(OR(G144="",H144=""),"",IF((H144*G144-1)>=coeff!$B$15,coeff!$B$13/coeff!$B$14*(H144*G144-1)/(H144-1),"")) ->  | K144: =IF(OR(G144="",I144="",E144=""),"",IF((I144*(1-G144)-1)>=coeff!$B$15,coeff!$B$13/coeff!$B$14*(I144*(1-G144)-1)/(I144-1),"")) -> 
J145: =IF(OR(G145="",H145=""),"",IF((H145*G145-1)>=coeff!$B$15,coeff!$B$13/coeff!$B$14*(H145*G145-1)/(H145-1),"")) ->  | K145: =IF(OR(G145="",I145="",E145=""),"",IF((I145*(1-G145)-1)>=coeff!$B$15,coeff!$B$13/coeff!$B$14*(I145*(1-G145)-1)/(I145-1),"")) -> 
J146: =IF(OR(G146="",H146=""),"",IF((H146*G146-1)>=coeff!$B$15,coeff!$B$13/coeff!$B$14*(H146*G146-1)/(H146-1),"")) ->  | K146: =IF(OR(G146="",I146="",E146=""),"",IF((I146*(1-G146)-1)>=coeff!$B$15,coeff!$B$13/coeff!$B$14*(I146*(1-G146)-1)/(I146-1),"")) -> 
J147: =IF(OR(G147="",H147=""),"",IF((H147*G147-1)>=coeff!$B$15,coeff!$B$13/coeff!$B$14*(H147*G147-1)/(H147-1),"")) ->  | K147: =IF(OR(G147="",I147="",E147=""),"",IF((I147*(1-G147)-1)>=coeff!$B$15,coeff!$B$13/coeff!$B$14*(I147*(1-G147)-1)/(I147-1),"")) -> 
J148: =IF(OR(G148="",H148=""),"",IF((H148*G148-1)>=coeff!$B$15,coeff!$B$13/coeff!$B$14*(H148*G148-1)/(H148-1),"")) ->  | K148: =IF(OR(G148="",I148="",E148=""),"",IF((I148*(1-G148)-1)>=coeff!$B$15,coeff!$B$13/coeff!$B$14*(I148*(1-G148)-1)/(I148-1),"")) -> 
J149: =IF(OR(G149="",H149=""),"",IF((H149*G149-1)>=coeff!$B$15,coeff!$B$13/coeff!$B$14*(H149*G149-1)/(H149-1),"")) ->  | K149: =IF(OR(G149="",I149="",E149=""),"",IF((I149*(1-G149)-1)>=coeff!$B$15,coeff!$B$13/coeff!$B$14*(I149*(1-G149)-1)/(I149-1),"")) -> 
J150: =IF(OR(G150="",H150=""),"",IF((H150*G150-1)>=coeff!$B$15,coeff!$B$13/coeff!$B$14*(H150*G150-1)/(H150-1),"")) ->  | K150: =IF(OR(G150="",I150="",E150=""),"",IF((I150*(1-G150)-1)>=coeff!$B$15,coeff!$B$13/coeff!$B$14*(I150*(1-G150)-1)/(I150-1),"")) -> 
J151: =IF(OR(G151="",H151=""),"",IF((H151*G151-1)>=coeff!$B$15,coeff!$B$13/coeff!$B$14*(H151*G151-1)/(H151-1),"")) ->  | K151: =IF(OR(G151="",I151="",E151=""),"",IF((I151*(1-G151)-1)>=coeff!$B$15,coeff!$B$13/coeff!$B$14*(I151*(1-G151)-1)/(I151-1),"")) -> 
J152: =IF(OR(G152="",H152=""),"",IF((H152*G152-1)>=coeff!$B$15,coeff!$B$13/coeff!$B$14*(H152*G152-1)/(H152-1),"")) ->  | K152: =IF(OR(G152="",I152="",E152=""),"",IF((I152*(1-G152)-1)>=coeff!$B$15,coeff!$B$13/coeff!$B$14*(I152*(1-G152)-1)/(I152-1),"")) -> 
J153: =IF(OR(G153="",H153=""),"",IF((H153*G153-1)>=coeff!$B$15,coeff!$B$13/coeff!$B$14*(H153*G153-1)/(H153-1),"")) ->  | K153: =IF(OR(G153="",I153="",E153=""),"",IF((I153*(1-G153)-1)>=coeff!$B$15,coeff!$B$13/coeff!$B$14*(I153*(1-G153)-1)/(I153-1),"")) -> 
J154: =IF(OR(G154="",H154=""),"",IF((H154*G154-1)>=coeff!$B$15,coeff!$B$13/coeff!$B$14*(H154*G154-1)/(H154-1),"")) ->  | K154: =IF(OR(G154="",I154="",E154=""),"",IF((I154*(1-G154)-1)>=coeff!$B$15,coeff!$B$13/coeff!$B$14*(I154*(1-G154)-1)/(I154-1),"")) -> 
J155: =IF(OR(G155="",H155=""),"",IF((H155*G155-1)>=coeff!$B$15,coeff!$B$13/coeff!$B$14*(H155*G155-1)/(H155-1),"")) ->  | K155: =IF(OR(G155="",I155="",E155=""),"",IF((I155*(1-G155)-1)>=coeff!$B$15,coeff!$B$13/coeff!$B$14*(I155*(1-G155)-1)/(I155-1),"")) -> 
J156: =IF(OR(G156="",H156=""),"",IF((H156*G156-1)>=coeff!$B$15,coeff!$B$13/coeff!$B$14*(H156*G156-1)/(H156-1),"")) ->  | K156: =IF(OR(G156="",I156="",E156=""),"",IF((I156*(1-G156)-1)>=coeff!$B$15,coeff!$B$13/coeff!$B$14*(I156*(1-G156)-1)/(I156-1),"")) -> 
J157: =IF(OR(G157="",H157=""),"",IF((H157*G157-1)>=coeff!$B$15,coeff!$B$13/coeff!$B$14*(H157*G157-1)/(H157-1),"")) ->  | K157: =IF(OR(G157="",I157="",E157=""),"",IF((I157*(1-G157)-1)>=coeff!$B$15,coeff!$B$13/coeff!$B$14*(I157*(1-G157)-1)/(I157-1),"")) -> 
J158: =IF(OR(G158="",H158=""),"",IF((H158*G158-1)>=coeff!$B$15,coeff!$B$13/coeff!$B$14*(H158*G158-1)/(H158-1),"")) ->  | K158: =IF(OR(G158="",I158="",E158=""),"",IF((I158*(1-G158)-1)>=coeff!$B$15,coeff!$B$13/coeff!$B$14*(I158*(1-G158)-1)/(I158-1),"")) -> 
J159: =IF(OR(G159="",H159=""),"",IF((H159*G159-1)>=coeff!$B$15,coeff!$B$13/coeff!$B$14*(H159*G159-1)/(H159-1),"")) ->  | K159: =IF(OR(G159="",I159="",E159=""),"",IF((I159*(1-G159)-1)>=coeff!$B$15,coeff!$B$13/coeff!$B$14*(I159*(1-G159)-1)/(I159-1),"")) -> 
J160: =IF(OR(G160="",H160=""),"",IF((H160*G160-1)>=coeff!$B$15,coeff!$B$13/coeff!$B$14*(H160*G160-1)/(H160-1),"")) ->  | K160: =IF(OR(G160="",I160="",E160=""),"",IF((I160*(1-G160)-1)>=coeff!$B$15,coeff!$B$13/coeff!$B$14*(I160*(1-G160)-1)/(I160-1),"")) -> 
J161: =IF(OR(G161="",H161=""),"",IF((H161*G161-1)>=coeff!$B$15,coeff!$B$13/coeff!$B$14*(H161*G161-1)/(H161-1),"")) ->  | K161: =IF(OR(G161="",I161="",E161=""),"",IF((I161*(1-G161)-1)>=coeff!$B$15,coeff!$B$13/coeff!$B$14*(I161*(1-G161)-1)/(I161-1),"")) -> 
J162: =IF(OR(G162="",H162=""),"",IF((H162*G162-1)>=coeff!$B$15,coeff!$B$13/coeff!$B$14*(H162*G162-1)/(H162-1),"")) ->  | K162: =IF(OR(G162="",I162="",E162=""),"",IF((I162*(1-G162)-1)>=coeff!$B$15,coeff!$B$13/coeff!$B$14*(I162*(1-G162)-1)/(I162-1),"")) -> 
J163: =IF(OR(G163="",H163=""),"",IF((H163*G163-1)>=coeff!$B$15,coeff!$B$13/coeff!$B$14*(H163*G163-1)/(H163-1),"")) ->  | K163: =IF(OR(G163="",I163="",E163=""),"",IF((I163*(1-G163)-1)>=coeff!$B$15,coeff!$B$13/coeff!$B$14*(I163*(1-G163)-1)/(I163-1),"")) -> 
J164: =IF(OR(G164="",H164=""),"",IF((H164*G164-1)>=coeff!$B$15,coeff!$B$13/coeff!$B$14*(H164*G164-1)/(H164-1),"")) ->  | K164: =IF(OR(G164="",I164="",E164=""),"",IF((I164*(1-G164)-1)>=coeff!$B$15,coeff!$B$13/coeff!$B$14*(I164*(1-G164)-1)/(I164-1),"")) -> 
J165: =IF(OR(G165="",H165=""),"",IF((H165*G165-1)>=coeff!$B$15,coeff!$B$13/coeff!$B$14*(H165*G165-1)/(H165-1),"")) ->  | K165: =IF(OR(G165="",I165="",E165=""),"",IF((I165*(1-G165)-1)>=coeff!$B$15,coeff!$B$13/coeff!$B$14*(I165*(1-G165)-1)/(I165-1),"")) -> 
J166: =IF(OR(G166="",H166=""),"",IF((H166*G166-1)>=coeff!$B$15,coeff!$B$13/coeff!$B$14*(H166*G166-1)/(H166-1),"")) ->  | K166: =IF(OR(G166="",I166="",E166=""),"",IF((I166*(1-G166)-1)>=coeff!$B$15,coeff!$B$13/coeff!$B$14*(I166*(1-G166)-1)/(I166-1),"")) -> 
J167: =IF(OR(G167="",H167=""),"",IF((H167*G167-1)>=coeff!$B$15,coeff!$B$13/coeff!$B$14*(H167*G167-1)/(H167-1),"")) ->  | K167: =IF(OR(G167="",I167="",E167=""),"",IF((I167*(1-G167)-1)>=coeff!$B$15,coeff!$B$13/coeff!$B$14*(I167*(1-G167)-1)/(I167-1),"")) -> 
J168: =IF(OR(G168="",H168=""),"",IF((H168*G168-1)>=coeff!$B$15,coeff!$B$13/coeff!$B$14*(H168*G168-1)/(H168-1),"")) ->  | K168: =IF(OR(G168="",I168="",E168=""),"",IF((I168*(1-G168)-1)>=coeff!$B$15,coeff!$B$13/coeff!$B$14*(I168*(1-G168)-1)/(I168-1),"")) -> 
J169: =IF(OR(G169="",H169=""),"",IF((H169*G169-1)>=coeff!$B$15,coeff!$B$13/coeff!$B$14*(H169*G169-1)/(H169-1),"")) ->  | K169: =IF(OR(G169="",I169="",E169=""),"",IF((I169*(1-G169)-1)>=coeff!$B$15,coeff!$B$13/coeff!$B$14*(I169*(1-G169)-1)/(I169-1),"")) -> 
J170: =IF(OR(G170="",H170=""),"",IF((H170*G170-1)>=coeff!$B$15,coeff!$B$13/coeff!$B$14*(H170*G170-1)/(H170-1),"")) ->  | K170: =IF(OR(G170="",I170="",E170=""),"",IF((I170*(1-G170)-1)>=coeff!$B$15,coeff!$B$13/coeff!$B$14*(I170*(1-G170)-1)/(I170-1),"")) -> 
J171: =IF(OR(G171="",H171=""),"",IF((H171*G171-1)>=coeff!$B$15,coeff!$B$13/coeff!$B$14*(H171*G171-1)/(H171-1),"")) ->  | K171: =IF(OR(G171="",I171="",E171=""),"",IF((I171*(1-G171)-1)>=coeff!$B$15,coeff!$B$13/coeff!$B$14*(I171*(1-G171)-1)/(I171-1),"")) -> 
J172: =IF(OR(G172="",H172=""),"",IF((H172*G172-1)>=coeff!$B$15,coeff!$B$13/coeff!$B$14*(H172*G172-1)/(H172-1),"")) ->  | K172: =IF(OR(G172="",I172="",E172=""),"",IF((I172*(1-G172)-1)>=coeff!$B$15,coeff!$B$13/coeff!$B$14*(I172*(1-G172)-1)/(I172-1),"")) -> 
J173: =IF(OR(G173="",H173=""),"",IF((H173*G173-1)>=coeff!$B$15,coeff!$B$13/coeff!$B$14*(H173*G173-1)/(H173-1),"")) ->  | K173: =IF(OR(G173="",I173="",E173=""),"",IF((I173*(1-G173)-1)>=coeff!$B$15,coeff!$B$13/coeff!$B$14*(I173*(1-G173)-1)/(I173-1),"")) -> 
J174: =IF(OR(G174="",H174=""),"",IF((H174*G174-1)>=coeff!$B$15,coeff!$B$13/coeff!$B$14*(H174*G174-1)/(H174-1),"")) ->  | K174: =IF(OR(G174="",I174="",E174=""),"",IF((I174*(1-G174)-1)>=coeff!$B$15,coeff!$B$13/coeff!$B$14*(I174*(1-G174)-1)/(I174-1),"")) -> 
J175: =IF(OR(G175="",H175=""),"",IF((H175*G175-1)>=coeff!$B$15,coeff!$B$13/coeff!$B$14*(H175*G175-1)/(H175-1),"")) ->  | K175: =IF(OR(G175="",I175="",E175=""),"",IF((I175*(1-G175)-1)>=coeff!$B$15,coeff!$B$13/coeff!$B$14*(I175*(1-G175)-1)/(I175-1),"")) -> 
J176: =IF(OR(G176="",H176=""),"",IF((H176*G176-1)>=coeff!$B$15,coeff!$B$13/coeff!$B$14*(H176*G176-1)/(H176-1),"")) ->  | K176: =IF(OR(G176="",I176="",E176=""),"",IF((I176*(1-G176)-1)>=coeff!$B$15,coeff!$B$13/coeff!$B$14*(I176*(1-G176)-1)/(I176-1),"")) -> 
J177: =IF(OR(G177="",H177=""),"",IF((H177*G177-1)>=coeff!$B$15,coeff!$B$13/coeff!$B$14*(H177*G177-1)/(H177-1),"")) ->  | K177: =IF(OR(G177="",I177="",E177=""),"",IF((I177*(1-G177)-1)>=coeff!$B$15,coeff!$B$13/coeff!$B$14*(I177*(1-G177)-1)/(I177-1),"")) -> 
J178: =IF(OR(G178="",H178=""),"",IF((H178*G178-1)>=coeff!$B$15,coeff!$B$13/coeff!$B$14*(H178*G178-1)/(H178-1),"")) ->  | K178: =IF(OR(G178="",I178="",E178=""),"",IF((I178*(1-G178)-1)>=coeff!$B$15,coeff!$B$13/coeff!$B$14*(I178*(1-G178)-1)/(I178-1),"")) -> 
J179: =IF(OR(G179="",H179=""),"",IF((H179*G179-1)>=coeff!$B$15,coeff!$B$13/coeff!$B$14*(H179*G179-1)/(H179-1),"")) ->  | K179: =IF(OR(G179="",I179="",E179=""),"",IF((I179*(1-G179)-1)>=coeff!$B$15,coeff!$B$13/coeff!$B$14*(I179*(1-G179)-1)/(I179-1),"")) -> 
J180: =IF(OR(G180="",H180=""),"",IF((H180*G180-1)>=coeff!$B$15,coeff!$B$13/coeff!$B$14*(H180*G180-1)/(H180-1),"")) ->  | K180: =IF(OR(G180="",I180="",E180=""),"",IF((I180*(1-G180)-1)>=coeff!$B$15,coeff!$B$13/coeff!$B$14*(I180*(1-G180)-1)/(I180-1),"")) -> 
J181: =IF(OR(G181="",H181=""),"",IF((H181*G181-1)>=coeff!$B$15,coeff!$B$13/coeff!$B$14*(H181*G181-1)/(H181-1),"")) ->  | K181: =IF(OR(G181="",I181="",E181=""),"",IF((I181*(1-G181)-1)>=coeff!$B$15,coeff!$B$13/coeff!$B$14*(I181*(1-G181)-1)/(I181-1),"")) -> 
G197: =IF(F197="","",NORMDIST(E197-F197,0,N197,TRUE)) -> 
